Workbook

Sheet Worksheet
O1: Version 29
D2: Product and Pricing
E4: Format | J4: Quantity Requested | K4: 2000 | M4: Dealer Promo/Discount | N4: 0.25
E5: Snapset - Manual Form Without Tag Back
K6: Quantity Requested | L6: Additional Quantity Comparisons
E7: Size Selection
E8: up to 3 4/10 x 8 1/2 | J8: Quantity | K8: =IFERROR(INDEX('SnapSet Pricing'!$A:$I,MATCH(Worksheet!$A$17,'SnapSet Pricing'!A:A,0),6),"N/A") -> 2000 | L8: =IF(K8="N/A",INDEX('SnapSet Pricing'!$A:$I,MATCH(Worksheet!$A$17,'SnapSet Pricing'!A:A,-1),6),INDEX('SnapSet Pricing'!$A:$I,MATCH(Worksheet!$A$17,'SnapSet Pricing'!A:A,-1)-1,6)) -> 3000 | M8: =IF(K8="N/A",INDEX('SnapSet Pricing'!$A:$I,MATCH(Worksheet!$A$17,'SnapSet Pricing'!A:A,-1)-1,6),INDEX('SnapSet Pricing'!$A:$I,MATCH(Worksheet!$A$17,'SnapSet Pricing'!A:A,-1)-2,6)) -> 4000 | N8: =IF(K8="N/A",INDEX('SnapSet Pricing'!$A:$I,MATCH(Worksheet!$A$17,'SnapSet Pricing'!A:A,-1)-2,6),INDEX('SnapSet Pricing'!$A:$I,MATCH(Worksheet!$A$17,'SnapSet Pricing'!A:A,-1)-3,6)) -> 5000
E9: =IF(E5="","",IF(E5="Register Form","","(Size not including stub - First dimension is stub location)")) -> (Size not including stub - First dimension is stub location) | J9: Wholesale Price | K9: =IFERROR(INDEX('SnapSet Pricing'!$A:$I,MATCH(Worksheet!$A$17,'SnapSet Pricing'!A:A,0),7),"N/A") -> 304.85 | L9: =IF(K9="N/A",INDEX('SnapSet Pricing'!$A:$I,MATCH(Worksheet!$A$17,'SnapSet Pricing'!A:A,-1),7),INDEX('SnapSet Pricing'!$A:$I,MATCH(Worksheet!$A$17,'SnapSet Pricing'!A:A,-1)-1,7)) -> 412.75 | M9: =IF(K9="N/A",INDEX('SnapSet Pricing'!$A:$I,MATCH(Worksheet!$A$17,'SnapSet Pricing'!A:A,-1)-1,7),INDEX('SnapSet Pricing'!$A:$I,MATCH(Worksheet!$A$17,'SnapSet Pricing'!A:A,-1)-2,7)) -> 469.3 | N9: =IF(K9="N/A",INDEX('SnapSet Pricing'!$A:$I,MATCH(Worksheet!$A$17,'SnapSet Pricing'!A:A,-1)-2,7),INDEX('SnapSet Pricing'!$A:$I,MATCH(Worksheet!$A$17,'SnapSet Pricing'!A:A,-1)-3,7)) -> 560.95
E10: Number of Inks
E11: 2/1 | J11: Wholesale Discounted Price | K11: =IFERROR(K9*(1-$N$4),"N/A") -> 228.6375 | L11: =IFERROR(L9*(1-$N$4),"N/A") -> 309.5625 | M11: =IFERROR(M9*(1-$N$4),"N/A") -> 351.975 | N11: =IFERROR(N9*(1-$N$4),"N/A") -> 420.7125
E12: (Pricing does not include bleeds, please call for quote)
E13: Number of Parts | J13: DFS Suggested Retail Price | K13: =IFERROR(INDEX('SnapSet Pricing'!$A:$I,MATCH(Worksheet!$A$17,'SnapSet Pricing'!A:A,0),9),"N/A") -> 469 | L13: =IF(K13="N/A",INDEX('SnapSet Pricing'!$A:$I,MATCH(Worksheet!$A$17,'SnapSet Pricing'!A:A,-1),9),INDEX('SnapSet Pricing'!$A:$I,MATCH(Worksheet!$A$17,'SnapSet Pricing'!A:A,-1)-1,9)) -> 635 | M13: =IF(K13="N/A",INDEX('SnapSet Pricing'!$A:$I,MATCH(Worksheet!$A$17,'SnapSet Pricing'!A:A,-1)-1,9),INDEX('SnapSet Pricing'!$A:$I,MATCH(Worksheet!$A$17,'SnapSet Pricing'!A:A,-1)-2,9)) -> 722 | N13: =IF(K13="N/A",INDEX('SnapSet Pricing'!$A:$I,MATCH(Worksheet!$A$17,'SnapSet Pricing'!A:A,-1)-2,9),INDEX('SnapSet Pricing'!$A:$I,MATCH(Worksheet!$A$17,'SnapSet Pricing'!A:A,-1)-3,9)) -> 863
A14: =VLOOKUP(VLOOKUP(E5&"|"&E8,'Side 1 '!$A:$D,4,FALSE),DropDowns!$AA$2:$AB$7,2,FALSE) -> Parts6 | E14: 4 | K14: Enter a single overall margin, or one per qty | S14: Ground | T14: =IFERROR(IF('Stat Days'!$E$13="Not Offered","N/A",WORKDAY(TODAY(),'Stat Days'!$D$13+10,'Stat Days'!$A$2:$A$101)),"") -> 2019-12-02 | U14: =IFERROR(IF('Stat Days'!$E$13="Not Offered","N/A",WORKDAY(TODAY(),'Stat Days'!$D$13+13,'Stat Days'!$A$2:$A$101)),"") -> 2019-12-05
J15: Desired Margin | K15: 0.35 | S15: Express Saver | T15: =IFERROR(IF('Stat Days'!$G$13="Not Offered","N/A",WORKDAY(TODAY(),'Stat Days'!$F$13+10,'Stat Days'!$A$2:$A$101)),"") -> 2019-11-27 | U15: =IFERROR(IF('Stat Days'!$G$13="Not Offered","N/A",WORKDAY(TODAY(),'Stat Days'!$F$13+13,'Stat Days'!$A$2:$A$101)),"") -> 2019-12-02
E16: Product Code | J16: Calculated Retail Price | K16: =IFERROR(K9/(1-K15),"N/A") -> 469 | L16: =IFERROR(IF(L15="",L9/(1-$K15),L9/(1-L15)),"N/A") -> 635 | M16: =IFERROR(IF(M15="",M9/(1-$K15),M9/(1-M15)),"N/A") -> 722 | N16: =IFERROR(IF(N15="",N9/(1-$K15),N9/(1-N15)),"N/A") -> 863 | S16: =RIGHT(L18,2) -> BC
A17: =(VLOOKUP(E17,'SnapSet Pricing'!$M:$N,2,FALSE)*1000000)+K4 -> 258002000 | E17: =IF(A18="Yes",'Side 1 '!K63,IFERROR(IF(INDEX('Side 1 '!$A:$H,MATCH(Worksheet!E5&"|"&Worksheet!E8,'Side 1 '!A:A,0),MATCH(VLOOKUP(Worksheet!E11,DropDowns!AK2:AL9,2,FALSE),'Side 1 '!$1:$1,0))='Side 1 '!K63,'Side 1 '!K63,INDEX('Side 1 '!$A:$H,MATCH(Worksheet!E5&"|"&Worksheet!E8,'Side 1 '!A:A,0),MATCH(VLOOKUP(Worksheet!E11,DropDowns!AK2:AL9,2,FALSE),'Side 1 '!$1:$1,0))&"-"&E14),"")) -> 34108JB-4
A18: =IF(E5="Register Form",IF(E14=4,IF(E11="2/1","Yes",IF(E11="3/0","Yes","No")))) -> FALSE | J18: Delivery Postal Code | K18: V8Z6T8 | L18: =IFERROR(VLOOKUP($K$18,T_Orig_Dests_Excel_Email!$C$3:$R$16159,2,FALSE),VLOOKUP(LEFT($K$18,3)&"***",T_Orig_Dests_Excel_Email!$C$3:$R$16159,2,FALSE))&" - "&IFERROR(VLOOKUP($K$18,T_Orig_Dests_Excel_Email!$C$3:$R$16159,3,FALSE),VLOOKUP(LEFT($K$18,3)&"***",T_Orig_Dests_Excel_Email!$C$3:$R$16159,3,FALSE)) -> VICTORIA - BC
J20: Estimated Arrival Date | K20: Between | L20: =VLOOKUP($K$23,$S$14:$U$15,2,FALSE) -> 2019-11-27 | M20: And | N20: =VLOOKUP($K$23,$S$14:$U$15,3,FALSE) -> 2019-12-02
I21: **Assumes order submited today with no questions or artwork delays
J23: Ship Method | K23: Express Saver
J24: Shipping Cost | K24: =IFERROR(IF($K$23="Ground","Free",IF(VLOOKUP($S$16,'Stat Days'!$L$3:$O$15,2,FALSE)*K11<VLOOKUP($S$16,'Stat Days'!$L$3:$O$15,3,FALSE),VLOOKUP($S$16,'Stat Days'!$L$3:$O$15,3,FALSE),IF(VLOOKUP($S$16,'Stat Days'!$L$3:$O$15,2,FALSE)*K11>VLOOKUP($S$16,'Stat Days'!$L$3:$O$15,4,FALSE),VLOOKUP($S$16,'Stat Days'!$L$3:$O$15,4,FALSE),VLOOKUP($S$16,'Stat Days'!$L$3:$O$15,2,FALSE)*K11))),"N/A") -> 29.722875 | L24: =IF($K$23="Ground","Free",IF(VLOOKUP($S$16,'Stat Days'!$L$3:$O$15,2,FALSE)*L11<VLOOKUP($S$16,'Stat Days'!$L$3:$O$15,3,FALSE),VLOOKUP($S$16,'Stat Days'!$L$3:$O$15,3,FALSE),IF(VLOOKUP($S$16,'Stat Days'!$L$3:$O$15,2,FALSE)*L11>VLOOKUP($S$16,'Stat Days'!$L$3:$O$15,4,FALSE),VLOOKUP($S$16,'Stat Days'!$L$3:$O$15,4,FALSE),VLOOKUP($S$16,'Stat Days'!$L$3:$O$15,2,FALSE)*L11))) -> 40.243125 | M24: =IF($K$23="Ground","Free",IF(VLOOKUP($S$16,'Stat Days'!$L$3:$O$15,2,FALSE)*M11<VLOOKUP($S$16,'Stat Days'!$L$3:$O$15,3,FALSE),VLOOKUP($S$16,'Stat Days'!$L$3:$O$15,3,FALSE),IF(VLOOKUP($S$16,'Stat Days'!$L$3:$O$15,2,FALSE)*M11>VLOOKUP($S$16,'Stat Days'!$L$3:$O$15,4,FALSE),VLOOKUP($S$16,'Stat Days'!$L$3:$O$15,4,FALSE),VLOOKUP($S$16,'Stat Days'!$L$3:$O$15,2,FALSE)*M11))) -> 45.75675 | N24: =IF($K$23="Ground","Free",IF(VLOOKUP($S$16,'Stat Days'!$L$3:$O$15,2,FALSE)*N11<VLOOKUP($S$16,'Stat Days'!$L$3:$O$15,3,FALSE),VLOOKUP($S$16,'Stat Days'!$L$3:$O$15,3,FALSE),IF(VLOOKUP($S$16,'Stat Days'!$L$3:$O$15,2,FALSE)*N11>VLOOKUP($S$16,'Stat Days'!$L$3:$O$15,4,FALSE),VLOOKUP($S$16,'Stat Days'!$L$3:$O$15,4,FALSE),VLOOKUP($S$16,'Stat Days'!$L$3:$O$15,2,FALSE)*N11))) -> 54.692625
D26: Available Product Options
B28: Validation Value | F28: Identify What Ink Colour(s) To Use | I28: Select Where to use Ink Colour
A29: Switch | D29: Inks | E29: Ink Colours | F29: PMS Code | G29: Colour Description | I29: Form | J29: Logo | K29: Imprint
A30: =IFERROR(IF(VALUE(LEFT($E$11,1))>=B30,1,0),0) -> 1 | B30: 0 | E30: Front Ink 1
A31: =IFERROR(IF(VALUE(LEFT($E$11,1))>=B31,1,0),0) -> 1 | B31: 2 | E31: Front Ink 2
A32: 0 | B32: 3 | E32: Front Ink 3
A33: 0 | B33: 4 | E33: Front Ink 4
A34: =IFERROR(IF(VALUE(RIGHT($E$11,1))>=B34,1,0),0) -> 1 | B34: 1 | E34: Back Ink 1
A35: =IFERROR(IF(VALUE(RIGHT($E$11,1))>=B35,1,0),0) -> 0 | B35: 2 | E35: Back Ink 2
D37: Paper | E37: Parts Paper Colur Sequence
E38: Part 1 | G38: Part 2 | I38: Part 3 | K38: Part 4 | M38: Part 5
D41: Booking | E41: Booked? (Y/N) | G41: Booking Special Instructions | L41: Booking Info
E42: Stubless/Glued? | L42: =IF(F41="","",IF(F41="Y"," Snapsets are bound within the stub with a wrap-around cover",IF(F42="N"," Will be received in loose sets",IF(F42="",""," Will be received in glued sets without stubs")))) -> 
E43: Booking Location
E44: Qty Per Book
E45: Parts To Remain in Book | G45: Part 1 | H45: Part 2 | I45: Part 3 | J45: Part 4 | K45: Part 5 | U45: 1 | V45: 2 | W45: 3 | X45: 4
T46: =IF(F41="",0,IF(F41="N",0,1)) -> 0 | U46: =IF($F$41="",0,IF($F$41="N",0,IF($E$14>U45,1,0))) -> 0 | V46: =IF($F$41="",0,IF($F$41="N",0,IF($E$14>V45,1,0))) -> 0 | W46: =IF($F$41="",0,IF($F$41="N",0,IF($E$14>W45,1,0))) -> 0 | X46: =IF($F$41="",0,IF($F$41="N",0,IF($E$14>X45,1,0))) -> 0
B48: PerfLookup | D48: Perforations | E48: Add Perferations (Y/N) | G48: Quantity | H48: Notes: Perfs are measured from the top of the form not including the stub Horizontal perfs must be a minimum of 1" appart from each other
B49: ="Perf"&G49 -> Perf | E49: Horizontal Perfs
E50: Vertical Perfs
F51: Location from top of Form | H51: Length of Perf | J51: Select Parts to apply Perf on | U51: 1 | V51: 2 | W51: 3 | X51: 4
F52: Distance | G52: UOM | H52: Length | I52: UOM | J52: Part 1 | K52: Part 2 | L52: Part 3 | M52: Part 4 | N52: Part 5 | P52: validation | Q52: Check | T52: Part 1 | U52: Part 2 | V52: Part 3 | W52: Part 4 | X52: Part 5
E53: Horizontal Perf 1 | P53: 0 | Q53: =IF($F$48="",0,IF($F$48="N",0,IFERROR(IF(VALUE($G$49)>P53,1,0),0))) -> 0 | T53: =IF(Q53=1,1,0) -> 0 | U53: =IF($Q53=1,IF($E$14>U$51,1,0),0) -> 0 | V53: 0 | W53: 0 | X53: 0
E54: Horizontal Perf 2 | P54: 1 | Q54: =IF($F$48="",0,IF($F$48="N",0,IFERROR(IF(VALUE($G$49)>P54,1,0),0))) -> 0 | T54: =IF(Q54=1,1,0) -> 0 | U54: 0 | V54: 0 | W54: 0 | X54: 0
E55: Horizontal Perf 3 | P55: 2 | Q55: 0 | T55: 0 | U55: 0 | V55: 0 | W55: 0 | X55: 0
E56: Horizontal Perf 4 | P56: 3 | Q56: 0 | T56: 0 | U56: 0 | V56: 0 | W56: 0 | X56: 0
E57: Vertical Perf 1 | P57: 0 | Q57: =IF($F$48="",0,IF($F$48="N",0,IFERROR(IF(VALUE($G$50)>P57,1,0),0))) -> 0 | T57: 0 | U57: 0 | V57: 0 | W57: 0 | X57: 0
E58: Vertical Perf 2 | P58: 1 | Q58: =IF($F$48="",0,IF($F$48="N",0,IFERROR(IF(VALUE($G$50)>P58,1,0),0))) -> 0 | T58: 0 | U58: 0 | V58: 0 | W58: 0 | X58: 0
T59: =SUM(T53:T58) -> 0 | U59: =SUM(U53:U58) -> 0 | V59: 0 | W59: 0 | X59: 0
D60: Designations | E60: Designations (Y/N) | G60: List Designation wording for each part below eg. White - Customer Copy, Canary - Office Copy, Pink - Production Copy
E62: Part 1 | P62: 0 | Q62: =IF($F$60="",0,IF($F$60="N",0,IF($E$14>P62,1,0))) -> 0
E63: Part 2 | P63: 1 | Q63: =IF($F$60="",0,IF($F$60="N",0,IF($E$14>P63,1,0))) -> 0
E64: Part 3 | P64: 2 | Q64: =IF($F$60="",0,IF($F$60="N",0,IF($E$14>P64,1,0))) -> 0
E65: Part 4 | P65: 3 | Q65: =IF($F$60="",0,IF($F$60="N",0,IF($E$14>P65,1,0))) -> 0
E66: Part 5 | P66: 4 | Q66: =IF($F$60="",0,IF($F$60="N",0,IF($E$14>P66,1,0))) -> 0
A68: Allow Cutting | D68: CUT | E68: Cut To Size (Y/N) | G68: Cut Size To | H68: UOM
A69: =IF(LEFT(E8,2)="up","Yes","No") -> Yes | E69: =IF(A69="No","Form cannot be cut", MID(E8,7,FIND("x",E8)-7) & " Side Cut Down To:") -> 3 4/10 Side Cut Down To:
D70: Cutting | E70: =IF(A69="No","Form cannot be cut", RIGHT(E8,LEN(E8)-FIND("x",E8))&" Side Cut Down To:") -> 8 1/2 Side Cut Down To:
D72: Drilling & File Punching | E72: Drilling/File Punching or Holes Required (Y/N)
E74: How Many Holes? | H74: UOM
E75: Spacing Center to Center
E76: Location of Holes
E77: Which Parts? | G77: Part 1 | H77: Part 2 | I77: Part 3 | J77: Part 4 | K77: Part 5 | T77: 0 | U77: 1 | V77: 2 | W77: 3 | X77: 4
T78: =IF($G$72="",0,IF($G$72="N",0,IF($E$14>T77,1,0))) -> 0 | U78: =IF($G$72="",0,IF($G$72="N",0,IF($E$14>U77,1,0))) -> 0 | V78: =IF($G$72="",0,IF($G$72="N",0,IF($E$14>V77,1,0))) -> 0 | W78: =IF($G$72="",0,IF($G$72="N",0,IF($E$14>W77,1,0))) -> 0 | X78: =IF($G$72="",0,IF($G$72="N",0,IF($E$14>X77,1,0))) -> 0
D80: Numbering | E80: Numbering Required (Y/N)
E81: Numbering Type
E82: Numbering Instructions

Sheet Stat Days (hidden)
A1: Dates
A2: 2018-01-01 | D2: Production Days Group (Includes Order Entry, Comp & Mfg) | L2: DEST_PR | M2: Percent | N2: Min | O2: Max
A3: 2018-02-12 | D3: Group | E3: Min | F3: Max | L3: NL | M3: 0.13 | N3: 18.95 | O3: 125
A4: 2018-02-19 | D4: 1 | E4: 3 | F4: 5 | G4: Standard | L4: NS | M4: 0.13 | N4: 18.95 | O4: 125
A5: 2018-03-30 | D5: 2 | E5: 5 | F5: 7 | G5: Logo & Building Block | L5: PE | M5: 0.13 | N5: 18.95 | O5: 125
A6: 2018-05-21 | D6: 3 | E6: 10 | F6: 13 | G6: Design | L6: NB | M6: 0.13 | N6: 18.95 | O6: 125
A7: 2018-07-02 | L7: QC | M7: 0.13 | N7: 18.95 | O7: 125
A8: 2018-08-06 | L8: ON | M8: 0.13 | N8: 18.95 | O8: 125
A9: 2018-09-03 | L9: MB | M9: 0.13 | N9: 18.95 | O9: 125
A10: 2018-10-08 | L10: SK | M10: 0.13 | N10: 18.95 | O10: 125
A11: 2018-11-11 | L11: AB | M11: 0.13 | N11: 18.95 | O11: 125
A12: 2018-12-25 | D12: Delivery Days | L12: BC | M12: 0.13 | N12: 18.95 | O12: 125
A13: 2018-12-26 | D13: =IFERROR(VLOOKUP(Worksheet!$K$18,T_Orig_Dests_Excel_Email!$C$3:$R$16159,14,FALSE),VLOOKUP(LEFT(Worksheet!$K$18,3)&"***",T_Orig_Dests_Excel_Email!$C$3:$R$16159,14,FALSE)) -> 4 | E13: =IFERROR(VLOOKUP(Worksheet!$K$18,T_Orig_Dests_Excel_Email!$C$3:$R$16159,15,FALSE),VLOOKUP(LEFT(Worksheet!$K$18,3)&"***",T_Orig_Dests_Excel_Email!$C$3:$R$16159,15,FALSE)) -> 2400 | F13: =IFERROR(VLOOKUP(Worksheet!$K$18,T_Orig_Dests_Excel_Email!$C$3:$R$16159,10,FALSE),VLOOKUP(LEFT(Worksheet!$K$18,3)&"***",T_Orig_Dests_Excel_Email!$C$3:$R$16159,10,FALSE)) -> 1 | G13: =IFERROR(VLOOKUP(Worksheet!$K$18,T_Orig_Dests_Excel_Email!$C$3:$R$16159,11,FALSE),VLOOKUP(LEFT(Worksheet!$K$18,3)&"***",T_Orig_Dests_Excel_Email!$C$3:$R$16159,11,FALSE)) -> 1500 | L13: NU | M13: 0.28 | N13: 32.95 | O13: 195
A14: 2019-01-01 | L14: NT | M14: 0.28 | N14: 32.95 | O14: 195
A15: 2019-02-18 | L15: YT | M15: 0.28 | N15: 32.95 | O15: 195
A16: 2019-04-19
A17: 2019-05-20
A18: 2019-06-24
A19: 2019-07-01
A20: 2019-08-05
A21: 2019-09-02
A22: 2019-10-14
A23: 2019-11-11
A24: 2019-12-25
A25: 2019-12-26

Sheet T_Orig_Dests_Excel_Email (hidden)
H1: Early AM | J1: UPS Express | L1: Express Saver | N1: UPS Expedited | P1: UPS Standard
A2: ORIGIN_TOWN | B2: ORIGIN_POSTAL | C2: DEST_POSTAL | D2: DEST_TOWN | E2: DEST_PR | F2: DEST_POSTAL_TO | G2: SUB_POSTAL_ID | H2: EAM_TNT | I2: EAM_GUAR | J2: EXR_TNT | K2: EXR_GUAR | L2: EXS_TNT | M2: EXS_GUAR | N2: EXD_TNT | O2: EXD_GUAR | P2: STD_TNT | Q2: STD_GUAR | R2: SAT_DEL
A3: GREATER TORONTO AREA | B3: M5A*** | C3: A0A1A0 | D3: AQUAFORTE | E3: NL | F3: A0A1A9 | I3: Not Offered | J3: 1 | K3: 2400 | L3: 1 | M3: 2400 | N3: 2 | O3: 2400 | P3: 8 | Q3: 2400 | R3: No
A4: GREATER TORONTO AREA | B4: M5A*** | C4: A0A1B0 | D4: AVONDALE | E4: NL | F4: A0A1B9 | I4: Not Offered | J4: 1 | K4: 2400 | L4: 1 | M4: 2400 | N4: 2 | O4: 2400 | P4: 7 | Q4: 2400 | R4: No
A5: GREATER TORONTO AREA | B5: M5A*** | C5: A0A1C0 | D5: BAY BULLS | E5: NL | F5: A0A1C9 | I5: Not Offered | J5: 1 | K5: 2400 | L5: 1 | M5: 2400 | N5: 2 | O5: 2400 | P5: 8 | Q5: 2400 | R5: No
A6: GREATER TORONTO AREA | B6: M5A*** | C6: A0A1E0 | D6: BAY DE VERDE | E6: NL | F6: A0A1E9 | I6: Not Offered | J6: 2 | K6: 2400 | L6: 2 | M6: 2400 | N6: 3 | O6: 2400 | P6: 8 | Q6: 2400 | R6: No
A7: GREATER TORONTO AREA | B7: M5A*** | C7: A0A1G0 | D7: BAY ROBERTS | E7: NL | F7: A0A1G9 | I7: Not Offered | J7: 1 | K7: 2400 | L7: 1 | M7: 2400 | N7: 2 | O7: 2400 | P7: 7 | Q7: 2400 | R7: No
A8: GREATER TORONTO AREA | B8: M5A*** | C8: A0A1H0 | D8: BELL ISLAND FRONT | E8: NL | F8: A0A1H9 | I8: Not Offered | J8: 3 | K8: 2400 | L8: 3 | M8: 2400 | N8: 4 | O8: 2400 | P8: 9 | Q8: 2400 | R8: No
A9: GREATER TORONTO AREA | B9: M5A*** | C9: A0A1J0 | D9: SHEA HEIGHTS | E9: NL | F9: A0A1J9 | I9: Not Offered | J9: 1 | K9: 2400 | L9: 1 | M9: 2400 | N9: 2 | O9: 2400 | P9: 7 | Q9: 2400 | R9: No
A10: GREATER TORONTO AREA | B10: M5A*** | C10: A0A1K0 | D10: BRIGUS | E10: NL | F10: A0A1K9 | I10: Not Offered | J10: 1 | K10: 2400 | L10: 1 | M10: 2400 | N10: 2 | O10: 2400 | P10: 7 | Q10: 2400 | R10: No
A11: GREATER TORONTO AREA | B11: M5A*** | C11: A0A1L0 | D11: BROAD COVE BDV | E11: NL | F11: A0A1L9 | I11: Not Offered | J11: 1 | K11: 2400 | L11: 1 | M11: 2400 | N11: 2 | O11: 2400 | P11: 8 | Q11: 2400 | R11: No
A12: GREATER TORONTO AREA | B12: M5A*** | C12: A0A1M0 | D12: BURNT POINT BDV | E12: NL | F12: A0A1M9 | I12: Not Offered | J12: 1 | K12: 2400 | L12: 1 | M12: 2400 | N12: 2 | O12: 2400 | P12: 8 | Q12: 2400 | R12: No
A13: GREATER TORONTO AREA | B13: M5A*** | C13: A0A1N0 | D13: CALVERT | E13: NL | F13: A0A1N9 | I13: Not Offered | J13: 1 | K13: 2400 | L13: 1 | M13: 2400 | N13: 2 | O13: 2400 | P13: 8 | Q13: 2400 | R13: No
A14: GREATER TORONTO AREA | B14: M5A*** | C14: A0A1P0 | D14: CAPE BROYLE | E14: NL | F14: A0A1P9 | I14: Not Offered | J14: 1 | K14: 2400 | L14: 1 | M14: 2400 | N14: 2 | O14: 2400 | P14: 8 | Q14: 2400 | R14: No
A15: GREATER TORONTO AREA | B15: M5A*** | C15: A0A1R0 | D15: CAPLIN COVE BDV | E15: NL | F15: A0A1R9 | I15: Not Offered | J15: 2 | K15: 2400 | L15: 2 | M15: 2400 | N15: 3 | O15: 2400 | P15: 8 | Q15: 2400 | R15: No
A16: GREATER TORONTO AREA | B16: M5A*** | C16: A0A1S0 | D16: CAPPAHAYDEN | E16: NL | F16: A0A1S9 | I16: Not Offered | J16: 1 | K16: 2400 | L16: 1 | M16: 2400 | N16: 2 | O16: 2400 | P16: 8 | Q16: 2400 | R16: No
A17: GREATER TORONTO AREA | B17: M5A*** | C17: A0A1V0 | D17: CHAPEL COVE | E17: NL | F17: A0A1V9 | I17: Not Offered | J17: 1 | K17: 2400 | L17: 1 | M17: 2400 | N17: 2 | O17: 2400 | P17: 8 | Q17: 2400 | R17: No
A18: GREATER TORONTO AREA | B18: M5A*** | C18: A0A1W0 | D18: CLARKES BEACH | E18: NL | F18: A0A1W9 | I18: Not Offered | J18: 1 | K18: 2400 | L18: 1 | M18: 2400 | N18: 2 | O18: 2400 | P18: 7 | Q18: 2400 | R18: No
A19: GREATER TORONTO AREA | B19: M5A*** | C19: A0A1X0 | D19: COLEYS POINT SOUTH | E19: NL | F19: A0A1X9 | I19: Not Offered | J19: 1 | K19: 2400 | L19: 1 | M19: 2400 | N19: 2 | O19: 2400 | P19: 7 | Q19: 2400 | R19: No
A20: GREATER TORONTO AREA | B20: M5A*** | C20: A0A1Y0 | D20: COLLIERS RIVERHEAD | E20: NL | F20: A0A1Y9 | I20: Not Offered | J20: 1 | K20: 2400 | L20: 1 | M20: 2400 | N20: 2 | O20: 2400 | P20: 7 | Q20: 2400 | R20: No
A21: GREATER TORONTO AREA | B21: M5A*** | C21: A0A1Z0 | D21: CONCEPTION HARBOUR | E21: NL | F21: A0A1Z9 | I21: Not Offered | J21: 1 | K21: 2400 | L21: 1 | M21: 2400 | N21: 2 | O21: 2400 | P21: 7 | Q21: 2400 | R21: No
A22: GREATER TORONTO AREA | B22: M5A*** | C22: A0A2B0 | D22: CUPIDS | E22: NL | F22: A0A2B9 | I22: Not Offered | J22: 1 | K22: 2400 | L22: 1 | M22: 2400 | N22: 2 | O22: 2400 | P22: 7 | Q22: 2400 | R22: No
A23: GREATER TORONTO AREA | B23: M5A*** | C23: A0A2G0 | D23: FERMEUSE | E23: NL | F23: A0A2G9 | I23: Not Offered | J23: 1 | K23: 2400 | L23: 1 | M23: 2400 | N23: 2 | O23: 2400 | P23: 8 | Q23: 2400 | R23: No
A24: GREATER TORONTO AREA | B24: M5A*** | C24: A0A2H0 | D24: FERRYLAND | E24: NL | F24: A0A2H9 | I24: Not Offered | J24: 1 | K24: 2400 | L24: 1 | M24: 2400 | N24: 2 | O24: 2400 | P24: 8 | Q24: 2400 | R24: No
A25: GREATER TORONTO AREA | B25: M5A*** | C25: A0A2L0 | D25: GRATES COVE | E25: NL | F25: A0A2L9 | I25: Not Offered | J25: 1 | K25: 2400 | L25: 1 | M25: 2400 | N25: 2 | O25: 2400 | P25: 8 | Q25: 2400 | R25: No
A26: GREATER TORONTO AREA | B26: M5A*** | C26: A0A2M0 | D26: HARBOUR GRACE | E26: NL | F26: A0A2M9 | G26: 0 | I26: Not Offered | J26: 1 | K26: 2400 | L26: 1 | M26: 2400 | N26: 2 | O26: 2400 | P26: 8 | Q26: 2400 | R26: No
A27: GREATER TORONTO AREA | B27: M5A*** | C27: A0A2M0 | D27: BRISTOLS HOPE | E27: NL | F27: A0A2M0 | G27: 1 | I27: Not Offered | J27: 1 | K27: 2400 | L27: 1 | M27: 2400 | N27: 2 | O27: 2400 | P27: 7 | Q27: 2400 | R27: No
A28: GREATER TORONTO AREA | B28: M5A*** | C28: A0A2N0 | D28: HARBOUR GRACE SOUTH | E28: NL | F28: A0A2N9 | I28: Not Offered | J28: 1 | K28: 2400 | L28: 1 | M28: 2400 | N28: 2 | O28: 2400 | P28: 7 | Q28: 2400 | R28: No
A29: GREATER TORONTO AREA | B29: M5A*** | C29: A0A2P0 | D29: HARBOUR MAIN | E29: NL | F29: A0A2P9 | I29: Not Offered | J29: 1 | K29: 2400 | L29: 1 | M29: 2400 | N29: 2 | O29: 2400 | P29: 7 | Q29: 2400 | R29: No
A30: GREATER TORONTO AREA | B30: M5A*** | C30: A0A2R0 | D30: HOLYROOD | E30: NL | F30: A0A2R9 | I30: Not Offered | J30: 1 | K30: 2400 | L30: 1 | M30: 2400 | N30: 2 | O30: 2400 | P30: 7 | Q30: 2400 | R30: No
A31: GREATER TORONTO AREA | B31: M5A*** | C31: A0A2S0 | D31: JOBS COVE | E31: NL | F31: A0A2S9 | I31: Not Offered | J31: 2 | K31: 2400 | L31: 2 | M31: 2400 | N31: 3 | O31: 2400 | P31: 8 | Q31: 2400 | R31: No
A32: GREATER TORONTO AREA | B32: M5A*** | C32: A0A2W0 | D32: LOWER ISLAND COVE | E32: NL | F32: A0A2W9 | I32: Not Offered | J32: 1 | K32: 2400 | L32: 1 | M32: 2400 | N32: 2 | O32: 2400 | P32: 8 | Q32: 2400 | R32: No
A33: GREATER TORONTO AREA | B33: M5A*** | C33: A0A2X0 | D33: MAKINSONS | E33: NL | F33: A0A2X9 | I33: Not Offered | J33: 1 | K33: 2400 | L33: 1 | M33: 2400 | N33: 2 | O33: 2400 | P33: 7 | Q33: 2400 | R33: No
A34: GREATER TORONTO AREA | B34: M5A*** | C34: A0A2Z0 | D34: MARYSVALE | E34: NL | F34: A0A2Z9 | I34: Not Offered | J34: 1 | K34: 2400 | L34: 1 | M34: 2400 | N34: 2 | O34: 2400 | P34: 7 | Q34: 2400 | R34: No
A35: GREATER TORONTO AREA | B35: M5A*** | C35: A0A3A0 | D35: MOBILE | E35: NL | F35: A0A3A9 | I35: Not Offered | J35: 1 | K35: 2400 | L35: 1 | M35: 2400 | N35: 2 | O35: 2400 | P35: 8 | Q35: 2400 | R35: No
A36: GREATER TORONTO AREA | B36: M5A*** | C36: A0A3B0 | D36: NORTHERN BAY | E36: NL | F36: A0A3B9 | I36: Not Offered | J36: 2 | K36: 2400 | L36: 2 | M36: 2400 | N36: 3 | O36: 2400 | P36: 8 | Q36: 2400 | R36: No
A37: GREATER TORONTO AREA | B37: M5A*** | C37: A0A3C0 | D37: NORTH RIVER | E37: NL | F37: A0A3C9 | I37: Not Offered | J37: 1 | K37: 2400 | L37: 1 | M37: 2400 | N37: 2 | O37: 2400 | P37: 7 | Q37: 2400 | R37: No
A38: GREATER TORONTO AREA | B38: M5A*** | C38: A0A3E0 | D38: OCHRE PIT COVE | E38: NL | F38: A0A3E9 | I38: Not Offered | J38: 2 | K38: 2400 | L38: 2 | M38: 2400 | N38: 3 | O38: 2400 | P38: 8 | Q38: 2400 | R38: No
A39: GREATER TORONTO AREA | B39: M5A*** | C39: A0A3G0 | D39: OLD PERLICAN | E39: NL | F39: A0A3G9 | G39: 0 | I39: Not Offered | J39: 2 | K39: 2400 | L39: 2 | M39: 2400 | N39: 3 | O39: 2400 | P39: 8 | Q39: 2400 | R39: No
A40: GREATER TORONTO AREA | B40: M5A*** | C40: A0A3G0 | D40: DANIELS COVE | E40: NL | F40: A0A3G0 | G40: 1 | I40: Not Offered | J40: 1 | K40: 2400 | L40: 1 | M40: 2400 | N40: 2 | O40: 2400 | P40: 8 | Q40: 2400 | R40: No
A41: GREATER TORONTO AREA | B41: M5A*** | C41: A0A3H0 | D41: PETTY HARBOUR | E41: NL | F41: A0A3H9 | G41: 0 | I41: Not Offered | J41: 1 | K41: 2400 | L41: 1 | M41: 2400 | N41: 2 | O41: 2400 | P41: 7 | Q41: 2400 | R41: No
A42: GREATER TORONTO AREA | B42: M5A*** | C42: A0A3H0 | D42: MADDOX COVE | E42: NL | F42: A0A3H0 | G42: 1 | I42: Not Offered | J42: 1 | K42: 2400 | L42: 1 | M42: 2400 | N42: 2 | O42: 2400 | P42: 7 | Q42: 2400 | R42: No
A43: GREATER TORONTO AREA | B43: M5A*** | C43: A0A3J0 | D43: PORT DE GRAVE | E43: NL | F43: A0A3J9 | I43: Not Offered | J43: 1 | K43: 2400 | L43: 1 | M43: 2400 | N43: 2 | O43: 2400 | P43: 7 | Q43: 2400 | R43: No
A44: GREATER TORONTO AREA | B44: M5A*** | C44: A0A3L0 | D44: POUCH COVE | E44: NL | F44: A0A3L9 | I44: Not Offered | J44: 1 | K44: 2400 | L44: 1 | M44: 2400 | N44: 2 | O44: 2400 | P44: 7 | Q44: 2400 | R44: No
A45: GREATER TORONTO AREA | B45: M5A*** | C45: A0A3M0 | D45: RED HEAD COVE | E45: NL | F45: A0A3M9 | I45: Not Offered | J45: 2 | K45: 2400 | L45: 2 | M45: 2400 | N45: 3 | O45: 2400 | P45: 8 | Q45: 2400 | R45: No
A46: GREATER TORONTO AREA | B46: M5A*** | C46: A0A3N0 | D46: RENEWS | E46: NL | F46: A0A3N9 | I46: Not Offered | J46: 1 | K46: 2400 | L46: 1 | M46: 2400 | N46: 2 | O46: 2400 | P46: 8 | Q46: 2400 | R46: No
A47: GREATER TORONTO AREA | B47: M5A*** | C47: A0A3P0 | D47: RIVERHEAD HARBOUR GRACE | E47: NL | F47: A0A3P9 | I47: Not Offered | J47: 1 | K47: 2400 | L47: 1 | M47: 2400 | N47: 2 | O47: 2400 | P47: 7 | Q47: 2400 | R47: No
A48: GREATER TORONTO AREA | B48: M5A*** | C48: A0A3R0 | D48: ST SHOTTS | E48: NL | F48: A0A3R9 | I48: Not Offered | J48: 1 | K48: 2400 | L48: 1 | M48: 2400 | N48: 2 | O48: 2400 | P48: 8 | Q48: 2400 | R48: No
A49: GREATER TORONTO AREA | B49: M5A*** | C49: A0A3S0 | D49: SALMON COVE BDV | E49: NL | F49: A0A3S9 | G49: 0 | I49: Not Offered | J49: 1 | K49: 2400 | L49: 1 | M49: 2400 | N49: 2 | O49: 2400 | P49: 8 | Q49: 2400 | R49: No
A50: GREATER TORONTO AREA | B50: M5A*** | C50: A0A3S0 | D50: PERRYS COVE | E50: NL | F50: A0A3S0 | G50: 1 | I50: Not Offered | J50: 2 | K50: 2400 | L50: 2 | M50: 2400 | N50: 3 | O50: 2400 | P50: 8 | Q50: 2400 | R50: No
A51: GREATER TORONTO AREA | B51: M5A*** | C51: A0A3S0 | D51: KINGSTON | E51: NL | F51: A0A3S0 | G51: 2 | I51: Not Offered | J51: 2 | K51: 2400 | L51: 2 | M51: 2400 | N51: 3 | O51: 2400 | P51: 8 | Q51: 2400 | R51: No
A52: GREATER TORONTO AREA | B52: M5A*** | C52: A0A3V0 | D52: SHEARSTOWN | E52: NL | F52: A0A3V9 | I52: Not Offered | J52: 1 | K52: 2400 | L52: 1 | M52: 2400 | N52: 2 | O52: 2400 | P52: 7 | Q52: 2400 | R52: No
A53: GREATER TORONTO AREA | B53: M5A*** | C53: A0A3W0 | D53: SOUTH RIVER | E53: NL | F53: A0A3W9 | I53: Not Offered | J53: 1 | K53: 2400 | L53: 1 | M53: 2400 | N53: 2 | O53: 2400 | P53: 7 | Q53: 2400 | R53: No
A54: GREATER TORONTO AREA | B54: M5A*** | C54: A0A3X0 | D54: SPANIARDS BAY | E54: NL | F54: A0A3X9 | I54: Not Offered | J54: 1 | K54: 2400 | L54: 1 | M54: 2400 | N54: 2 | O54: 2400 | P54: 7 | Q54: 2400 | R54: No
A55: GREATER TORONTO AREA | B55: M5A*** | C55: A0A4A0 | D55: TORS COVE | E55: NL | F55: A0A4A9 | I55: Not Offered | J55: 1 | K55: 2400 | L55: 1 | M55: 2400 | N55: 2 | O55: 2400 | P55: 8 | Q55: 2400 | R55: No
A56: GREATER TORONTO AREA | B56: M5A*** | C56: A0A4B0 | D56: TREPASSEY | E56: NL | F56: A0A4B9 | I56: Not Offered | J56: 1 | K56: 2400 | L56: 1 | M56: 2400 | N56: 2 | O56: 2400 | P56: 8 | Q56: 2400 | R56: No
A57: GREATER TORONTO AREA | B57: M5A*** | C57: A0A4E0 | D57: UPPER ISLAND COVE | E57: NL | F57: A0A4E9 | I57: Not Offered | J57: 1 | K57: 2400 | L57: 1 | M57: 2400 | N57: 2 | O57: 2400 | P57: 7 | Q57: 2400 | R57: No
A58: GREATER TORONTO AREA | B58: M5A*** | C58: A0A4G0 | D58: VICTORIA CB | E58: NL | F58: A0A4G9 | I58: Not Offered | J58: 1 | K58: 2400 | L58: 1 | M58: 2400 | N58: 2 | O58: 2400 | P58: 8 | Q58: 2400 | R58: No
A59: GREATER TORONTO AREA | B59: M5A*** | C59: A0A4H0 | D59: BELL ISLAND | E59: NL | F59: A0A4H9 | G59: 0 | I59: Not Offered | J59: 1 | K59: 2400 | L59: 1 | M59: 2400 | N59: 2 | O59: 2400 | P59: 8 | Q59: 2400 | R59: No
A60: GREATER TORONTO AREA | B60: M5A*** | C60: A0A4H0 | D60: FRESHWATER | E60: NL | F60: A0A4H0 | G60: 1 | I60: Not Offered | J60: 1 | K60: 2400 | L60: 1 | M60: 2400 | N60: 2 | O60: 2400 | P60: 8 | Q60: 2400 | R60: No
A61: GREATER TORONTO AREA | B61: M5A*** | C61: A0A4J0 | D61: WESTERN BAY | E61: NL | F61: A0A4J9 | I61: Not Offered | J61: 2 | K61: 2400 | L61: 2 | M61: 2400 | N61: 3 | O61: 2400 | P61: 8 | Q61: 2400 | R61: No
A62: GREATER TORONTO AREA | B62: M5A*** | C62: A0A4K0 | D62: WITLESS BAY | E62: NL | F62: A0A4K9 | I62: Not Offered | J62: 1 | K62: 2400 | L62: 1 | M62: 2400 | N62: 2 | O62: 2400 | P62: 8 | Q62: 2400 | R62: No
A63: GREATER TORONTO AREA | B63: M5A*** | C63: A0A4L0 | D63: WOODFORDS | E63: NL | F63: A0A4L9 | I63: Not Offered | J63: 1 | K63: 2400 | L63: 1 | M63: 2400 | N63: 2 | O63: 2400 | P63: 8 | Q63: 2400 | R63: No
A64: GREATER TORONTO AREA | B64: M5A*** | C64: A0B1A0 | D64: ARNOLDS COVE | E64: NL | F64: A0B1A9 | I64: Not Offered | J64: 3 | K64: 2400 | L64: 3 | M64: 2400 | N64: 4 | O64: 2400 | P64: 10 | Q64: 2400 | R64: No
A65: GREATER TORONTO AREA | B65: M5A*** | C65: A0B1B0 | D65: BELLEVUE | E65: NL | F65: A0B1B9 | I65: Not Offered | J65: 1 | K65: 2400 | L65: 1 | M65: 2400 | N65: 2 | O65: 2400 | P65: 8 | Q65: 2400 | R65: No
A66: GREATER TORONTO AREA | B66: M5A*** | C66: A0B1C0 | D66: BLAKETOWN | E66: NL | F66: A0B1C9 | I66: Not Offered | J66: 1 | K66: 2400 | L66: 1 | M66: 2400 | N66: 2 | O66: 2400 | P66: 8 | Q66: 2400 | R66: No
A67: GREATER TORONTO AREA | B67: M5A*** | C67: A0B1E0 | D67: BRANCH | E67: NL | F67: A0B1E9 | I67: Not Offered | J67: 1 | K67: 2400 | L67: 1 | M67: 2400 | N67: 2 | O67: 2400 | P67: 8 | Q67: 2400 | R67: No
A68: GREATER TORONTO AREA | B68: M5A*** | C68: A0B1G0 | D68: BRIGUS JUNCTION | E68: NL | F68: A0B1G9 | I68: Not Offered | J68: 1 | K68: 2400 | L68: 1 | M68: 2400 | N68: 2 | O68: 2400 | P68: 8 | Q68: 2400 | R68: No
A69: GREATER TORONTO AREA | B69: M5A*** | C69: A0B1H0 | D69: BROWNSDALE | E69: NL | F69: A0B1H9 | G69: 0 | I69: Not Offered | J69: 2 | K69: 2400 | L69: 2 | M69: 2400 | N69: 3 | O69: 2400 | P69: 8 | Q69: 2400 | R69: No
A70: GREATER TORONTO AREA | B70: M5A*** | C70: A0B1H0 | D70: SIBLEYS COVE | E70: NL | F70: A0B1H0 | G70: 1 | I70: Not Offered | J70: 2 | K70: 2400 | L70: 2 | M70: 2400 | N70: 3 | O70: 2400 | P70: 8 | Q70: 2400 | R70: No
A71: GREATER TORONTO AREA | B71: M5A*** | C71: A0B1J0 | D71: CAVENDISH | E71: NL | F71: A0B1J9 | I71: Not Offered | J71: 1 | K71: 2400 | L71: 1 | M71: 2400 | N71: 2 | O71: 2400 | P71: 7 | Q71: 2400 | R71: No
A72: GREATER TORONTO AREA | B72: M5A*** | C72: A0B1K0 | D72: CHANCE COVE | E72: NL | F72: A0B1K9 | I72: Not Offered | J72: 1 | K72: 2400 | L72: 1 | M72: 2400 | N72: 2 | O72: 2400 | P72: 8 | Q72: 2400 | R72: No
A73: GREATER TORONTO AREA | B73: M5A*** | C73: A0B1L0 | D73: CHAPEL ARM | E73: NL | F73: A0B1L9 | I73: Not Offered | J73: 1 | K73: 2400 | L73: 1 | M73: 2400 | N73: 2 | O73: 2400 | P73: 8 | Q73: 2400 | R73: No
A74: GREATER TORONTO AREA | B74: M5A*** | C74: A0B1M0 | D74: COLINET | E74: NL | F74: A0B1M9 | I74: Not Offered | J74: 1 | K74: 2400 | L74: 1 | M74: 2400 | N74: 2 | O74: 2400 | P74: 8 | Q74: 2400 | R74: No
A75: GREATER TORONTO AREA | B75: M5A*** | C75: A0B1N0 | D75: COME BY CHANCE | E75: NL | F75: A0B1N9 | I75: Not Offered | J75: 3 | K75: 2400 | L75: 3 | M75: 2400 | N75: 4 | O75: 2400 | P75: 10 | Q75: 2400 | R75: No
A76: GREATER TORONTO AREA | B76: M5A*** | C76: A0B1P0 | D76: DILDO | E76: NL | F76: A0B1P9 | I76: Not Offered | J76: 1 | K76: 2400 | L76: 1 | M76: 2400 | N76: 2 | O76: 2400 | P76: 8 | Q76: 2400 | R76: No
A77: GREATER TORONTO AREA | B77: M5A*** | C77: A0B1R0 | D77: SOUTH DILDO | E77: NL | F77: A0B1R9 | I77: Not Offered | J77: 1 | K77: 2400 | L77: 1 | M77: 2400 | N77: 2 | O77: 2400 | P77: 8 | Q77: 2400 | R77: No
A78: GREATER TORONTO AREA | B78: M5A*** | C78: A0B1S0 | D78: DUNVILLE | E78: NL | F78: A0B1S9 | I78: Not Offered | J78: 1 | K78: 2400 | L78: 1 | M78: 2400 | N78: 2 | O78: 2400 | P78: 7 | Q78: 2400 | R78: No
A79: GREATER TORONTO AREA | B79: M5A*** | C79: A0B1T0 | D79: FAIR HAVEN | E79: NL | F79: A0B1T9 | I79: Not Offered | J79: 1 | K79: 2400 | L79: 1 | M79: 2400 | N79: 2 | O79: 2400 | P79: 8 | Q79: 2400 | R79: No
A80: GREATER TORONTO AREA | B80: M5A*** | C80: A0B1V0 | D80: FOX HARBOUR PB | E80: NL | F80: A0B1V9 | I80: Not Offered | J80: 1 | K80: 2400 | L80: 1 | M80: 2400 | N80: 2 | O80: 2400 | P80: 8 | Q80: 2400 | R80: No
A81: GREATER TORONTO AREA | B81: M5A*** | C81: A0B1W0 | D81: FRESHWATER PB | E81: NL | F81: A0B1W9 | G81: 0 | I81: Not Offered | J81: 1 | K81: 2400 | L81: 1 | M81: 2400 | N81: 2 | O81: 2400 | P81: 7 | Q81: 2400 | R81: No
A82: GREATER TORONTO AREA | B82: M5A*** | C82: A0B1W0 | D82: ARGENTIA | E82: NL | F82: A0B1W0 | G82: 1 | I82: Not Offered | J82: 1 | K82: 2400 | L82: 1 | M82: 2400 | N82: 2 | O82: 2400 | P82: 7 | Q82: 2400 | R82: No
A83: GREATER TORONTO AREA | B83: M5A*** | C83: A0B1X0 | D83: GREENS HARBOUR | E83: NL | F83: A0B1X9 | I83: Not Offered | J83: 1 | K83: 2400 | L83: 1 | M83: 2400 | N83: 2 | O83: 2400 | P83: 8 | Q83: 2400 | R83: No
A84: GREATER TORONTO AREA | B84: M5A*** | C84: A0B1Y0 | D84: HANTS HARBOUR | E84: NL | F84: A0B1Y9 | I84: Not Offered | J84: 1 | K84: 2400 | L84: 1 | M84: 2400 | N84: 2 | O84: 2400 | P84: 8 | Q84: 2400 | R84: No
A85: GREATER TORONTO AREA | B85: M5A*** | C85: A0B1Z0 | D85: HEART S CONTENT | E85: NL | F85: A0B1Z9 | I85: Not Offered | J85: 1 | K85: 2400 | L85: 1 | M85: 2400 | N85: 2 | O85: 2400 | P85: 8 | Q85: 2400 | R85: No
A86: GREATER TORONTO AREA | B86: M5A*** | C86: A0B2A0 | D86: HEART S DELIGHT | E86: NL | F86: A0B2A9 | I86: Not Offered | J86: 1 | K86: 2400 | L86: 1 | M86: 2400 | N86: 2 | O86: 2400 | P86: 7 | Q86: 2400 | R86: No
A87: GREATER TORONTO AREA | B87: M5A*** | C87: A0B2B0 | D87: HEART S DESIRE | E87: NL | F87: A0B2B9 | I87: Not Offered | J87: 1 | K87: 2400 | L87: 1 | M87: 2400 | N87: 2 | O87: 2400 | P87: 7 | Q87: 2400 | R87: No
A88: GREATER TORONTO AREA | B88: M5A*** | C88: A0B2C0 | D88: HOPEALL | E88: NL | F88: A0B2C9 | I88: Not Offered | J88: 1 | K88: 2400 | L88: 1 | M88: 2400 | N88: 2 | O88: 2400 | P88: 7 | Q88: 2400 | R88: No
A89: GREATER TORONTO AREA | B89: M5A*** | C89: A0B2E0 | D89: ISLINGTON | E89: NL | F89: A0B2E9 | I89: Not Offered | J89: 1 | K89: 2400 | L89: 1 | M89: 2400 | N89: 2 | O89: 2400 | P89: 8 | Q89: 2400 | R89: No
A90: GREATER TORONTO AREA | B90: M5A*** | C90: A0B2G0 | D90: JERSEYSIDE | E90: NL | F90: A0B2G9 | I90: Not Offered | J90: 1 | K90: 2400 | L90: 1 | M90: 2400 | N90: 2 | O90: 2400 | P90: 8 | Q90: 2400 | R90: No
A91: GREATER TORONTO AREA | B91: M5A*** | C91: A0B2H0 | D91: LITTLE HARBOUR EAST PB | E91: NL | F91: A0B2H9 | I91: Not Offered | J91: 1 | K91: 2400 | L91: 1 | M91: 2400 | N91: 2 | O91: 2400 | P91: 7 | Q91: 2400 | R91: No
A92: GREATER TORONTO AREA | B92: M5A*** | C92: A0B2J0 | D92: LONG HARBOUR | E92: NL | F92: A0B2J9 | I92: Not Offered | J92: 1 | K92: 2400 | L92: 1 | M92: 2400 | N92: 2 | O92: 2400 | P92: 8 | Q92: 2400 | R92: No
A93: GREATER TORONTO AREA | B93: M5A*** | C93: A0B2L0 | D93: MOUNT ARLINGTON HEIGHTS | E93: NL | F93: A0B2L9 | I93: Not Offered | J93: 1 | K93: 2400 | L93: 1 | M93: 2400 | N93: 2 | O93: 2400 | P93: 8 | Q93: 2400 | R93: No
A94: GREATER TORONTO AREA | B94: M5A*** | C94: A0B2M0 | D94: MOUNT CARMEL | E94: NL | F94: A0B2M9 | I94: Not Offered | J94: 1 | K94: 2400 | L94: 1 | M94: 2400 | N94: 2 | O94: 2400 | P94: 8 | Q94: 2400 | R94: No
A95: GREATER TORONTO AREA | B95: M5A*** | C95: A0B2N0 | D95: NEW CHELSEA | E95: NL | F95: A0B2N9 | I95: Not Offered | J95: 2 | K95: 2400 | L95: 2 | M95: 2400 | N95: 3 | O95: 2400 | P95: 8 | Q95: 2400 | R95: No
A96: GREATER TORONTO AREA | B96: M5A*** | C96: A0B2P0 | D96: NEW HARBOUR TB | E96: NL | F96: A0B2P9 | I96: Not Offered | J96: 1 | K96: 2400 | L96: 1 | M96: 2400 | N96: 2 | O96: 2400 | P96: 8 | Q96: 2400 | R96: No
A97: GREATER TORONTO AREA | B97: M5A*** | C97: A0B2R0 | D97: NEW MELBOURNE | E97: NL | F97: A0B2R9 | I97: Not Offered | J97: 2 | K97: 2400 | L97: 2 | M97: 2400 | N97: 3 | O97: 2400 | P97: 8 | Q97: 2400 | R97: No
A98: GREATER TORONTO AREA | B98: M5A*** | C98: A0B2S0 | D98: NEW PERLICAN | E98: NL | F98: A0B2S9 | I98: Not Offered | J98: 2 | K98: 2400 | L98: 2 | M98: 2400 | N98: 3 | O98: 2400 | P98: 8 | Q98: 2400 | R98: No
A99: GREATER TORONTO AREA | B99: M5A*** | C99: A0B2T0 | D99: NORMANS COVE | E99: NL | F99: A0B2T9 | I99: Not Offered | J99: 1 | K99: 2400 | L99: 1 | M99: 2400 | N99: 2 | O99: 2400 | P99: 7 | Q99: 2400 | R99: No
A100: GREATER TORONTO AREA | B100: M5A*** | C100: A0B2V0 | D100: NORTH HARBOUR SMB | E100: NL | F100: A0B2V9 | I100: Not Offered | J100: 1 | K100: 2400 | L100: 1 | M100: 2400 | N100: 2 | O100: 2400 | P100: 8 | Q100: 2400 | R100: No
A101: GREATER TORONTO AREA | B101: M5A*** | C101: A0B2W0 | D101: OLD SHOP | E101: NL | F101: A0B2W9 | I101: Not Offered | J101: 1 | K101: 2400 | L101: 1 | M101: 2400 | N101: 2 | O101: 2400 | P101: 8 | Q101: 2400 | R101: No
A102: GREATER TORONTO AREA | B102: M5A*** | C102: A0B2Y0 | D102: PLACENTIA | E102: NL | F102: A0B2Y9 | G102: 0 | I102: Not Offered | J102: 1 | K102: 2400 | L102: 1 | M102: 2400 | N102: 2 | O102: 2400 | P102: 7 | Q102: 2400 | R102: No
A103: GREATER TORONTO AREA | B103: M5A*** | C103: A0B2Y0 | D103: ANGELS COVE | E103: NL | F103: A0B2Y0 | G103: 1 | I103: Not Offered | J103: 1 | K103: 2400 | L103: 1 | M103: 2400 | N103: 2 | O103: 2400 | P103: 8 | Q103: 2400 | R103: No
A104: GREATER TORONTO AREA | B104: M5A*** | C104: A0B2Y0 | D104: CUSLETT | E104: NL | F104: A0B2Y0 | G104: 2 | I104: Not Offered | J104: 1 | K104: 2400 | L104: 1 | M104: 2400 | N104: 2 | O104: 2400 | P104: 8 | Q104: 2400 | R104: No
A105: GREATER TORONTO AREA | B105: M5A*** | C105: A0B2Y0 | D105: GREAT BARRISWAY | E105: NL | F105: A0B2Y0 | G105: 3 | I105: Not Offered | J105: 1 | K105: 2400 | L105: 1 | M105: 2400 | N105: 2 | O105: 2400 | P105: 8 | Q105: 2400 | R105: No
A106: GREATER TORONTO AREA | B106: M5A*** | C106: A0B2Y0 | D106: PATRICKS COVE | E106: NL | F106: A0B2Y0 | G106: 4 | I106: Not Offered | J106: 1 | K106: 2400 | L106: 1 | M106: 2400 | N106: 2 | O106: 2400 | P106: 8 | Q106: 2400 | R106: No
A107: GREATER TORONTO AREA | B107: M5A*** | C107: A0B2Y0 | D107: POINT VERDE | E107: NL | F107: A0B2Y0 | G107: 5 | I107: Not Offered | J107: 1 | K107: 2400 | L107: 1 | M107: 2400 | N107: 2 | O107: 2400 | P107: 8 | Q107: 2400 | R107: No
A108: GREATER TORONTO AREA | B108: M5A*** | C108: A0B2Z0 | D108: ST BRIDES | E108: NL | F108: A0B2Z9 | I108: Not Offered | J108: 1 | K108: 2400 | L108: 1 | M108: 2400 | N108: 2 | O108: 2400 | P108: 8 | Q108: 2400 | R108: No
A109: GREATER TORONTO AREA | B109: M5A*** | C109: A0B3A0 | D109: ST JOSEPHS SAL | E109: NL | F109: A0B3A9 | G109: 0 | I109: Not Offered | J109: 1 | K109: 2400 | L109: 1 | M109: 2400 | N109: 2 | O109: 2400 | P109: 8 | Q109: 2400 | R109: No
A110: GREATER TORONTO AREA | B110: M5A*** | C110: A0B3A0 | D110: O DONNELLS | E110: NL | F110: A0B3A0 | G110: 1 | I110: Not Offered | J110: 1 | K110: 2400 | L110: 1 | M110: 2400 | N110: 2 | O110: 2400 | P110: 8 | Q110: 2400 | R110: No
A111: GREATER TORONTO AREA | B111: M5A*** | C111: A0B3A0 | D111: ADMIRALS BEACH | E111: NL | F111: A0B3A0 | G111: 2 | I111: Not Offered | J111: 1 | K111: 2400 | L111: 1 | M111: 2400 | N111: 2 | O111: 2400 | P111: 8 | Q111: 2400 | R111: No
A112: GREATER TORONTO AREA | B112: M5A*** | C112: A0B3B0 | D112: ST MARYS | E112: NL | F112: A0B3B9 | G112: 0 | I112: Not Offered | J112: 1 | K112: 2400 | L112: 1 | M112: 2400 | N112: 2 | O112: 2400 | P112: 8 | Q112: 2400 | R112: No
A113: GREATER TORONTO AREA | B113: M5A*** | C113: A0B3B0 | D113: PATH END | E113: NL | F113: A0B3B0 | G113: 1 | I113: Not Offered | J113: 1 | K113: 2400 | L113: 1 | M113: 2400 | N113: 2 | O113: 2400 | P113: 8 | Q113: 2400 | R113: No
A114: GREATER TORONTO AREA | B114: M5A*** | C114: A0B3B0 | D114: POINT LA HAYE | E114: NL | F114: A0B3B0 | G114: 2 | I114: Not Offered | J114: 1 | K114: 2400 | L114: 1 | M114: 2400 | N114: 2 | O114: 2400 | P114: 8 | Q114: 2400 | R114: No
A115: GREATER TORONTO AREA | B115: M5A*** | C115: A0B3B0 | D115: RIVERHEAD | E115: NL | F115: A0B3B0 | G115: 3 | I115: Not Offered | J115: 1 | K115: 2400 | L115: 1 | M115: 2400 | N115: 2 | O115: 2400 | P115: 7 | Q115: 2400 | R115: No
A116: GREATER TORONTO AREA | B116: M5A*** | C116: A0B3B0 | D116: GASKIERS | E116: NL | F116: A0B3B0 | G116: 4 | I116: Not Offered | J116: 1 | K116: 2400 | L116: 1 | M116: 2400 | N116: 2 | O116: 2400 | P116: 7 | Q116: 2400 | R116: No
A117: GREATER TORONTO AREA | B117: M5A*** | C117: A0B3B0 | D117: MALL BAY | E117: NL | F117: A0B3B0 | G117: 5 | I117: Not Offered | J117: 1 | K117: 2400 | L117: 1 | M117: 2400 | N117: 2 | O117: 2400 | P117: 8 | Q117: 2400 | R117: No
A118: GREATER TORONTO AREA | B118: M5A*** | C118: A0B3C0 | D118: ST VINCENTS | E118: NL | F118: A0B3C9 | G118: 0 | I118: Not Offered | J118: 1 | K118: 2400 | L118: 1 | M118: 2400 | N118: 2 | O118: 2400 | P118: 8 | Q118: 2400 | R118: No
A119: GREATER TORONTO AREA | B119: M5A*** | C119: A0B3C0 | D119: ST STEPHEN | E119: NL | F119: A0B3C0 | G119: 1 | I119: Not Offered | J119: 1 | K119: 2400 | L119: 1 | M119: 2400 | N119: 2 | O119: 2400 | P119: 8 | Q119: 2400 | R119: No
A120: GREATER TORONTO AREA | B120: M5A*** | C120: A0B3C0 | D120: PETERS RIVER | E120: NL | F120: A0B3C0 | G120: 2 | I120: Not Offered | J120: 1 | K120: 2400 | L120: 1 | M120: 2400 | N120: 2 | O120: 2400 | P120: 8 | Q120: 2400 | R120: No
A121: GREATER TORONTO AREA | B121: M5A*** | C121: A0B3E0 | D121: SHIP HARBOUR PB | E121: NL | F121: A0B3E9 | I121: Not Offered | J121: 1 | K121: 2400 | L121: 1 | M121: 2400 | N121: 2 | O121: 2400 | P121: 8 | Q121: 2400 | R121: No
A122: GREATER TORONTO AREA | B122: M5A*** | C122: A0B3H0 | D122: SOUTHERN HARBOUR PB | E122: NL | F122: A0B3H9 | I122: Not Offered | J122: 1 | K122: 2400 | L122: 1 | M122: 2400 | N122: 2 | O122: 2400 | P122: 8 | Q122: 2400 | R122: No
A123: GREATER TORONTO AREA | B123: M5A*** | C123: A0B3J0 | D123: SUNNYSIDE | E123: NL | F123: A0B3J9 | I123: Not Offered | J123: 3 | K123: 2400 | L123: 3 | M123: 2400 | N123: 4 | O123: 2400 | P123: 10 | Q123: 2400 | R123: No
A124: GREATER TORONTO AREA | B124: M5A*** | C124: A0B3K0 | D124: WHITBOURNE | E124: NL | F124: A0B3K9 | G124: 0 | I124: Not Offered | J124: 1 | K124: 2400 | L124: 1 | M124: 2400 | N124: 2 | O124: 2400 | P124: 8 | Q124: 2400 | R124: No
A125: GREATER TORONTO AREA | B125: M5A*** | C125: A0B3K0 | D125: MARKLAND | E125: NL | F125: A0B3K0 | G125: 1 | I125: Not Offered | J125: 1 | K125: 2400 | L125: 1 | M125: 2400 | N125: 2 | O125: 2400 | P125: 8 | Q125: 2400 | R125: No
A126: GREATER TORONTO AREA | B126: M5A*** | C126: A0B3L0 | D126: WHITEWAY | E126: NL | F126: A0B3L9 | I126: Not Offered | J126: 1 | K126: 2400 | L126: 1 | M126: 2400 | N126: 2 | O126: 2400 | P126: 8 | Q126: 2400 | R126: No
A127: GREATER TORONTO AREA | B127: M5A*** | C127: A0B3M0 | D127: WINTERTON | E127: NL | F127: A0B3M9 | I127: Not Offered | J127: 2 | K127: 2400 | L127: 2 | M127: 2400 | N127: 3 | O127: 2400 | P127: 8 | Q127: 2400 | R127: No
A128: GREATER TORONTO AREA | B128: M5A*** | C128: A0C1A0 | D128: BLOOMFIELD | E128: NL | F128: A0C1A9 | I128: Not Offered | J128: 3 | K128: 2400 | L128: 3 | M128: 2400 | N128: 4 | O128: 2400 | P128: 10 | Q128: 2400 | R128: No
A129: GREATER TORONTO AREA | B129: M5A*** | C129: A0C1B0 | D129: BONAVISTA | E129: NL | F129: A0C1B9 | I129: Not Offered | J129: 3 | K129: 2400 | L129: 3 | M129: 2400 | N129: 4 | O129: 2400 | P129: 10 | Q129: 2400 | R129: No
A130: GREATER TORONTO AREA | B130: M5A*** | C130: A0C1E0 | D130: BUNYANS COVE | E130: NL | F130: A0C1E9 | I130: Not Offered | J130: 3 | K130: 2400 | L130: 3 | M130: 2400 | N130: 4 | O130: 2400 | P130: 10 | Q130: 2400 | R130: No
A131: GREATER TORONTO AREA | B131: M5A*** | C131: A0C1G0 | D131: BURGOYNES COVE | E131: NL | F131: A0C1G9 | I131: Not Offered | J131: 3 | K131: 2400 | L131: 3 | M131: 2400 | N131: 4 | O131: 2400 | P131: 10 | Q131: 2400 | R131: No
A132: GREATER TORONTO AREA | B132: M5A*** | C132: A0C1H0 | D132: CANNINGS COVE | E132: NL | F132: A0C1H9 | I132: Not Offered | J132: 3 | K132: 2400 | L132: 3 | M132: 2400 | N132: 4 | O132: 2400 | P132: 10 | Q132: 2400 | R132: No
A133: GREATER TORONTO AREA | B133: M5A*** | C133: A0C1J0 | D133: CATALINA | E133: NL | F133: A0C1J9 | I133: Not Offered | J133: 3 | K133: 2400 | L133: 3 | M133: 2400 | N133: 4 | O133: 2400 | P133: 10 | Q133: 2400 | R133: No
A134: GREATER TORONTO AREA | B134: M5A*** | C134: A0C1K0 | D134: CHARLESTON | E134: NL | F134: A0C1K9 | I134: Not Offered | J134: 3 | K134: 2400 | L134: 3 | M134: 2400 | N134: 4 | O134: 2400 | P134: 10 | Q134: 2400 | R134: No
A135: GREATER TORONTO AREA | B135: M5A*** | C135: A0C1L0 | D135: CHARLOTTETOWN | E135: NL | F135: A0C1L9 | G135: 0 | I135: Not Offered | J135: 3 | K135: 2400 | L135: 3 | M135: 2400 | N135: 4 | O135: 2400 | P135: 10 | Q135: 2400 | R135: No
A136: GREATER TORONTO AREA | B136: M5A*** | C136: A0C1L0 | D136: TERRA NOVA | E136: NL | F136: A0C1L0 | G136: 1 | I136: Not Offered | J136: 3 | K136: 2400 | L136: 3 | M136: 2400 | N136: 4 | O136: 2400 | P136: 10 | Q136: 2400 | R136: No
A137: GREATER TORONTO AREA | B137: M5A*** | C137: A0C1M0 | D137: DUNTARA | E137: NL | F137: A0C1M9 | I137: Not Offered | J137: 3 | K137: 2400 | L137: 3 | M137: 2400 | N137: 4 | O137: 2400 | P137: 10 | Q137: 2400 | R137: No
A138: GREATER TORONTO AREA | B138: M5A*** | C138: A0C1N0 | D138: ELLISTON | E138: NL | F138: A0C1N9 | I138: Not Offered | J138: 3 | K138: 2400 | L138: 3 | M138: 2400 | N138: 4 | O138: 2400 | P138: 10 | Q138: 2400 | R138: No
A139: GREATER TORONTO AREA | B139: M5A*** | C139: A0C1P0 | D139: HICKMANS HARBOUR | E139: NL | F139: A0C1P9 | I139: Not Offered | J139: 3 | K139: 2400 | L139: 3 | M139: 2400 | N139: 4 | O139: 2400 | P139: 10 | Q139: 2400 | R139: No
A140: GREATER TORONTO AREA | B140: M5A*** | C140: A0C1R0 | D140: KEELS | E140: NL | F140: A0C1R9 | I140: Not Offered | J140: 3 | K140: 2400 | L140: 3 | M140: 2400 | N140: 4 | O140: 2400 | P140: 10 | Q140: 2400 | R140: No
A141: GREATER TORONTO AREA | B141: M5A*** | C141: A0C1S0 | D141: KINGS COVE | E141: NL | F141: A0C1S9 | I141: Not Offered | J141: 3 | K141: 2400 | L141: 3 | M141: 2400 | N141: 4 | O141: 2400 | P141: 10 | Q141: 2400 | R141: No
A142: GREATER TORONTO AREA | B142: M5A*** | C142: A0C1T0 | D142: KNIGHTS COVE | E142: NL | F142: A0C1T9 | G142: 0 | I142: Not Offered | J142: 3 | K142: 2400 | L142: 3 | M142: 2400 | N142: 4 | O142: 2400 | P142: 10 | Q142: 2400 | R142: No
A143: GREATER TORONTO AREA | B143: M5A*** | C143: A0C1T0 | D143: STOCK COVE | E143: NL | F143: A0C1T0 | G143: 1 | I143: Not Offered | J143: 3 | K143: 2400 | L143: 3 | M143: 2400 | N143: 4 | O143: 2400 | P143: 10 | Q143: 2400 | R143: No
A144: GREATER TORONTO AREA | B144: M5A*** | C144: A0C1V0 | D144: LETHBRIDGE | E144: NL | F144: A0C1V9 | G144: 0 | I144: Not Offered | J144: 3 | K144: 2400 | L144: 3 | M144: 2400 | N144: 4 | O144: 2400 | P144: 10 | Q144: 2400 | R144: No
A145: GREATER TORONTO AREA | B145: M5A*** | C145: A0C1V0 | D145: JAMESTOWN | E145: NL | F145: A0C1V0 | G145: 1 | I145: Not Offered | J145: 3 | K145: 2400 | L145: 3 | M145: 2400 | N145: 4 | O145: 2400 | P145: 10 | Q145: 2400 | R145: No
A146: GREATER TORONTO AREA | B146: M5A*** | C146: A0C1V0 | D146: PORTLAND | E146: NL | F146: A0C1V0 | G146: 2 | I146: Not Offered | J146: 3 | K146: 2400 | L146: 3 | M146: 2400 | N146: 4 | O146: 2400 | P146: 10 | Q146: 2400 | R146: No
A147: GREATER TORONTO AREA | B147: M5A*** | C147: A0C1V0 | D147: WINTER BROOK | E147: NL | F147: A0C1V0 | G147: 3 | I147: Not Offered | J147: 3 | K147: 2400 | L147: 3 | M147: 2400 | N147: 4 | O147: 2400 | P147: 10 | Q147: 2400 | R147: No
A148: GREATER TORONTO AREA | B148: M5A*** | C148: A0C1W0 | D148: LITTLE CATALINA | E148: NL | F148: A0C1W9 | I148: Not Offered | J148: 3 | K148: 2400 | L148: 3 | M148: 2400 | N148: 4 | O148: 2400 | P148: 10 | Q148: 2400 | R148: No
A149: GREATER TORONTO AREA | B149: M5A*** | C149: A0C1Y0 | D149: MELROSE | E149: NL | F149: A0C1Y9 | I149: Not Offered | J149: 3 | K149: 2400 | L149: 3 | M149: 2400 | N149: 4 | O149: 2400 | P149: 10 | Q149: 2400 | R149: No
A150: GREATER TORONTO AREA | B150: M5A*** | C150: A0C1Z0 | D150: MUSGRAVETOWN | E150: NL | F150: A0C1Z9 | I150: Not Offered | J150: 3 | K150: 2400 | L150: 3 | M150: 2400 | N150: 4 | O150: 2400 | P150: 10 | Q150: 2400 | R150: No
A151: GREATER TORONTO AREA | B151: M5A*** | C151: A0C2A0 | D151: NEWMANS COVE | E151: NL | F151: A0C2A9 | I151: Not Offered | J151: 3 | K151: 2400 | L151: 3 | M151: 2400 | N151: 4 | O151: 2400 | P151: 10 | Q151: 2400 | R151: No
A152: GREATER TORONTO AREA | B152: M5A*** | C152: A0C2B0 | D152: OPEN HALL | E152: NL | F152: A0C2B9 | G152: 0 | I152: Not Offered | J152: 3 | K152: 2400 | L152: 3 | M152: 2400 | N152: 4 | O152: 2400 | P152: 10 | Q152: 2400 | R152: No
A153: GREATER TORONTO AREA | B153: M5A*** | C153: A0C2B0 | D153: RED CLIFFE | E153: NL | F153: A0C2B0 | G153: 1 | I153: Not Offered | J153: 3 | K153: 2400 | L153: 3 | M153: 2400 | N153: 4 | O153: 2400 | P153: 10 | Q153: 2400 | R153: No
A154: GREATER TORONTO AREA | B154: M5A*** | C154: A0C2C0 | D154: PLATE COVE EAST | E154: NL | F154: A0C2C9 | I154: Not Offered | J154: 3 | K154: 2400 | L154: 3 | M154: 2400 | N154: 4 | O154: 2400 | P154: 10 | Q154: 2400 | R154: No
A155: GREATER TORONTO AREA | B155: M5A*** | C155: A0C2E0 | D155: PLATE COVE WEST | E155: NL | F155: A0C2E9 | I155: Not Offered | J155: 3 | K155: 2400 | L155: 3 | M155: 2400 | N155: 4 | O155: 2400 | P155: 10 | Q155: 2400 | R155: No
A156: GREATER TORONTO AREA | B156: M5A*** | C156: A0C2G0 | D156: PORT BLANDFORD | E156: NL | F156: A0C2G9 | I156: Not Offered | J156: 3 | K156: 2400 | L156: 3 | M156: 2400 | N156: 4 | O156: 2400 | P156: 10 | Q156: 2400 | R156: No
A157: GREATER TORONTO AREA | B157: M5A*** | C157: A0C2H0 | D157: PORT REXTON | E157: NL | F157: A0C2H9 | G157: 0 | I157: Not Offered | J157: 3 | K157: 2400 | L157: 3 | M157: 2400 | N157: 4 | O157: 2400 | P157: 10 | Q157: 2400 | R157: No
A158: GREATER TORONTO AREA | B158: M5A*** | C158: A0C2H0 | D158: ENGLISH HARBOUR | E158: NL | F158: A0C2H0 | G158: 1 | I158: Not Offered | J158: 3 | K158: 2400 | L158: 3 | M158: 2400 | N158: 4 | O158: 2400 | P158: 10 | Q158: 2400 | R158: No
A159: GREATER TORONTO AREA | B159: M5A*** | C159: A0C2H0 | D159: CHAMPNEYS | E159: NL | F159: A0C2H0 | G159: 2 | I159: Not Offered | J159: 3 | K159: 2400 | L159: 3 | M159: 2400 | N159: 4 | O159: 2400 | P159: 10 | Q159: 2400 | R159: No
A160: GREATER TORONTO AREA | B160: M5A*** | C160: A0C2J0 | D160: PORT UNION | E160: NL | F160: A0C2J9 | I160: Not Offered | J160: 3 | K160: 2400 | L160: 3 | M160: 2400 | N160: 4 | O160: 2400 | P160: 10 | Q160: 2400 | R160: No
A161: GREATER TORONTO AREA | B161: M5A*** | C161: A0C2K0 | D161: PRINCETON | E161: NL | F161: A0C2K9 | I161: Not Offered | J161: 3 | K161: 2400 | L161: 3 | M161: 2400 | N161: 4 | O161: 2400 | P161: 10 | Q161: 2400 | R161: No
A162: GREATER TORONTO AREA | B162: M5A*** | C162: A0C2M0 | D162: SOUTHERN BAY | E162: NL | F162: A0C2M9 | I162: Not Offered | J162: 3 | K162: 2400 | L162: 3 | M162: 2400 | N162: 4 | O162: 2400 | P162: 10 | Q162: 2400 | R162: No
A163: GREATER TORONTO AREA | B163: M5A*** | C163: A0C2N0 | D163: SUMMERVILLE | E163: NL | F163: A0C2N9 | I163: Not Offered | J163: 3 | K163: 2400 | L163: 3 | M163: 2400 | N163: 4 | O163: 2400 | P163: 10 | Q163: 2400 | R163: No
A164: GREATER TORONTO AREA | B164: M5A*** | C164: A0C2P0 | D164: SWEET BAY | E164: NL | F164: A0C2P9 | I164: Not Offered | J164: 3 | K164: 2400 | L164: 3 | M164: 2400 | N164: 4 | O164: 2400 | P164: 10 | Q164: 2400 | R164: No
A165: GREATER TORONTO AREA | B165: M5A*** | C165: A0C2R0 | D165: TICKLE COVE | E165: NL | F165: A0C2R9 | I165: Not Offered | J165: 3 | K165: 2400 | L165: 3 | M165: 2400 | N165: 4 | O165: 2400 | P165: 10 | Q165: 2400 | R165: No
A166: GREATER TORONTO AREA | B166: M5A*** | C166: A0C2S0 | D166: TRINITY TB | E166: NL | F166: A0C2S9 | G166: 0 | I166: Not Offered | J166: 3 | K166: 2400 | L166: 3 | M166: 2400 | N166: 4 | O166: 2400 | P166: 10 | Q166: 2400 | R166: No
A167: GREATER TORONTO AREA | B167: M5A*** | C167: A0C2S0 | D167: LOCKSTON | E167: NL | F167: A0C2S0 | G167: 1 | I167: Not Offered | J167: 3 | K167: 2400 | L167: 3 | M167: 2400 | N167: 4 | O167: 2400 | P167: 10 | Q167: 2400 | R167: No
A168: GREATER TORONTO AREA | B168: M5A*** | C168: A0C2S0 | D168: NEW BONAVENTURE | E168: NL | F168: A0C2S0 | G168: 2 | I168: Not Offered | J168: 3 | K168: 2400 | L168: 3 | M168: 2400 | N168: 4 | O168: 2400 | P168: 10 | Q168: 2400 | R168: No
A169: GREATER TORONTO AREA | B169: M5A*** | C169: A0C2S0 | D169: DUNFIELD | E169: NL | F169: A0C2S0 | G169: 3 | I169: Not Offered | J169: 3 | K169: 2400 | L169: 3 | M169: 2400 | N169: 4 | O169: 2400 | P169: 10 | Q169: 2400 | R169: No
A170: GREATER TORONTO AREA | B170: M5A*** | C170: A0C2S0 | D170: TROUTY | E170: NL | F170: A0C2S0 | G170: 4 | I170: Not Offered | J170: 3 | K170: 2400 | L170: 3 | M170: 2400 | N170: 4 | O170: 2400 | P170: 10 | Q170: 2400 | R170: No
A171: GREATER TORONTO AREA | B171: M5A*** | C171: A0E1A0 | D171: BAINE HARBOUR | E171: NL | F171: A0E1A9 | I171: Not Offered | J171: 3 | K171: 2400 | L171: 3 | M171: 2400 | N171: 4 | O171: 2400 | P171: 10 | Q171: 2400 | R171: No
A172: GREATER TORONTO AREA | B172: M5A*** | C172: A0E1B0 | D172: BAY L ARGENT | E172: NL | F172: A0E1B9 | I172: Not Offered | J172: 3 | K172: 2400 | L172: 3 | M172: 2400 | N172: 4 | O172: 2400 | P172: 10 | Q172: 2400 | R172: No
A173: GREATER TORONTO AREA | B173: M5A*** | C173: A0E1C0 | D173: BOAT HARBOUR WEST | E173: NL | F173: A0E1C9 | I173: Not Offered | J173: 3 | K173: 2400 | L173: 3 | M173: 2400 | N173: 4 | O173: 2400 | P173: 10 | Q173: 2400 | R173: No
A174: GREATER TORONTO AREA | B174: M5A*** | C174: A0E1E0 | D174: BURIN | E174: NL | F174: A0E1E9 | I174: Not Offered | J174: 3 | K174: 2400 | L174: 3 | M174: 2400 | N174: 4 | O174: 2400 | P174: 10 | Q174: 2400 | R174: No
A175: GREATER TORONTO AREA | B175: M5A*** | C175: A0E1G0 | D175: BURIN BAY ARM | E175: NL | F175: A0E1G9 | I175: Not Offered | J175: 3 | K175: 2400 | L175: 3 | M175: 2400 | N175: 4 | O175: 2400 | P175: 10 | Q175: 2400 | R175: No
A176: GREATER TORONTO AREA | B176: M5A*** | C176: A0E1H0 | D176: PARKERS COVE | E176: NL | F176: A0E1H9 | I176: Not Offered | J176: 3 | K176: 2400 | L176: 3 | M176: 2400 | N176: 4 | O176: 2400 | P176: 10 | Q176: 2400 | R176: No
A177: GREATER TORONTO AREA | B177: M5A*** | C177: A0E1K0 | D177: CRESTON | E177: NL | F177: A0E1K9 | I177: Not Offered | J177: 3 | K177: 2400 | L177: 3 | M177: 2400 | N177: 4 | O177: 2400 | P177: 10 | Q177: 2400 | R177: No
A178: GREATER TORONTO AREA | B178: M5A*** | C178: A0E1L0 | D178: CRESTON NORTH | E178: NL | F178: A0E1L9 | I178: Not Offered | J178: 3 | K178: 2400 | L178: 3 | M178: 2400 | N178: 4 | O178: 2400 | P178: 10 | Q178: 2400 | R178: No
A179: GREATER TORONTO AREA | B179: M5A*** | C179: A0E1M0 | D179: ENGLISH HARBOUR EAST | E179: NL | F179: A0E1M9 | I179: Not Offered | J179: 5 | K179: 2400 | L179: 5 | M179: 2400 | N179: 6 | O179: 2400 | P179: 12 | Q179: 2400 | R179: No
A180: GREATER TORONTO AREA | B180: M5A*** | C180: A0E1N0 | D180: EPWORTH | E180: NL | F180: A0E1N9 | I180: Not Offered | J180: 3 | K180: 2400 | L180: 3 | M180: 2400 | N180: 4 | O180: 2400 | P180: 10 | Q180: 2400 | R180: No
A181: GREATER TORONTO AREA | B181: M5A*** | C181: A0E1P0 | D181: FORTUNE | E181: NL | F181: A0E1P9 | I181: Not Offered | J181: 3 | K181: 2400 | L181: 3 | M181: 2400 | N181: 4 | O181: 2400 | P181: 10 | Q181: 2400 | R181: No
A182: GREATER TORONTO AREA | B182: M5A*** | C182: A0E1R0 | D182: FRENCHMANS COVE FB | E182: NL | F182: A0E1R9 | I182: Not Offered | J182: 3 | K182: 2400 | L182: 3 | M182: 2400 | N182: 4 | O182: 2400 | P182: 10 | Q182: 2400 | R182: No
A183: GREATER TORONTO AREA | B183: M5A*** | C183: A0E1S0 | D183: GARDEN COVE PB | E183: NL | F183: A0E1S9 | I183: Not Offered | J183: 3 | K183: 2400 | L183: 3 | M183: 2400 | N183: 4 | O183: 2400 | P183: 10 | Q183: 2400 | R183: No
A184: GREATER TORONTO AREA | B184: M5A*** | C184: A0E1T0 | D184: GARNISH | E184: NL | F184: A0E1T9 | I184: Not Offered | J184: 3 | K184: 2400 | L184: 3 | M184: 2400 | N184: 4 | O184: 2400 | P184: 10 | Q184: 2400 | R184: No
A185: GREATER TORONTO AREA | B185: M5A*** | C185: A0E1V0 | D185: GOOSEBERRY COVE | E185: NL | F185: A0E1V9 | G185: 0 | I185: Not Offered | J185: 3 | K185: 2400 | L185: 3 | M185: 2400 | N185: 4 | O185: 2400 | P185: 10 | Q185: 2400 | R185: No
A186: GREATER TORONTO AREA | B186: M5A*** | C186: A0E1V0 | D186: BUTTER COVE | E186: NL | F186: A0E1V0 | G186: 1 | I186: Not Offered | J186: 3 | K186: 2400 | L186: 3 | M186: 2400 | N186: 4 | O186: 2400 | P186: 10 | Q186: 2400 | R186: No
A187: GREATER TORONTO AREA | B187: M5A*** | C187: A0E1V0 | D187: SOUTHPORT | E187: NL | F187: A0E1V0 | G187: 2 | I187: Not Offered | J187: 3 | K187: 2400 | L187: 3 | M187: 2400 | N187: 4 | O187: 2400 | P187: 10 | Q187: 2400 | R187: No
A188: GREATER TORONTO AREA | B188: M5A*** | C188: A0E1W0 | D188: GRAND BANK | E188: NL | F188: A0E1W9 | I188: Not Offered | J188: 3 | K188: 2400 | L188: 3 | M188: 2400 | N188: 4 | O188: 2400 | P188: 10 | Q188: 2400 | R188: No
A189: GREATER TORONTO AREA | B189: M5A*** | C189: A0E1X0 | D189: GRAND BEACH | E189: NL | F189: A0E1X9 | I189: Not Offered | J189: 3 | K189: 2400 | L189: 3 | M189: 2400 | N189: 4 | O189: 2400 | P189: 10 | Q189: 2400 | R189: No
A190: GREATER TORONTO AREA | B190: M5A*** | C190: A0E1Y0 | D190: GRAND LE PIERRE | E190: NL | F190: A0E1Y9 | I190: Not Offered | J190: 3 | K190: 2400 | L190: 3 | M190: 2400 | N190: 4 | O190: 2400 | P190: 10 | Q190: 2400 | R190: No
A191: GREATER TORONTO AREA | B191: M5A*** | C191: A0E1Z0 | D191: HARBOUR MILLE | E191: NL | F191: A0E1Z9 | I191: Not Offered | J191: 3 | K191: 2400 | L191: 3 | M191: 2400 | N191: 4 | O191: 2400 | P191: 10 | Q191: 2400 | R191: No
A192: GREATER TORONTO AREA | B192: M5A*** | C192: A0E2A0 | D192: HILLVIEW | E192: NL | F192: A0E2A9 | G192: 0 | I192: Not Offered | J192: 3 | K192: 2400 | L192: 3 | M192: 2400 | N192: 4 | O192: 2400 | P192: 10 | Q192: 2400 | R192: No
A193: GREATER TORONTO AREA | B193: M5A*** | C193: A0E2A0 | D193: ADEYTON | E193: NL | F193: A0E2A0 | G193: 1 | I193: Not Offered | J193: 3 | K193: 2400 | L193: 3 | M193: 2400 | N193: 4 | O193: 2400 | P193: 10 | Q193: 2400 | R193: No
A194: GREATER TORONTO AREA | B194: M5A*** | C194: A0E2A0 | D194: DEEP BIGHT | E194: NL | F194: A0E2A0 | G194: 2 | I194: Not Offered | J194: 3 | K194: 2400 | L194: 3 | M194: 2400 | N194: 4 | O194: 2400 | P194: 10 | Q194: 2400 | R194: No
A195: GREATER TORONTO AREA | B195: M5A*** | C195: A0E2A0 | D195: HATCHET COVE | E195: NL | F195: A0E2A0 | G195: 3 | I195: Not Offered | J195: 3 | K195: 2400 | L195: 3 | M195: 2400 | N195: 4 | O195: 2400 | P195: 10 | Q195: 2400 | R195: No
A196: GREATER TORONTO AREA | B196: M5A*** | C196: A0E2A0 | D196: LONG BEACH | E196: NL | F196: A0E2A0 | G196: 4 | I196: Not Offered | J196: 3 | K196: 2400 | L196: 3 | M196: 2400 | N196: 4 | O196: 2400 | P196: 10 | Q196: 2400 | R196: No
A197: GREATER TORONTO AREA | B197: M5A*** | C197: A0E2A0 | D197: QUEENS COVE | E197: NL | F197: A0E2A0 | G197: 5 | I197: Not Offered | J197: 3 | K197: 2400 | L197: 3 | M197: 2400 | N197: 4 | O197: 2400 | P197: 10 | Q197: 2400 | R197: No
A198: GREATER TORONTO AREA | B198: M5A*** | C198: A0E2A0 | D198: ST JONES WITHIN | E198: NL | F198: A0E2A0 | G198: 6 | I198: Not Offered | J198: 3 | K198: 2400 | L198: 3 | M198: 2400 | N198: 4 | O198: 2400 | P198: 10 | Q198: 2400 | R198: No
A199: GREATER TORONTO AREA | B199: M5A*** | C199: A0E2B0 | D199: HODGES COVE | E199: NL | F199: A0E2B9 | I199: Not Offered | J199: 3 | K199: 2400 | L199: 3 | M199: 2400 | N199: 4 | O199: 2400 | P199: 10 | Q199: 2400 | R199: No
A200: GREATER TORONTO AREA | B200: M5A*** | C200: A0E2C0 | D200: LAMALINE | E200: NL | F200: A0E2C9 | G200: 0 | I200: Not Offered | J200: 3 | K200: 2400 | L200: 3 | M200: 2400 | N200: 4 | O200: 2400 | P200: 10 | Q200: 2400 | R200: No
... 4300 more rows

Sheet DropDowns (hidden)
C1: Size Menu Drop Down Options | I1: Inks Menu Drop Down Options | P1: =INDEX('SnapSet Pricing'!$D:$F,MATCH(Worksheet!$E$17,'SnapSet Pricing'!$D:$D,0),3) -> 50000 | Q1: =COUNTIF('SnapSet Pricing'!$D:$D,Worksheet!$E$17) -> 17 | T1: Parts1 | U1: Parts2 | V1: Parts3 | W1: Parts4 | X1: Parts5 | Y1: Parts6 | AA1: Parts Calculation | AD1: Booking Qty | AF1: Drilling/Punching Holes | AI1: Numbering | AK1: Ink Qty Lookup | AO1: Perferation Options | BF1: Product Code | BG1: Product
B2: Format | C2: Register Form | D2: Snapset - Manual Form Without Tag Back | E2: Snapset - Manual Form With Tag Back | F2: Repair Form With Claim Check | I2: Register Form | J2: Snapset - Manual Form Without Tag Back | K2: Snapset - Manual Form With Tag Back | L2: Repair Form With Claim Check | M2: Back Print | P2: Qyt Drop Down Calculation | T2: Parts Drop Down Options | AA2: 1 | AB2: Parts1 | AD2: =IF(Worksheet!E8="8 1/2 x 11 Trucking form",31,25) -> 25 | AF2: 2 | AI2: Red First Copy (Black remaining copies) | AK2: 1/0 | AL2: One Ink | AO2: Horizontal Qty | AP2: Vertical Qty | AS2: Inches | AT2: Fraction | AX2: Paper Choices Drop Downs | BF2: 34105J | BG2: 34105J
B3: Register Form | C3: 5 1/2 X 8 1/2 | D3: up to 3 4/10 x 5 1/8 | E3: up to 3 4/10 x 8 1/2 | F3: 4 1/4 x 8 1/2 with 1 claim check | I3: 1/0 | J3: 1/0 | K3: 1/0 | L3: 1/0 | M3: No | P3: =IF(INDEX('SnapSet Pricing'!$D:$F,MATCH(Worksheet!$E$17,'SnapSet Pricing'!$D:$D,0)+Q3,1)=Worksheet!$E$17,INDEX('SnapSet Pricing'!$D:$F,MATCH(Worksheet!$E$17,'SnapSet Pricing'!$D:$D,0)+Q3,3),"") -> 1000 | Q3: =Q1-1 -> 16 | T3: 1 | U3: 2 | V3: 1-2 | W3: 2-3 | X3: 2-3-4 | Y3: 2-3-4-5 | AA3: 2 | AB3: Parts2 | AD3: =IF(AD2=31,"",50) -> 50 | AF3: 3 | AI3: Other (Include instructions below) | AK3: 1/1 | AL3: Two Inks | AO3: None | AP3: None | AS3: 1 | AT3: 1/32 | AX3: Product | AY3: =VLOOKUP(LEFT(Worksheet!E17,FIND("-",Worksheet!E17)-1),BF1:BG98,2,FALSE) -> 34108J | BF3: 34105JA | BG3: 34105J
B4: Snapset - Manual Form Without Tag Back | D4: up to 3 4/10 x 8 1/2 | E4: up to 4 1/4 x 11 | F4: 5 2/3 x 11 with 2 claim checks | I4: 1/1 | J4: 1/1 | K4: 1/1 | L4: 1/1 | M4: Yes | P4: =IF(INDEX('SnapSet Pricing'!$D:$F,MATCH(Worksheet!$E$17,'SnapSet Pricing'!$D:$D,0)+Q4,1)=Worksheet!$E$17,INDEX('SnapSet Pricing'!$D:$F,MATCH(Worksheet!$E$17,'SnapSet Pricing'!$D:$D,0)+Q4,3),"") -> 1500 | Q4: =Q3-1 -> 15 | T4: 1 | U4: 2 | V4: 1 | W4: 2 | X4: 2 | Y4: 2 | AA4: 1-2 | AB4: Parts3 | AK4: 2/0 | AL4: Two Inks | AO4: 1 | AP4: 1 | AS4: 2 | AT4: 1/16 | AX4: Lookup helper | AY4: 2 | AZ4: 3 | BA4: 4 | BB4: 5 | BC4: 6 | BF4: 34105JB | BG4: 34105J
B5: Snapset - Manual Form With Tag Back | D5: up to 4 1/4 x 7 | E5: up to 5 2/3 x 11 | F5: 8 1/2 x 8 1/2 with 1 claim check & ID tag | I5: 2/0 | J5: 2/0 | K5: 2/0 | L5: 2/0 | M5: No | P5: =IF(INDEX('SnapSet Pricing'!$D:$F,MATCH(Worksheet!$E$17,'SnapSet Pricing'!$D:$D,0)+Q5,1)=Worksheet!$E$17,INDEX('SnapSet Pricing'!$D:$F,MATCH(Worksheet!$E$17,'SnapSet Pricing'!$D:$D,0)+Q5,3),"") -> 2000 | Q5: 14 | V5: 2 | W5: 3 | X5: 3 | Y5: 3 | AA5: 2-3 | AB5: Parts4 | AK5: 2/1 | AL5: Three Inks | AO5: 2 | AP5: 2 | AS5: 3 | AT5: 3/32 | AX5: Concatinated | AY5: =VLOOKUP($AY$3,'Paper Options'!A:F,AY4,FALSE) -> 1 PART - 21# WHITE | AZ5: =VLOOKUP($AY$3,'Paper Options'!A:F,AZ4,FALSE) -> 2 PART - 21# WHITE, 15# CANARY | BA5: =VLOOKUP($AY$3,'Paper Options'!$A:$F,BA4,FALSE) -> 3 PART - 21# WHITE, 14.5# CANARY, 15# PINK | BB5: =VLOOKUP($AY$3,'Paper Options'!$A:$F,BB4,FALSE) -> 4 PART - 21# WHITE, 14.5# CANARY, 14.5# PINK, 15# GOLDENROD | BC5: =VLOOKUP($AY$3,'Paper Options'!$A:$F,BC4,FALSE) -> 5 PART - 21# WHITE,14.5# GREEN,14.5# CANARY,14.5# PINK,15# GOLDENROD | BF5: 34105JC | BG5: 34105J
B6: Repair Form With Claim Check | D6: up to 4 1/4 x 11 | E6: up to 8 1/2 x 8 1/2 | F6: 3 1/8 x 5 1/2 with 1 claim check | I6: 2/1 | J6: 2/1 | K6: 2/1 | L6: 2/1 | M6: Yes | P6: =IF(INDEX('SnapSet Pricing'!$D:$F,MATCH(Worksheet!$E$17,'SnapSet Pricing'!$D:$D,0)+Q6,1)=Worksheet!$E$17,INDEX('SnapSet Pricing'!$D:$F,MATCH(Worksheet!$E$17,'SnapSet Pricing'!$D:$D,0)+Q6,3),"") -> 3000 | Q6: 13 | X6: 4 | Y6: 4 | AA6: 2-3-4 | AB6: Parts5 | AK6: 2/2 | AL6: Four Inks | AO6: 3 | AS6: 4 | AT6: 1/8 | AX6: - | AY6: =FIND("-",AY5) -> 8 | AZ6: =FIND("-",AZ5) -> 8 | BA6: =FIND("-",BA5) -> 8 | BB6: 8 | BC6: 8 | BF6: 34108J | BG6: 34108J
D7: up to 5 2/3 x 8 1/2 | E7: up to 8 1/2 x 11 | I7: 3/0 | J7: 2/2 | K7: 2/2 | L7: 2/2 | M7: Yes | P7: =IF(INDEX('SnapSet Pricing'!$D:$F,MATCH(Worksheet!$E$17,'SnapSet Pricing'!$D:$D,0)+Q7,1)=Worksheet!$E$17,INDEX('SnapSet Pricing'!$D:$F,MATCH(Worksheet!$E$17,'SnapSet Pricing'!$D:$D,0)+Q7,3),"") -> 4000 | Q7: 12 | Y7: 5 | AA7: 2-3-4-5 | AB7: Parts6 | AK7: 3/0 | AL7: Three Inks | AO7: 4 | AS7: 5 | AT7: 5/32 | AX7: First , | AZ7: =FIND(",",AZ5) -> 19 | BA7: =FIND(",",BA5) -> 19 | BB7: 19 | BC7: 19 | BF7: 34108JA | BG7: 34108J
D8: up to 5 2/3 x 11 | E8: up to 8 1/2 14 | J8: 3/0 | K8: 3/0 | L8: 3/0 | M8: No | P8: =IF(INDEX('SnapSet Pricing'!$D:$F,MATCH(Worksheet!$E$17,'SnapSet Pricing'!$D:$D,0)+Q8,1)=Worksheet!$E$17,INDEX('SnapSet Pricing'!$D:$F,MATCH(Worksheet!$E$17,'SnapSet Pricing'!$D:$D,0)+Q8,3),"") -> 5000 | Q8: 11 | AK8: 3/1 | AL8: Four Inks | AS8: 6 | AT8: 3/16 | AX8: Second , | AZ8: =FIND(",",AZ$5,AZ7+1) ->  | BA8: 33 | BB8: 33 | BC8: 31 | BF8: 34108JB | BG8: 34108J
D9: up to 8 1/2 x 7 | E9: 7 1/2 x 4 1/4 Restaurant Guest Check | J9: 3/1 | K9: 3/1 | L9: 3/1 | M9: Yes | P9: =IF(INDEX('SnapSet Pricing'!$D:$F,MATCH(Worksheet!$E$17,'SnapSet Pricing'!$D:$D,0)+Q9,1)=Worksheet!$E$17,INDEX('SnapSet Pricing'!$D:$F,MATCH(Worksheet!$E$17,'SnapSet Pricing'!$D:$D,0)+Q9,3),"") -> 6000 | Q9: 10 | AK9: 4/0 | AL9: Four Inks | AS9: 7 | AT9: 7/32 | AX9: Third , | BB9: 45 | BC9: 44 | BF9: 34108JC | BG9: 34108J
D10: up to 8 1/2 x 8 1/2 | E10: 9 1/8 x 4 1/2 Restaurant Guest Check | J10: 4/0 | K10: 4/0 | L10: 4/0 | M10: No | P10: =IF(INDEX('SnapSet Pricing'!$D:$F,MATCH(Worksheet!$E$17,'SnapSet Pricing'!$D:$D,0)+Q10,1)=Worksheet!$E$17,INDEX('SnapSet Pricing'!$D:$F,MATCH(Worksheet!$E$17,'SnapSet Pricing'!$D:$D,0)+Q10,3),"") -> 7000 | Q10: 9 | AS10: 8 | AT10: 1/4 | AX10: Forth , | BC10: 55 | BF10: 34108K | BG10: 34108K
D11: up to 8 1/2 x 11 | P11: =IF(INDEX('SnapSet Pricing'!$D:$F,MATCH(Worksheet!$E$17,'SnapSet Pricing'!$D:$D,0)+Q11,1)=Worksheet!$E$17,INDEX('SnapSet Pricing'!$D:$F,MATCH(Worksheet!$E$17,'SnapSet Pricing'!$D:$D,0)+Q11,3),"") -> 8000 | Q11: 8 | AS11: 9 | AT11: 9/32 | AX11: Fifth, | BF11: 34108KA | BG11: 34108K
D12: up to 8 1/2 14 | P12: =IF(INDEX('SnapSet Pricing'!$D:$F,MATCH(Worksheet!$E$17,'SnapSet Pricing'!$D:$D,0)+Q12,1)=Worksheet!$E$17,INDEX('SnapSet Pricing'!$D:$F,MATCH(Worksheet!$E$17,'SnapSet Pricing'!$D:$D,0)+Q12,3),"") -> 9000 | Q12: 7 | AS12: 10 | AT12: 5/16 | BF12: 34108KB | BG12: 34108K
D13: 8 1/2 x 11 double stubbed form | P13: =IF(INDEX('SnapSet Pricing'!$D:$F,MATCH(Worksheet!$E$17,'SnapSet Pricing'!$D:$D,0)+Q13,1)=Worksheet!$E$17,INDEX('SnapSet Pricing'!$D:$F,MATCH(Worksheet!$E$17,'SnapSet Pricing'!$D:$D,0)+Q13,3),"") -> 10000 | Q13: 6 | AS13: 11 | AT13: 11/32 | AY13: Part 1 | AZ13: Part 2 | BA13: Part 3 | BB13: Part 4 | BC13: Part 5 | BF13: 34108KC | BG13: 34108K
D14: 8 1/2 x 11 Trucking form | P14: =IF(INDEX('SnapSet Pricing'!$D:$F,MATCH(Worksheet!$E$17,'SnapSet Pricing'!$D:$D,0)+Q14,1)=Worksheet!$E$17,INDEX('SnapSet Pricing'!$D:$F,MATCH(Worksheet!$E$17,'SnapSet Pricing'!$D:$D,0)+Q14,3),"") -> 15000 | Q14: 5 | AS14: 12 | AT14: 3/8 | AY14: =TRIM(RIGHT(AY5,LEN(AY5)-AY6)) -> 21# WHITE | AZ14: =TRIM(MID(AZ$5,AZ6+1,AZ7-AZ6-1)) -> 21# WHITE | BA14: =TRIM(MID(BA$5,BA6+1,BA7-BA6-1)) -> 21# WHITE | BB14: =TRIM(MID(BB$5,BB6+1,BB7-BB6-1)) -> 21# WHITE | BC14: =TRIM(MID(BC$5,BC6+1,BC7-BC6-1)) -> 21# WHITE | BF14: 42511J | BG14: 42511J
D15: 9 1/8 x 8 1/2 Receipt Book | P15: =IF(INDEX('SnapSet Pricing'!$D:$F,MATCH(Worksheet!$E$17,'SnapSet Pricing'!$D:$D,0)+Q15,1)=Worksheet!$E$17,INDEX('SnapSet Pricing'!$D:$F,MATCH(Worksheet!$E$17,'SnapSet Pricing'!$D:$D,0)+Q15,3),"") -> 20000 | Q15: 4 | AS15: 13 | AT15: 13/32 | AZ15: =TRIM(RIGHT(AZ$5,LEN(AZ5)-AZ7)) -> 15# CANARY | BA15: =TRIM(MID(BA$5,BA7+1,BA8-BA7-1)) -> 14.5# CANARY | BB15: =TRIM(MID(BB$5,BB7+1,BB8-BB7-1)) -> 14.5# CANARY | BC15: =TRIM(MID(BC$5,BC7+1,BC8-BC7-1)) -> 14.5# GREEN | BF15: 42511JA | BG15: 42511J
P16: =IF(INDEX('SnapSet Pricing'!$D:$F,MATCH(Worksheet!$E$17,'SnapSet Pricing'!$D:$D,0)+Q16,1)=Worksheet!$E$17,INDEX('SnapSet Pricing'!$D:$F,MATCH(Worksheet!$E$17,'SnapSet Pricing'!$D:$D,0)+Q16,3),"") -> 25000 | Q16: 3 | AT16: 7/16 | BA16: =TRIM(RIGHT(BA$5,LEN(BA$5)-BA8)) -> 15# PINK | BB16: =TRIM(MID(BB$5,BB8+1,BB9-BB8-1)) -> 14.5# PINK | BC16: =TRIM(MID(BC$5,BC8+1,BC9-BC8-1)) -> 14.5# CANARY | BF16: 42511JB | BG16: 42511J
P17: =IF(INDEX('SnapSet Pricing'!$D:$F,MATCH(Worksheet!$E$17,'SnapSet Pricing'!$D:$D,0)+Q17,1)=Worksheet!$E$17,INDEX('SnapSet Pricing'!$D:$F,MATCH(Worksheet!$E$17,'SnapSet Pricing'!$D:$D,0)+Q17,3),"") -> 30000 | Q17: 2 | AT17: 15/32 | BB17: =TRIM(RIGHT(BB$5,LEN(BB$5)-BB9)) -> 15# GOLDENROD | BC17: =TRIM(MID(BC$5,BC9+1,BC10-BC9-1)) -> 14.5# PINK | BF17: 42511JC | BG17: 42511J
P18: =IF(INDEX('SnapSet Pricing'!$D:$F,MATCH(Worksheet!$E$17,'SnapSet Pricing'!$D:$D,0)+Q18,1)=Worksheet!$E$17,INDEX('SnapSet Pricing'!$D:$F,MATCH(Worksheet!$E$17,'SnapSet Pricing'!$D:$D,0)+Q18,3),"") -> 40000 | Q18: 1 | AT18: 1/2 | BC18: =TRIM(RIGHT(BC$5,LEN(BC$5)-BC10)) -> 15# GOLDENROD | BF18: 42511K | BG18: 42511K
P19: =IF(INDEX('SnapSet Pricing'!$D:$F,MATCH(Worksheet!$E$17,'SnapSet Pricing'!$D:$D,0)+Q19,1)=Worksheet!$E$17,INDEX('SnapSet Pricing'!$D:$F,MATCH(Worksheet!$E$17,'SnapSet Pricing'!$D:$D,0)+Q19,3),"") -> 50000 | Q19: 0 | AT19: 17/32 | BF19: 42511KA | BG19: 42511K
P20: =IF(INDEX('SnapSet Pricing'!$D:$F,MATCH(Worksheet!$E$17,'SnapSet Pricing'!$D:$D,0)+Q20,1)=Worksheet!$E$17,INDEX('SnapSet Pricing'!$D:$F,MATCH(Worksheet!$E$17,'SnapSet Pricing'!$D:$D,0)+Q20,3),"") ->  | Q20: -1 | AT20: 9/16 | BF20: 42511KB | BG20: 42511K
P21: =IF(INDEX('SnapSet Pricing'!$D:$F,MATCH(Worksheet!$E$17,'SnapSet Pricing'!$D:$D,0)+Q21,1)=Worksheet!$E$17,INDEX('SnapSet Pricing'!$D:$F,MATCH(Worksheet!$E$17,'SnapSet Pricing'!$D:$D,0)+Q21,3),"") ->  | Q21: -2 | AT21: 19/32 | BF21: 42511KC | BG21: 42511K
P22: =IF(INDEX('SnapSet Pricing'!$D:$F,MATCH(Worksheet!$E$17,'SnapSet Pricing'!$D:$D,0)+Q22,1)=Worksheet!$E$17,INDEX('SnapSet Pricing'!$D:$F,MATCH(Worksheet!$E$17,'SnapSet Pricing'!$D:$D,0)+Q22,3),"") ->  | Q22: -3 | AT22: 5/8 | BF22: 4257J | BG22: 4257J
P23: =IF(INDEX('SnapSet Pricing'!$D:$F,MATCH(Worksheet!$E$17,'SnapSet Pricing'!$D:$D,0)+Q23,1)=Worksheet!$E$17,INDEX('SnapSet Pricing'!$D:$F,MATCH(Worksheet!$E$17,'SnapSet Pricing'!$D:$D,0)+Q23,3),"") ->  | Q23: -4 | AT23: 21/32 | BF23: 4257JA | BG23: 4257J
P24: =IF(INDEX('SnapSet Pricing'!$D:$F,MATCH(Worksheet!$E$17,'SnapSet Pricing'!$D:$D,0)+Q24,1)=Worksheet!$E$17,INDEX('SnapSet Pricing'!$D:$F,MATCH(Worksheet!$E$17,'SnapSet Pricing'!$D:$D,0)+Q24,3),"") ->  | Q24: -5 | AT24: 11/16 | BF24: 4257JB | BG24: 4257J
P25: =IF(INDEX('SnapSet Pricing'!$D:$F,MATCH(Worksheet!$E$17,'SnapSet Pricing'!$D:$D,0)+Q25,1)=Worksheet!$E$17,INDEX('SnapSet Pricing'!$D:$F,MATCH(Worksheet!$E$17,'SnapSet Pricing'!$D:$D,0)+Q25,3),"") ->  | Q25: -6 | AT25: 23/32 | BF25: 4257JC | BG25: 4257J
P26: =IF(INDEX('SnapSet Pricing'!$D:$F,MATCH(Worksheet!$E$17,'SnapSet Pricing'!$D:$D,0)+Q26,1)=Worksheet!$E$17,INDEX('SnapSet Pricing'!$D:$F,MATCH(Worksheet!$E$17,'SnapSet Pricing'!$D:$D,0)+Q26,3),"") ->  | Q26: -7 | AT26: 3/7 | BF26: 56611J | BG26: 56611J
P27: =IF(INDEX('SnapSet Pricing'!$D:$F,MATCH(Worksheet!$E$17,'SnapSet Pricing'!$D:$D,0)+Q27,1)=Worksheet!$E$17,INDEX('SnapSet Pricing'!$D:$F,MATCH(Worksheet!$E$17,'SnapSet Pricing'!$D:$D,0)+Q27,3),"") ->  | Q27: -8 | AT27: 25/32 | BF27: 56611JA | BG27: 56611J
P28: =IF(INDEX('SnapSet Pricing'!$D:$F,MATCH(Worksheet!$E$17,'SnapSet Pricing'!$D:$D,0)+Q28,1)=Worksheet!$E$17,INDEX('SnapSet Pricing'!$D:$F,MATCH(Worksheet!$E$17,'SnapSet Pricing'!$D:$D,0)+Q28,3),"") ->  | Q28: -9 | AT28: 13/16 | BF28: 56611JB | BG28: 56611J
P29: =IF(INDEX('SnapSet Pricing'!$D:$F,MATCH(Worksheet!$E$17,'SnapSet Pricing'!$D:$D,0)+Q29,1)=Worksheet!$E$17,INDEX('SnapSet Pricing'!$D:$F,MATCH(Worksheet!$E$17,'SnapSet Pricing'!$D:$D,0)+Q29,3),"") ->  | Q29: -10 | AT29: 27/32 | BF29: 56611JC | BG29: 56611J
P30: =IF(INDEX('SnapSet Pricing'!$D:$F,MATCH(Worksheet!$E$17,'SnapSet Pricing'!$D:$D,0)+Q30,1)=Worksheet!$E$17,INDEX('SnapSet Pricing'!$D:$F,MATCH(Worksheet!$E$17,'SnapSet Pricing'!$D:$D,0)+Q30,3),"") ->  | Q30: -11 | AT30: 7/8 | BF30: 56611K | BG30: 56611K
P31: =IF(INDEX('SnapSet Pricing'!$D:$F,MATCH(Worksheet!$E$17,'SnapSet Pricing'!$D:$D,0)+Q31,1)=Worksheet!$E$17,INDEX('SnapSet Pricing'!$D:$F,MATCH(Worksheet!$E$17,'SnapSet Pricing'!$D:$D,0)+Q31,3),"") ->  | Q31: -12 | AT31: 29/32 | BF31: 56611KA | BG31: 56611K
P32: =IF(INDEX('SnapSet Pricing'!$D:$F,MATCH(Worksheet!$E$17,'SnapSet Pricing'!$D:$D,0)+Q32,1)=Worksheet!$E$17,INDEX('SnapSet Pricing'!$D:$F,MATCH(Worksheet!$E$17,'SnapSet Pricing'!$D:$D,0)+Q32,3),"") ->  | Q32: -13 | AT32: 15/16 | BF32: 56611KB | BG32: 56611K
AT33: 31/32 | BF33: 56611KC | BG33: 56611K
BF34: 56685J | BG34: 56685J
BF35: 56685JA | BG35: 56685J
BF36: 56685JB | BG36: 56685J
BF37: 56685JC | BG37: 56685J
BF38: 75425K | BG38: 75425K
BF39: 75425KA | BG39: 75425K
BF40: 75425KB | BG40: 75425K
BF41: 75425KC | BG41: 75425K
BF42: 8511J | BG42: 8511J
BF43: 8511JA | BG43: 8511J
BF44: 8511JB | BG44: 8511J
BF45: 8511JC | BG45: 8511J
BF46: 8511K | BG46: 8511K
BF47: 8511KA | BG47: 8511K
BF48: 8511KB | BG48: 8511K
BF49: 8511KC | BG49: 8511K
BF50: 8514J | BG50: 8514J
BF51: 8514JA | BG51: 8514J
BF52: 8514JB | BG52: 8514J
BF53: 8514JC | BG53: 8514J
BF54: 8514K | BG54: 8514K
BF55: 8514KA | BG55: 8514K
BF56: 8514KB | BG56: 8514K
BF57: 8514KC | BG57: 8514K
BF58: 857J | BG58: 857J
BF59: 857JA | BG59: 857J
BF60: 857JB | BG60: 857J
BF61: 857JC | BG61: 857J
BF62: 8585J | BG62: 8585J
BF63: 8585JA | BG63: 8585J
BF64: 8585JB | BG64: 8585J
BF65: 8585JC | BG65: 8585J
BF66: 8585K | BG66: 8585K
BF67: 8585KA | BG67: 8585K
BF68: 8585KB | BG68: 8585K
BF69: 8585KC | BG69: 8585K
BF70: 91845K | BG70: 91845K
BF71: 91845KA | BG71: 91845K
BF72: 91845KB | BG72: 91845K
BF73: 91845KC | BG73: 91845K
BF74: SP2311A | BG74: SP2311A
BF75: SP2311A | BG75: SP2311A
BF76: SP2311B | BG76: SP2311A
BF77: SP304A | BG77: SP304A
BF78: SP304A | BG78: SP304A
BF79: SP304B | BG79: SP304A
BF80: SP305A | BG80: SP305A
BF81: SP305A | BG81: SP305A
BF82: SP305B | BG82: SP305A
BF83: SP312A | BG83: SP312A
BF84: SP312A | BG84: SP312A
BF85: SP312B | BG85: SP312A
BF86: SP693 | BG86: SP693
BF87: SP693A | BG87: SP693
BF88: SP693B | BG88: SP693
BF89: SP693C | BG89: SP693
BF90: SP8096A | BG90: SP8096A
BF91: SP8096A | BG91: SP8096A
BF92: SP8096B | BG92: SP8096A
BF93: SP8096C | BG93: SP8096A
BF94: SP8375A | BG94: SP8375A
BF95: SP8375A | BG95: SP8375A
BF96: SP8375B | BG96: SP8375A
BF97: SP886TA | BG97: SP886TA
BF98: SP886TA | BG98: SP886TA

Sheet SnapSet Pricing (hidden)
A1: LookupValue | C1: PLMFPF | D1: Product | E1: Descr | F1: Qty | G1: Std Price | H1: Margin | I1: Std SRP | J1: Discount Price | M1: Product | N1: LookupID
A2: =(VLOOKUP(D2,$M:$N,2,FALSE)*1000000)+F2 -> 323050000 | C2: 761000 | D2: SP8375B-3 | E2: DESIGN REGISTER FORM | F2: 50000 | G2: 2996.5 | H2: 35 | I2: 4610 | J2: 2247.38 | M2: 56611KA-2 | N2: 1
A3: 323040000 | C3: 761000 | D3: SP8375B-3 | E3: DESIGN REGISTER FORM | F3: 40000 | G3: 2687.75 | H3: 35 | I3: 4135 | J3: 2015.81 | M3: 56611KA-3 | N3: =N2+1 -> 2
A4: 323030000 | C4: 761000 | D4: SP8375B-3 | E4: DESIGN REGISTER FORM | F4: 30000 | G4: 2415.4 | H4: 35 | I4: 3716 | J4: 1811.55 | M4: 56611KA-4 | N4: =N3+1 -> 3
A5: 323025000 | C5: 761000 | D5: SP8375B-3 | E5: DESIGN REGISTER FORM | F5: 25000 | G5: 1938.95 | H5: 35 | I5: 2983 | J5: 1454.21 | M5: 56611KB-2 | N5: 4
A6: 323020000 | C6: 761000 | D6: SP8375B-3 | E6: DESIGN REGISTER FORM | F6: 20000 | G6: 1733.55 | H6: 35 | I6: 2667 | J6: 1300.16 | M6: 56611KB-3 | N6: 5
A7: 323015000 | C7: 761000 | D7: SP8375B-3 | E7: DESIGN REGISTER FORM | F7: 15000 | G7: 1495.65 | H7: 35 | I7: 2301 | J7: 1121.74 | M7: 56611KB-4 | N7: 6
A8: 323010000 | C8: 761000 | D8: SP8375B-3 | E8: DESIGN REGISTER FORM | F8: 10000 | G8: 1124.5 | H8: 35 | I8: 1730 | J8: 843.38 | M8: 56611KC-2 | N8: 7
A9: 323009000 | C9: 761000 | D9: SP8375B-3 | E9: DESIGN REGISTER FORM | F9: 9000 | G9: 1047.15 | H9: 35 | I9: 1611 | J9: 785.36 | M9: 56611KC-3 | N9: 8
A10: 323008000 | C10: 761000 | D10: SP8375B-3 | E10: DESIGN REGISTER FORM | F10: 8000 | G10: 998.4 | H10: 35 | I10: 1536 | J10: 748.8 | M10: 56611KC-4 | N10: 9
A11: 323007000 | C11: 761000 | D11: SP8375B-3 | E11: DESIGN REGISTER FORM | F11: 7000 | G11: 869.7 | H11: 35 | I11: 1338 | J11: 652.28 | M11: 8585KA-2 | N11: 10
A12: 323006000 | C12: 761000 | D12: SP8375B-3 | E12: DESIGN REGISTER FORM | F12: 6000 | G12: 784.55 | H12: 35 | I12: 1207 | J12: 588.41 | M12: 8585KA-3 | N12: 11
A13: 323005000 | C13: 761000 | D13: SP8375B-3 | E13: DESIGN REGISTER FORM | F13: 5000 | G13: 695.5 | H13: 35 | I13: 1070 | J13: 521.63 | M13: 8585KA-4 | N13: 12
A14: 323004000 | C14: 761000 | D14: SP8375B-3 | E14: DESIGN REGISTER FORM | F14: 4000 | G14: 615.55 | H14: 35 | I14: 947 | J14: 461.66 | M14: 8585KB-2 | N14: 13
A15: 323003000 | C15: 761000 | D15: SP8375B-3 | E15: DESIGN REGISTER FORM | F15: 3000 | G15: 523.9 | H15: 35 | I15: 806 | J15: 392.93 | M15: 8585KB-3 | N15: 14
A16: 323002000 | C16: 761000 | D16: SP8375B-3 | E16: DESIGN REGISTER FORM | F16: 2000 | G16: 427.05 | H16: 35 | I16: 657 | J16: 320.29 | M16: 8585KB-4 | N16: 15
A17: 323001000 | C17: 761000 | D17: SP8375B-3 | E17: DESIGN REGISTER FORM | F17: 1000 | G17: 321.75 | H17: 35 | I17: 495 | J17: 241.31 | M17: 8585KC-2 | N17: 16
A18: 322050000 | C18: 761000 | D18: SP8375B-2 | E18: DESIGN REGISTER FORM | F18: 50000 | G18: 2486.9 | H18: 35 | I18: 3826 | J18: 1865.18 | M18: 8585KC-3 | N18: 17
A19: 322040000 | C19: 761000 | D19: SP8375B-2 | E19: DESIGN REGISTER FORM | F19: 40000 | G19: 2074.15 | H19: 35 | I19: 3191 | J19: 1555.61 | M19: 8585KC-4 | N19: 18
A20: 322030000 | C20: 761000 | D20: SP8375B-2 | E20: DESIGN REGISTER FORM | F20: 30000 | G20: 1795.95 | H20: 35 | I20: 2763 | J20: 1346.96 | M20: SP2311A-2 | N20: 19
A21: 322025000 | C21: 761000 | D21: SP8375B-2 | E21: DESIGN REGISTER FORM | F21: 25000 | G21: 1535.3 | H21: 35 | I21: 2362 | J21: 1151.48 | M21: SP2311A-3 | N21: 20
A22: 322020000 | C22: 761000 | D22: SP8375B-2 | E22: DESIGN REGISTER FORM | F22: 20000 | G22: 1362.4 | H22: 35 | I22: 2096 | J22: 1021.8 | M22: SP2311B-2 | N22: 21
A23: 322015000 | C23: 761000 | D23: SP8375B-2 | E23: DESIGN REGISTER FORM | F23: 15000 | G23: 1145.3 | H23: 35 | I23: 1762 | J23: 858.98 | M23: SP2311B-3 | N23: 22
A24: 322010000 | C24: 761000 | D24: SP8375B-2 | E24: DESIGN REGISTER FORM | F24: 10000 | G24: 904.15 | H24: 35 | I24: 1391 | J24: 678.11 | M24: SP693A-2 | N24: 23
A25: 322009000 | C25: 761000 | D25: SP8375B-2 | E25: DESIGN REGISTER FORM | F25: 9000 | G25: 783.9 | H25: 35 | I25: 1206 | J25: 587.93 | M25: SP693A-3 | N25: 24
A26: 322008000 | C26: 761000 | D26: SP8375B-2 | E26: DESIGN REGISTER FORM | F26: 8000 | G26: 729.95 | H26: 35 | I26: 1123 | J26: 547.46 | M26: SP693B-2 | N26: 25
A27: 322007000 | C27: 761000 | D27: SP8375B-2 | E27: DESIGN REGISTER FORM | F27: 7000 | G27: 653.25 | H27: 35 | I27: 1005 | J27: 489.94 | M27: SP693B-3 | N27: 26
A28: 322006000 | C28: 761000 | D28: SP8375B-2 | E28: DESIGN REGISTER FORM | F28: 6000 | G28: 592.15 | H28: 35 | I28: 911 | J28: 444.11 | M28: SP693C-2 | N28: 27
A29: 322005000 | C29: 761000 | D29: SP8375B-2 | E29: DESIGN REGISTER FORM | F29: 5000 | G29: 549.25 | H29: 35 | I29: 845 | J29: 411.94 | M29: SP693C-3 | N29: 28
A30: 322004000 | C30: 761000 | D30: SP8375B-2 | E30: DESIGN REGISTER FORM | F30: 4000 | G30: 501.15 | H30: 35 | I30: 771 | J30: 375.86 | M30: 8511T-1 | N30: 29
A31: 322003000 | C31: 761000 | D31: SP8375B-2 | E31: DESIGN REGISTER FORM | F31: 3000 | G31: 403.65 | H31: 35 | I31: 621 | J31: 302.74 | M31: 34108K-2 | N31: 30
A32: 322002000 | C32: 761000 | D32: SP8375B-2 | E32: DESIGN REGISTER FORM | F32: 2000 | G32: 333.45 | H32: 35 | I32: 513 | J32: 250.09 | M32: 34108K-3 | N32: 31
A33: 322001000 | C33: 761000 | D33: SP8375B-2 | E33: DESIGN REGISTER FORM | F33: 1000 | G33: 257.4 | H33: 35 | I33: 396 | J33: 193.05 | M33: 34108K-4 | N33: 32
A34: 321050000 | C34: 761000 | D34: SP8375A-4 | E34: DESIGN REGISTER FORM | F34: 50000 | G34: 3747.25 | H34: 35 | I34: 5765 | J34: 2810.44 | M34: 34108KA-2 | N34: 33
A35: 321040000 | C35: 761000 | D35: SP8375A-4 | E35: DESIGN REGISTER FORM | F35: 40000 | G35: 3365.05 | H35: 35 | I35: 5177 | J35: 2523.79 | M35: 34108KA-3 | N35: 34
A36: 321030000 | C36: 761000 | D36: SP8375A-4 | E36: DESIGN REGISTER FORM | F36: 30000 | G36: 2797.6 | H36: 35 | I36: 4304 | J36: 2098.2 | M36: 34108KA-4 | N36: 35
A37: 321025000 | C37: 761000 | D37: SP8375A-4 | E37: DESIGN REGISTER FORM | F37: 25000 | G37: 2562.95 | H37: 35 | I37: 3943 | J37: 1922.21 | M37: 34108KB-2 | N37: 36
A38: 321020000 | C38: 761000 | D38: SP8375A-4 | E38: DESIGN REGISTER FORM | F38: 20000 | G38: 2247.05 | H38: 35 | I38: 3457 | J38: 1685.29 | M38: 34108KB-3 | N38: 37
A39: 321015000 | C39: 761000 | D39: SP8375A-4 | E39: DESIGN REGISTER FORM | F39: 15000 | G39: 1898.65 | H39: 35 | I39: 2921 | J39: 1423.99 | M39: 34108KB-4 | N39: 38
A40: 321010000 | C40: 761000 | D40: SP8375A-4 | E40: DESIGN REGISTER FORM | F40: 10000 | G40: 1444.95 | H40: 35 | I40: 2223 | J40: 1083.71 | M40: 34108KC-2 | N40: 39
A41: 321009000 | C41: 761000 | D41: SP8375A-4 | E41: DESIGN REGISTER FORM | F41: 9000 | G41: 1341.6 | H41: 35 | I41: 2064 | J41: 1006.2 | M41: 34108KC-3 | N41: 40
A42: 321008000 | C42: 761000 | D42: SP8375A-4 | E42: DESIGN REGISTER FORM | F42: 8000 | G42: 1253.85 | H42: 35 | I42: 1929 | J42: 940.39 | M42: 34108KC-4 | N42: 41
A43: 321007000 | C43: 761000 | D43: SP8375A-4 | E43: DESIGN REGISTER FORM | F43: 7000 | G43: 1105 | H43: 35 | I43: 1700 | J43: 828.75 | M43: 55425PA-1 | N43: 42
A44: 321006000 | C44: 761000 | D44: SP8375A-4 | E44: DESIGN REGISTER FORM | F44: 6000 | G44: 991.9 | H44: 35 | I44: 1526 | J44: 743.93 | M44: 55425PB-1 | N44: 43
A45: 321005000 | C45: 761000 | D45: SP8375A-4 | E45: DESIGN REGISTER FORM | F45: 5000 | G45: 874.9 | H45: 35 | I45: 1346 | J45: 656.18 | M45: 55425PC-1 | N45: 44
A46: 321004000 | C46: 761000 | D46: SP8375A-4 | E46: DESIGN REGISTER FORM | F46: 4000 | G46: 766.35 | H46: 35 | I46: 1179 | J46: 574.76 | M46: 55425TA-1 | N46: 45
A47: 321003000 | C47: 761000 | D47: SP8375A-4 | E47: DESIGN REGISTER FORM | F47: 3000 | G47: 644.15 | H47: 35 | I47: 991 | J47: 483.11 | M47: 55425TB-1 | N47: 46
A48: 321002000 | C48: 761000 | D48: SP8375A-4 | E48: DESIGN REGISTER FORM | F48: 2000 | G48: 515.45 | H48: 35 | I48: 793 | J48: 386.59 | M48: 56685J-2 | N48: 47
A49: 321001000 | C49: 761000 | D49: SP8375A-4 | E49: DESIGN REGISTER FORM | F49: 1000 | G49: 375.7 | H49: 35 | I49: 578 | J49: 281.78 | M49: 56685J-3 | N49: 48
A50: 320050000 | C50: 761000 | D50: SP8375A-3 | E50: DESIGN REGISTER FORM | F50: 50000 | G50: 2854.15 | H50: 35 | I50: 4391 | J50: 2140.61 | M50: 56685J-4 | N50: 49
A51: 320040000 | C51: 761000 | D51: SP8375A-3 | E51: DESIGN REGISTER FORM | F51: 40000 | G51: 2559.7 | H51: 35 | I51: 3938 | J51: 1919.78 | M51: 56685J-5 | N51: 50
A52: 320030000 | C52: 761000 | D52: SP8375A-3 | E52: DESIGN REGISTER FORM | F52: 30000 | G52: 2300.35 | H52: 35 | I52: 3539 | J52: 1725.26 | M52: 56685JA-2 | N52: 51
A53: 320025000 | C53: 761000 | D53: SP8375A-3 | E53: DESIGN REGISTER FORM | F53: 25000 | G53: 1846.65 | H53: 35 | I53: 2841 | J53: 1384.99 | M53: 56685JA-3 | N53: 52
A54: 320020000 | C54: 761000 | D54: SP8375A-3 | E54: DESIGN REGISTER FORM | F54: 20000 | G54: 1651 | H54: 35 | I54: 2540 | J54: 1238.25 | M54: 56685JA-4 | N54: 53
A55: 320015000 | C55: 761000 | D55: SP8375A-3 | E55: DESIGN REGISTER FORM | F55: 15000 | G55: 1425.45 | H55: 35 | I55: 2193 | J55: 1069.09 | M55: 56685JA-5 | N55: 54
A56: 320010000 | C56: 761000 | D56: SP8375A-3 | E56: DESIGN REGISTER FORM | F56: 10000 | G56: 1070.55 | H56: 35 | I56: 1647 | J56: 802.91 | M56: 56685JB-2 | N56: 55
A57: 320009000 | C57: 761000 | D57: SP8375A-3 | E57: DESIGN REGISTER FORM | F57: 9000 | G57: 997.75 | H57: 35 | I57: 1535 | J57: 748.31 | M57: 56685JB-3 | N57: 56
A58: 320008000 | C58: 761000 | D58: SP8375A-3 | E58: DESIGN REGISTER FORM | F58: 8000 | G58: 951.6 | H58: 35 | I58: 1464 | J58: 713.7 | M58: 56685JB-4 | N58: 57
A59: 320007000 | C59: 761000 | D59: SP8375A-3 | E59: DESIGN REGISTER FORM | F59: 7000 | G59: 828.1 | H59: 35 | I59: 1274 | J59: 621.08 | M59: 56685JB-5 | N59: 58
A60: 320006000 | C60: 761000 | D60: SP8375A-3 | E60: DESIGN REGISTER FORM | F60: 6000 | G60: 747.5 | H60: 35 | I60: 1150 | J60: 560.63 | M60: 56685JC-2 | N60: 59
A61: 320005000 | C61: 761000 | D61: SP8375A-3 | E61: DESIGN REGISTER FORM | F61: 5000 | G61: 663 | H61: 35 | I61: 1020 | J61: 497.25 | M61: 56685JC-3 | N61: 60
A62: 320004000 | C62: 761000 | D62: SP8375A-3 | E62: DESIGN REGISTER FORM | F62: 4000 | G62: 586.3 | H62: 35 | I62: 902 | J62: 439.73 | M62: 56685JC-4 | N62: 61
A63: 320003000 | C63: 761000 | D63: SP8375A-3 | E63: DESIGN REGISTER FORM | F63: 3000 | G63: 498.55 | H63: 35 | I63: 767 | J63: 373.91 | M63: 56685JC-5 | N63: 62
A64: 320002500 | C64: 761000 | D64: SP8375A-3 | E64: DESIGN REGISTER FORM | F64: 2500 | G64: 453.05 | H64: 35 | I64: 697 | J64: 339.79 | M64: 8555P-1 | N64: 63
A65: 320002000 | C65: 761000 | D65: SP8375A-3 | E65: DESIGN REGISTER FORM | F65: 2000 | G65: 407.55 | H65: 35 | I65: 627 | J65: 305.66 | M65: 8555PA-1 | N65: 64
A66: =(VLOOKUP(D66,$M:$N,2,FALSE)*1000000)+F66 -> 320001000 | C66: 761000 | D66: SP8375A-3 | E66: DESIGN REGISTER FORM | F66: 1000 | G66: 306.8 | H66: 35 | I66: 472 | J66: 230.1 | M66: 8555PB-1 | N66: 65
A67: 319050000 | C67: 761000 | D67: SP8375A-2 | E67: DESIGN REGISTER FORM | F67: 50000 | G67: 2368.6 | H67: 35 | I67: 3644 | J67: 1776.45 | M67: 8555PC-1 | N67: 66
A68: 319040000 | C68: 761000 | D68: SP8375A-2 | E68: DESIGN REGISTER FORM | F68: 40000 | G68: 1975.35 | H68: 35 | I68: 3039 | J68: 1481.51 | M68: 8555TA-1 | N68: =N67+1 -> 67
A69: 319030000 | C69: 761000 | D69: SP8375A-2 | E69: DESIGN REGISTER FORM | F69: 30000 | G69: 1710.8 | H69: 35 | I69: 2632 | J69: 1283.1 | M69: 8555TB-1 | N69: 68
A70: 319025000 | C70: 761000 | D70: SP8375A-2 | E70: DESIGN REGISTER FORM | F70: 25000 | G70: 1462.5 | H70: 35 | I70: 2250 | J70: 1096.88 | M70: 857J-2 | N70: 69
A71: 319020000 | C71: 761000 | D71: SP8375A-2 | E71: DESIGN REGISTER FORM | F71: 20000 | G71: 1296.75 | H71: 35 | I71: 1995 | J71: 972.56 | M71: 857J-3 | N71: 70
A72: 319015000 | C72: 761000 | D72: SP8375A-2 | E72: DESIGN REGISTER FORM | F72: 15000 | G72: 1090.7 | H72: 35 | I72: 1678 | J72: 818.03 | M72: 857J-4 | N72: 71
A73: 319010000 | C73: 761000 | D73: SP8375A-2 | E73: DESIGN REGISTER FORM | F73: 10000 | G73: 860.6 | H73: 35 | I73: 1324 | J73: 645.45 | M73: 857J-5 | N73: 72
A74: 319009000 | C74: 761000 | D74: SP8375A-2 | E74: DESIGN REGISTER FORM | F74: 9000 | G74: 746.2 | H74: 35 | I74: 1148 | J74: 559.65 | M74: 857JA-2 | N74: 73
A75: 319008000 | C75: 761000 | D75: SP8375A-2 | E75: DESIGN REGISTER FORM | F75: 8000 | G75: 695.5 | H75: 35 | I75: 1070 | J75: 521.63 | M75: 857JA-3 | N75: 74
A76: 319007000 | C76: 761000 | D76: SP8375A-2 | E76: DESIGN REGISTER FORM | F76: 7000 | G76: 622.7 | H76: 35 | I76: 958 | J76: 467.03 | M76: 857JA-4 | N76: 75
A77: 319006000 | C77: 761000 | D77: SP8375A-2 | E77: DESIGN REGISTER FORM | F77: 6000 | G77: 563.55 | H77: 35 | I77: 867 | J77: 422.66 | M77: 857JA-5 | N77: 76
A78: 319005000 | C78: 761000 | D78: SP8375A-2 | E78: DESIGN REGISTER FORM | F78: 5000 | G78: 523.25 | H78: 35 | I78: 805 | J78: 392.44 | M78: 857JB-2 | N78: 77
A79: 319004000 | C79: 761000 | D79: SP8375A-2 | E79: DESIGN REGISTER FORM | F79: 4000 | G79: 477.75 | H79: 35 | I79: 735 | J79: 358.31 | M79: 857JB-3 | N79: 78
A80: 319003000 | C80: 761000 | D80: SP8375A-2 | E80: DESIGN REGISTER FORM | F80: 3000 | G80: 383.5 | H80: 35 | I80: 590 | J80: 287.63 | M80: 857JB-4 | N80: 79
A81: 319002500 | C81: 761000 | D81: SP8375A-2 | E81: DESIGN REGISTER FORM | F81: 2500 | G81: 350.65 | H81: 35 | I81: 539.46 | J81: 262.99 | M81: 857JB-5 | N81: 80
A82: 319002000 | C82: 761000 | D82: SP8375A-2 | E82: DESIGN REGISTER FORM | F82: 2000 | G82: 317.85 | H82: 35 | I82: 489 | J82: 238.39 | M82: 857JC-2 | N82: 81
A83: 319001000 | C83: 761000 | D83: SP8375A-2 | E83: DESIGN REGISTER FORM | F83: 1000 | G83: 245.05 | H83: 35 | I83: 377 | J83: 183.79 | M83: 857JC-3 | N83: 82
A84: 318009920 | C84: 739000 | D84: SP886TA-3 | E84: DESIGN TRUCKING SNAPSET | F84: 9920 | G84: 1446.9 | H84: 35 | I84: 2226 | J84: 1085.18 | M84: 857JC-4 | N84: 83
A85: 318004960 | C85: 739000 | D85: SP886TA-3 | E85: DESIGN TRUCKING SNAPSET | F85: 4960 | G85: 947.7 | H85: 35 | I85: 1458 | J85: 710.78 | M85: 857JC-5 | N85: 84
A86: 318003968 | C86: 739000 | D86: SP886TA-3 | E86: DESIGN TRUCKING SNAPSET | F86: 3968 | G86: 913.9 | H86: 35 | I86: 1406 | J86: 685.43 | M86: 8511J-2 | N86: 85
A87: 318001984 | C87: 739000 | D87: SP886TA-3 | E87: DESIGN TRUCKING SNAPSET | F87: 1984 | G87: 603.85 | H87: 35 | I87: 929 | J87: 452.89 | M87: 8511J-3 | N87: 86
A88: 318000992 | C88: 739000 | D88: SP886TA-3 | E88: DESIGN TRUCKING SNAPSET | F88: 992 | G88: 343.2 | H88: 35 | I88: 528 | J88: 257.4 | M88: 8511J-4 | N88: 87
A89: 318000496 | C89: 739000 | D89: SP886TA-3 | E89: DESIGN TRUCKING SNAPSET | F89: 496 | G89: 237.9 | H89: 35 | I89: 366 | J89: 178.43 | M89: 8511J-5 | N89: 88
A90: 317015500 | C90: 739000 | D90: SP886TA-2 | E90: DESIGN TRUCKING SNAPSET | F90: 15500 | G90: 1125.15 | H90: 35 | I90: 1731 | J90: 843.86 | M90: 8511JA-2 | N90: 89
A91: 317009920 | C91: 739000 | D91: SP886TA-2 | E91: DESIGN TRUCKING SNAPSET | F91: 9920 | G91: 849.55 | H91: 35 | I91: 1307 | J91: 637.16 | M91: 8511JA-3 | N91: 90
A92: 317007440 | C92: 739000 | D92: SP886TA-2 | E92: DESIGN TRUCKING SNAPSET | F92: 7440 | G92: 817.05 | H92: 35 | I92: 1257 | J92: 612.79 | M92: 8511JA-4 | N92: 91
A93: 317007006 | C93: 739000 | D93: SP886TA-2 | E93: DESIGN TRUCKING SNAPSET | F93: 7006 | G93: 770.25 | H93: 35 | I93: 1185 | J93: 577.69 | M93: 8511JA-5 | N93: 92
A94: 317004960 | C94: 739000 | D94: SP886TA-2 | E94: DESIGN TRUCKING SNAPSET | F94: 4960 | G94: 689.65 | H94: 35 | I94: 1061 | J94: 517.24 | M94: 8511JB-2 | N94: 93
A95: 317003968 | C95: 739000 | D95: SP886TA-2 | E95: DESIGN TRUCKING SNAPSET | F95: 3968 | G95: 677.95 | H95: 35 | I95: 1043 | J95: 508.46 | M95: 8511JB-3 | N95: 94
A96: 317003100 | C96: 739000 | D96: SP886TA-2 | E96: DESIGN TRUCKING SNAPSET | F96: 3100 | G96: 588.9 | H96: 35 | I96: 906 | J96: 441.68 | M96: 8511JB-4 | N96: 95
A97: 317001984 | C97: 739000 | D97: SP886TA-2 | E97: DESIGN TRUCKING SNAPSET | F97: 1984 | G97: 424.45 | H97: 35 | I97: 653 | J97: 318.34 | M97: 8511JB-5 | N97: 96
A98: 317000992 | C98: 739000 | D98: SP886TA-2 | E98: DESIGN TRUCKING SNAPSET | F98: 992 | G98: 258.05 | H98: 35 | I98: 397 | J98: 193.54 | M98: 8511JC-2 | N98: 97
A99: 317000496 | C99: 739000 | D99: SP886TA-2 | E99: DESIGN TRUCKING SNAPSET | F99: 496 | G99: 187.85 | H99: 35 | I99: 289 | J99: 140.89 | M99: 8511JC-3 | N99: 98
A100: 316005000 | C100: 739000 | D100: SP8096C-5 | E100: FULL COLOUR SNPST 8.5X11.625 | F100: 5000 | G100: 2702.7 | H100: 35 | I100: 4158 | J100: 2027.03 | M100: 8511JC-4 | N100: 99
A101: 316002000 | C101: 739000 | D101: SP8096C-5 | E101: FULL COLOUR SNPST 8.5X11.625 | F101: 2000 | G101: 1142.7 | H101: 35 | I101: 1758 | J101: 857.03 | M101: 8511JC-5 | N101: 100
A102: 316001000 | C102: 739000 | D102: SP8096C-5 | E102: FULL COLOUR SNPST 8.5X11.625 | F102: 1000 | G102: 885.95 | H102: 35 | I102: 1363 | J102: 664.46 | M102: 8511K-2 | N102: 101
A103: 316000500 | C103: 739000 | D103: SP8096C-5 | E103: FULL COLOUR SNPST 8.5X11.625 | F103: 500 | G103: 677.3 | H103: 35 | I103: 1042 | J103: 507.98 | M103: 8511K-3 | N103: 102
A104: 315050000 | C104: 739000 | D104: SP8096C-4 | E104: FULL COLOUR SNPST 8.5X11.625 | F104: 50000 | G104: 8284.25 | H104: 35 | I104: 12745 | J104: 6213.19 | M104: 8511K-4 | N104: 103
A105: 315040000 | C105: 739000 | D105: SP8096C-4 | E105: FULL COLOUR SNPST 8.5X11.625 | F105: 40000 | G105: 7092.8 | H105: 35 | I105: 10912 | J105: 5319.6 | M105: 8511KA-2 | N105: 104
A106: 315030000 | C106: 739000 | D106: SP8096C-4 | E106: FULL COLOUR SNPST 8.5X11.625 | F106: 30000 | G106: 6575.4 | H106: 35 | I106: 10116 | J106: 4931.55 | M106: 8511KA-3 | N106: 105
A107: 315025000 | C107: 739000 | D107: SP8096C-4 | E107: FULL COLOUR SNPST 8.5X11.625 | F107: 25000 | G107: 5617.3 | H107: 35 | I107: 8642 | J107: 4212.98 | M107: 8511KA-4 | N107: 106
A108: 315020000 | C108: 739000 | D108: SP8096C-4 | E108: FULL COLOUR SNPST 8.5X11.625 | F108: 20000 | G108: 4616.3 | H108: 35 | I108: 7102 | J108: 3462.23 | M108: 8511KB-2 | N108: 107
A109: 315015000 | C109: 739000 | D109: SP8096C-4 | E109: FULL COLOUR SNPST 8.5X11.625 | F109: 15000 | G109: 3661.45 | H109: 35 | I109: 5633 | J109: 2746.09 | M109: 8511KB-3 | N109: 108
A110: 315010000 | C110: 739000 | D110: SP8096C-4 | E110: FULL COLOUR SNPST 8.5X11.625 | F110: 10000 | G110: 2592.85 | H110: 35 | I110: 3989 | J110: 1944.64 | M110: 8511KB-4 | N110: 109
A111: 315009000 | C111: 739000 | D111: SP8096C-4 | E111: FULL COLOUR SNPST 8.5X11.625 | F111: 9000 | G111: 2410.85 | H111: 35 | I111: 3709 | J111: 1808.14 | M111: 8511KC-2 | N111: 110
A112: 315008000 | C112: 739000 | D112: SP8096C-4 | E112: FULL COLOUR SNPST 8.5X11.625 | F112: 8000 | G112: 2203.5 | H112: 35 | I112: 3390 | J112: 1652.63 | M112: 8511KC-3 | N112: 111
A113: 315007000 | C113: 739000 | D113: SP8096C-4 | E113: FULL COLOUR SNPST 8.5X11.625 | F113: 7000 | G113: 1992.9 | H113: 35 | I113: 3066 | J113: 1494.68 | M113: 8511KC-4 | N113: 112
A114: 315006000 | C114: 739000 | D114: SP8096C-4 | E114: FULL COLOUR SNPST 8.5X11.625 | F114: 6000 | G114: 1792.05 | H114: 35 | I114: 2757 | J114: 1344.04 | M114: 8511P-1 | N114: 113
A115: 315005000 | C115: 739000 | D115: SP8096C-4 | E115: FULL COLOUR SNPST 8.5X11.625 | F115: 5000 | G115: 1584.7 | H115: 35 | I115: 2438 | J115: 1188.53 | M115: 8511PA-1 | N115: 114
A116: 315004000 | C116: 739000 | D116: SP8096C-4 | E116: FULL COLOUR SNPST 8.5X11.625 | F116: 4000 | G116: 1392.3 | H116: 35 | I116: 2142 | J116: 1044.23 | M116: 8511PB-1 | N116: 115
A117: 315003000 | C117: 739000 | D117: SP8096C-4 | E117: FULL COLOUR SNPST 8.5X11.625 | F117: 3000 | G117: 1177.8 | H117: 35 | I117: 1812 | J117: 883.35 | M117: 8511PC-1 | N117: 116
A118: 315002000 | C118: 739000 | D118: SP8096C-4 | E118: FULL COLOUR SNPST 8.5X11.625 | F118: 2000 | G118: 950.95 | H118: 35 | I118: 1463 | J118: 713.21 | M118: 8511TA-1 | N118: 117
A119: 315001000 | C119: 739000 | D119: SP8096C-4 | E119: FULL COLOUR SNPST 8.5X11.625 | F119: 1000 | G119: 705.9 | H119: 35 | I119: 1086 | J119: 529.43 | M119: 8511TB-1 | N119: 118
A120: 315000500 | C120: 739000 | D120: SP8096C-4 | E120: FULL COLOUR SNPST 8.5X11.625 | F120: 500 | G120: 482.95 | H120: 35 | I120: 743 | J120: 362.21 | M120: 8585J-2 | N120: 119
A121: 314050000 | C121: 739000 | D121: SP8096C-3 | E121: FULL COLOUR SNPST 8.5X11.625 | F121: 50000 | G121: 6141.2 | H121: 35 | I121: 9448 | J121: 4605.9 | M121: 8585J-3 | N121: 120
A122: 314040000 | C122: 739000 | D122: SP8096C-3 | E122: FULL COLOUR SNPST 8.5X11.625 | F122: 40000 | G122: 4963.4 | H122: 35 | I122: 7636 | J122: 3722.55 | M122: 8585J-4 | N122: 121
A123: 314030000 | C123: 739000 | D123: SP8096C-3 | E123: FULL COLOUR SNPST 8.5X11.625 | F123: 30000 | G123: 4870.45 | H123: 35 | I123: 7493 | J123: 3652.84 | M123: 8585J-5 | N123: 122
A124: 314025000 | C124: 739000 | D124: SP8096C-3 | E124: FULL COLOUR SNPST 8.5X11.625 | F124: 25000 | G124: 4160 | H124: 35 | I124: 6400 | J124: 3120 | M124: 4257J-2 | N124: 123
A125: 314020000 | C125: 739000 | D125: SP8096C-3 | E125: FULL COLOUR SNPST 8.5X11.625 | F125: 20000 | G125: 3416.4 | H125: 35 | I125: 5256 | J125: 2562.3 | M125: 4257J-3 | N125: 124
A126: 314015000 | C126: 739000 | D126: SP8096C-3 | E126: FULL COLOUR SNPST 8.5X11.625 | F126: 15000 | G126: 2708.55 | H126: 35 | I126: 4167 | J126: 2031.41 | M126: 4257J-4 | N126: 125
A127: 314010000 | C127: 739000 | D127: SP8096C-3 | E127: FULL COLOUR SNPST 8.5X11.625 | F127: 10000 | G127: 1913.6 | H127: 35 | I127: 2944 | J127: 1435.2 | M127: 4257J-5 | N127: 126
A128: 314009000 | C128: 739000 | D128: SP8096C-3 | E128: FULL COLOUR SNPST 8.5X11.625 | F128: 9000 | G128: 1781 | H128: 35 | I128: 2740 | J128: 1335.75 | M128: 4257JA-2 | N128: 127
A129: 314008000 | C129: 739000 | D129: SP8096C-3 | E129: FULL COLOUR SNPST 8.5X11.625 | F129: 8000 | G129: 1618.5 | H129: 35 | I129: 2490 | J129: 1213.88 | M129: 4257JA-3 | N129: 128
A130: =(VLOOKUP(D130,$M:$N,2,FALSE)*1000000)+F130 -> 314007000 | C130: 739000 | D130: SP8096C-3 | E130: FULL COLOUR SNPST 8.5X11.625 | F130: 7000 | G130: 1454.7 | H130: 35 | I130: 2238 | J130: 1091.03 | M130: 4257JA-4 | N130: 129
A131: 314006000 | C131: 739000 | D131: SP8096C-3 | E131: FULL COLOUR SNPST 8.5X11.625 | F131: 6000 | G131: 1292.2 | H131: 35 | I131: 1988 | J131: 969.15 | M131: 4257JA-5 | N131: 130
A132: 314005000 | C132: 739000 | D132: SP8096C-3 | E132: FULL COLOUR SNPST 8.5X11.625 | F132: 5000 | G132: 1146.6 | H132: 35 | I132: 1764 | J132: 859.95 | M132: 4257JB-2 | N132: =N131+1 -> 131
A133: 314004000 | C133: 739000 | D133: SP8096C-3 | E133: FULL COLOUR SNPST 8.5X11.625 | F133: 4000 | G133: 1004.9 | H133: 35 | I133: 1546 | J133: 753.68 | M133: 4257JB-3 | N133: 132
A134: 314003000 | C134: 739000 | D134: SP8096C-3 | E134: FULL COLOUR SNPST 8.5X11.625 | F134: 3000 | G134: 856.7 | H134: 35 | I134: 1318 | J134: 642.53 | M134: 4257JB-4 | N134: 133
A135: 314002000 | C135: 739000 | D135: SP8096C-3 | E135: FULL COLOUR SNPST 8.5X11.625 | F135: 2000 | G135: 694.2 | H135: 35 | I135: 1068 | J135: 520.65 | M135: 4257JB-5 | N135: 134
A136: 314001000 | C136: 739000 | D136: SP8096C-3 | E136: FULL COLOUR SNPST 8.5X11.625 | F136: 1000 | G136: 516.1 | H136: 35 | I136: 794 | J136: 387.08 | M136: 4257JC-2 | N136: 135
A137: 314000500 | C137: 739000 | D137: SP8096C-3 | E137: FULL COLOUR SNPST 8.5X11.625 | F137: 500 | G137: 383.5 | H137: 35 | I137: 590 | J137: 287.63 | M137: 4257JC-3 | N137: 136
A138: 313050000 | C138: 739000 | D138: SP8096C-2 | E138: FULL COLOUR SNPST 8.5X11.625 | F138: 50000 | G138: 4631.25 | H138: 35 | I138: 7125 | J138: 3473.44 | M138: 4257JC-4 | N138: 137
A139: 313040000 | C139: 739000 | D139: SP8096C-2 | E139: FULL COLOUR SNPST 8.5X11.625 | F139: 40000 | G139: 3788.2 | H139: 35 | I139: 5828 | J139: 2841.15 | M139: 4257JC-5 | N139: 138
A140: 313030000 | C140: 739000 | D140: SP8096C-2 | E140: FULL COLOUR SNPST 8.5X11.625 | F140: 30000 | G140: 3723.85 | H140: 35 | I140: 5729 | J140: 2792.89 | M140: 42511J-2 | N140: 139
A141: 313025000 | C141: 739000 | D141: SP8096C-2 | E141: FULL COLOUR SNPST 8.5X11.625 | F141: 25000 | G141: 3185.65 | H141: 35 | I141: 4901 | J141: 2389.24 | M141: 42511J-3 | N141: 140
A142: 313020000 | C142: 739000 | D142: SP8096C-2 | E142: FULL COLOUR SNPST 8.5X11.625 | F142: 20000 | G142: 2622.75 | H142: 35 | I142: 4035 | J142: 1967.06 | M142: 42511J-4 | N142: 141
A143: 313015000 | C143: 739000 | D143: SP8096C-2 | E143: FULL COLOUR SNPST 8.5X11.625 | F143: 15000 | G143: 2086.5 | H143: 35 | I143: 3210 | J143: 1564.88 | M143: 42511J-5 | N143: 142
A144: 313010000 | C144: 739000 | D144: SP8096C-2 | E144: FULL COLOUR SNPST 8.5X11.625 | F144: 10000 | G144: 1485.25 | H144: 35 | I144: 2285 | J144: 1113.94 | M144: 42511JA-2 | N144: 143
A145: 313009000 | C145: 739000 | D145: SP8096C-2 | E145: FULL COLOUR SNPST 8.5X11.625 | F145: 9000 | G145: 1367.6 | H145: 35 | I145: 2104 | J145: 1025.7 | M145: 42511JA-3 | N145: 144
A146: 313008000 | C146: 739000 | D146: SP8096C-2 | E146: FULL COLOUR SNPST 8.5X11.625 | F146: 8000 | G146: 1266.2 | H146: 35 | I146: 1948 | J146: 949.65 | M146: 42511JA-4 | N146: 145
A147: 313007000 | C147: 739000 | D147: SP8096C-2 | E147: FULL COLOUR SNPST 8.5X11.625 | F147: 7000 | G147: 1182.35 | H147: 35 | I147: 1819 | J147: 886.76 | M147: 42511JA-5 | N147: 146
A148: 313006000 | C148: 739000 | D148: SP8096C-2 | E148: FULL COLOUR SNPST 8.5X11.625 | F148: 6000 | G148: 1157 | H148: 35 | I148: 1780 | J148: 867.75 | M148: 42511JB-2 | N148: 147
A149: 313005000 | C149: 739000 | D149: SP8096C-2 | E149: FULL COLOUR SNPST 8.5X11.625 | F149: 5000 | G149: 1025.7 | H149: 35 | I149: 1578 | J149: 769.28 | M149: 42511JB-3 | N149: 148
A150: 313004000 | C150: 739000 | D150: SP8096C-2 | E150: FULL COLOUR SNPST 8.5X11.625 | F150: 4000 | G150: 1011.4 | H150: 35 | I150: 1556 | J150: 758.55 | M150: 42511JB-4 | N150: 149
A151: 313003000 | C151: 739000 | D151: SP8096C-2 | E151: FULL COLOUR SNPST 8.5X11.625 | F151: 3000 | G151: 1002.95 | H151: 35 | I151: 1543 | J151: 752.21 | M151: 42511JB-5 | N151: 150
A152: 313002000 | C152: 739000 | D152: SP8096C-2 | E152: FULL COLOUR SNPST 8.5X11.625 | F152: 2000 | G152: 691.6 | H152: 35 | I152: 1064 | J152: 518.7 | M152: 42511JC-2 | N152: 151
A153: 313001000 | C153: 739000 | D153: SP8096C-2 | E153: FULL COLOUR SNPST 8.5X11.625 | F153: 1000 | G153: 451.1 | H153: 35 | I153: 694 | J153: 338.33 | M153: 42511JC-3 | N153: 152
A154: 313000500 | C154: 739000 | D154: SP8096C-2 | E154: FULL COLOUR SNPST 8.5X11.625 | F154: 500 | G154: 326.95 | H154: 35 | I154: 503 | J154: 245.21 | M154: 42511JC-4 | N154: 153
A155: 312005000 | C155: 739000 | D155: SP8096B-5 | E155: DESIGN SNAPSET 8.5 X 11.625 | F155: 5000 | G155: 2112.5 | H155: 35 | I155: 3250 | J155: 1584.38 | M155: 42511JC-5 | N155: 154
A156: 312002000 | C156: 739000 | D156: SP8096B-5 | E156: DESIGN SNAPSET 8.5 X 11.625 | F156: 2000 | G156: 893.75 | H156: 35 | I156: 1375 | J156: 670.31 | M156: 42511K-2 | N156: 155
A157: 312001000 | C157: 739000 | D157: SP8096B-5 | E157: DESIGN SNAPSET 8.5 X 11.625 | F157: 1000 | G157: 692.9 | H157: 35 | I157: 1066 | J157: 519.68 | M157: 42511K-3 | N157: 156
A158: 312000500 | C158: 739000 | D158: SP8096B-5 | E158: DESIGN SNAPSET 8.5 X 11.625 | F158: 500 | G158: 529.1 | H158: 35 | I158: 814 | J158: 396.83 | M158: 42511K-4 | N158: 157
A159: 311050000 | C159: 739000 | D159: SP8096B-4 | E159: DESIGN SNAPSET 8.5 X 11.625 | F159: 50000 | G159: 7530.9 | H159: 35 | I159: 11586 | J159: 5648.18 | M159: 42511KA-2 | N159: 158
A160: 311040000 | C160: 739000 | D160: SP8096B-4 | E160: DESIGN SNAPSET 8.5 X 11.625 | F160: 40000 | G160: 6448 | H160: 35 | I160: 9920 | J160: 4836 | M160: 42511KA-3 | N160: 159
A161: 311030000 | C161: 739000 | D161: SP8096B-4 | E161: DESIGN SNAPSET 8.5 X 11.625 | F161: 30000 | G161: 5978.05 | H161: 35 | I161: 9197 | J161: 4483.54 | M161: 42511KA-4 | N161: 160
A162: 311025000 | C162: 739000 | D162: SP8096B-4 | E162: DESIGN SNAPSET 8.5 X 11.625 | F162: 25000 | G162: 5106.4 | H162: 35 | I162: 7856 | J162: 3829.8 | M162: 42511KB-2 | N162: 161
A163: 311020000 | C163: 739000 | D163: SP8096B-4 | E163: DESIGN SNAPSET 8.5 X 11.625 | F163: 20000 | G163: 4196.4 | H163: 35 | I163: 6456 | J163: 3147.3 | M163: 42511KB-3 | N163: 162
A164: 311015000 | C164: 739000 | D164: SP8096B-4 | E164: DESIGN SNAPSET 8.5 X 11.625 | F164: 15000 | G164: 3328.65 | H164: 35 | I164: 5121 | J164: 2496.49 | M164: 42511KB-4 | N164: 163
A165: 311010000 | C165: 739000 | D165: SP8096B-4 | E165: DESIGN SNAPSET 8.5 X 11.625 | F165: 10000 | G165: 2356.9 | H165: 35 | I165: 3626 | J165: 1767.68 | M165: 42511KC-2 | N165: 164
A166: 311009000 | C166: 739000 | D166: SP8096B-4 | E166: DESIGN SNAPSET 8.5 X 11.625 | F166: 9000 | G166: 2191.8 | H166: 35 | I166: 3372 | J166: 1643.85 | M166: 42511KC-3 | N166: 165
A167: 311008000 | C167: 739000 | D167: SP8096B-4 | E167: DESIGN SNAPSET 8.5 X 11.625 | F167: 8000 | G167: 2003.3 | H167: 35 | I167: 3082 | J167: 1502.48 | M167: 42511KC-4 | N167: 166
A168: 311007000 | C168: 739000 | D168: SP8096B-4 | E168: DESIGN SNAPSET 8.5 X 11.625 | F168: 7000 | G168: 1812.2 | H168: 35 | I168: 2788 | J168: 1359.15 | M168: 56611J-2 | N168: 167
A169: 311006000 | C169: 739000 | D169: SP8096B-4 | E169: DESIGN SNAPSET 8.5 X 11.625 | F169: 6000 | G169: 1629.55 | H169: 35 | I169: 2507 | J169: 1222.16 | M169: 56611J-3 | N169: 168
A170: 311005000 | C170: 739000 | D170: SP8096B-4 | E170: DESIGN SNAPSET 8.5 X 11.625 | F170: 5000 | G170: 1441.05 | H170: 35 | I170: 2217 | J170: 1080.79 | M170: 56611J-4 | N170: 169
A171: 311004000 | C171: 739000 | D171: SP8096B-4 | E171: DESIGN SNAPSET 8.5 X 11.625 | F171: 4000 | G171: 1265.55 | H171: 35 | I171: 1947 | J171: 949.16 | M171: 56611J-5 | N171: 170
A172: 311003000 | C172: 739000 | D172: SP8096B-4 | E172: DESIGN SNAPSET 8.5 X 11.625 | F172: 3000 | G172: 1070.55 | H172: 35 | I172: 1647 | J172: 802.91 | M172: 56611JA-2 | N172: 171
A173: 311002000 | C173: 739000 | D173: SP8096B-4 | E173: DESIGN SNAPSET 8.5 X 11.625 | F173: 2000 | G173: 864.5 | H173: 35 | I173: 1330 | J173: 648.38 | M173: 56611JA-3 | N173: 172
A174: 311001000 | C174: 739000 | D174: SP8096B-4 | E174: DESIGN SNAPSET 8.5 X 11.625 | F174: 1000 | G174: 641.55 | H174: 35 | I174: 987 | J174: 481.16 | M174: 56611JA-4 | N174: 173
A175: 311000500 | C175: 739000 | D175: SP8096B-4 | E175: DESIGN SNAPSET 8.5 X 11.625 | F175: 500 | G175: 439.4 | H175: 35 | I175: 676 | J175: 329.55 | M175: 56611JA-5 | N175: 174
A176: 310050000 | C176: 739000 | D176: SP8096B-3 | E176: DESIGN SNAPSET 8.5 X 11.625 | F176: 50000 | G176: 5583.5 | H176: 35 | I176: 8590 | J176: 4187.63 | M176: 56611JB-2 | N176: 175
A177: 310040000 | C177: 739000 | D177: SP8096B-3 | E177: DESIGN SNAPSET 8.5 X 11.625 | F177: 40000 | G177: 4512.3 | H177: 35 | I177: 6942 | J177: 3384.23 | M177: 56611JB-3 | N177: 176
A178: 310030000 | C178: 739000 | D178: SP8096B-3 | E178: DESIGN SNAPSET 8.5 X 11.625 | F178: 30000 | G178: 4427.8 | H178: 35 | I178: 6812 | J178: 3320.85 | M178: 56611JB-4 | N178: 177
A179: 310025000 | C179: 739000 | D179: SP8096B-3 | E179: DESIGN SNAPSET 8.5 X 11.625 | F179: 25000 | G179: 3781.7 | H179: 35 | I179: 5818 | J179: 2836.28 | M179: 56611JB-5 | N179: 178
A180: 310020000 | C180: 739000 | D180: SP8096B-3 | E180: DESIGN SNAPSET 8.5 X 11.625 | F180: 20000 | G180: 3105.7 | H180: 35 | I180: 4778 | J180: 2329.28 | M180: 56611JC-2 | N180: 179
A181: 310015000 | C181: 739000 | D181: SP8096B-3 | E181: DESIGN SNAPSET 8.5 X 11.625 | F181: 15000 | G181: 2462.85 | H181: 35 | I181: 3789 | J181: 1847.14 | M181: 56611JC-3 | N181: 180
A182: 310010000 | C182: 739000 | D182: SP8096B-3 | E182: DESIGN SNAPSET 8.5 X 11.625 | F182: 10000 | G182: 1740.05 | H182: 35 | I182: 2677 | J182: 1305.04 | M182: 56611JC-4 | N182: 181
A183: 310009000 | C183: 739000 | D183: SP8096B-3 | E183: DESIGN SNAPSET 8.5 X 11.625 | F183: 9000 | G183: 1619.15 | H183: 35 | I183: 2491 | J183: 1214.36 | M183: 56611JC-5 | N183: 182
A184: 310008000 | C184: 739000 | D184: SP8096B-3 | E184: DESIGN SNAPSET 8.5 X 11.625 | F184: 8000 | G184: 1471.6 | H184: 35 | I184: 2264 | J184: 1103.7 | M184: 8585JA-2 | N184: 183
A185: 310007000 | C185: 739000 | D185: SP8096B-3 | E185: DESIGN SNAPSET 8.5 X 11.625 | F185: 7000 | G185: 1322.75 | H185: 35 | I185: 2035 | J185: 992.06 | M185: 8585JA-3 | N185: 184
A186: 310006000 | C186: 739000 | D186: SP8096B-3 | E186: DESIGN SNAPSET 8.5 X 11.625 | F186: 6000 | G186: 1175.2 | H186: 35 | I186: 1808 | J186: 881.4 | M186: 8585JA-4 | N186: 185
A187: 310005000 | C187: 739000 | D187: SP8096B-3 | E187: DESIGN SNAPSET 8.5 X 11.625 | F187: 5000 | G187: 1042.6 | H187: 35 | I187: 1604 | J187: 781.95 | M187: 8585JA-5 | N187: 186
A188: 310004000 | C188: 739000 | D188: SP8096B-3 | E188: DESIGN SNAPSET 8.5 X 11.625 | F188: 4000 | G188: 913.9 | H188: 35 | I188: 1406 | J188: 685.43 | M188: 8585JB-2 | N188: 187
A189: 310003000 | C189: 739000 | D189: SP8096B-3 | E189: DESIGN SNAPSET 8.5 X 11.625 | F189: 3000 | G189: 778.7 | H189: 35 | I189: 1198 | J189: 584.03 | M189: 8585JB-3 | N189: 188
A190: 310002000 | C190: 739000 | D190: SP8096B-3 | E190: DESIGN SNAPSET 8.5 X 11.625 | F190: 2000 | G190: 631.15 | H190: 35 | I190: 971 | J190: 473.36 | M190: 8585JB-4 | N190: 189
A191: 310001000 | C191: 739000 | D191: SP8096B-3 | E191: DESIGN SNAPSET 8.5 X 11.625 | F191: 1000 | G191: 469.3 | H191: 35 | I191: 722 | J191: 351.98 | M191: 8585JB-5 | N191: 190
A192: 310000500 | C192: 739000 | D192: SP8096B-3 | E192: DESIGN SNAPSET 8.5 X 11.625 | F192: 500 | G192: 349.05 | H192: 35 | I192: 537 | J192: 261.79 | M192: 8585JC-2 | N192: 191
A193: 309050000 | C193: 739000 | D193: SP8096B-2 | E193: DESIGN SNAPSET 8.5 X 11.625 | F193: 50000 | G193: 3619.2 | H193: 35 | I193: 5568 | J193: 2714.4 | M193: 8585JC-3 | N193: 192
A194: =(VLOOKUP(D194,$M:$N,2,FALSE)*1000000)+F194 -> 309040000 | C194: 739000 | D194: SP8096B-2 | E194: DESIGN SNAPSET 8.5 X 11.625 | F194: 40000 | G194: 2960.75 | H194: 35 | I194: 4555 | J194: 2220.56 | M194: 8585JC-4 | N194: 193
A195: 309030000 | C195: 739000 | D195: SP8096B-2 | E195: DESIGN SNAPSET 8.5 X 11.625 | F195: 30000 | G195: 2910.05 | H195: 35 | I195: 4477 | J195: 2182.54 | M195: 8585JC-5 | N195: 194
A196: 309025000 | C196: 739000 | D196: SP8096B-2 | E196: DESIGN SNAPSET 8.5 X 11.625 | F196: 25000 | G196: 2490.15 | H196: 35 | I196: 3831 | J196: 1867.61 | M196: 8514J-2 | N196: =N195+1 -> 195
A197: 309020000 | C197: 739000 | D197: SP8096B-2 | E197: DESIGN SNAPSET 8.5 X 11.625 | F197: 20000 | G197: 2049.45 | H197: 35 | I197: 3153 | J197: 1537.09 | M197: 8514J-3 | N197: 196
A198: 309015000 | C198: 739000 | D198: SP8096B-2 | E198: DESIGN SNAPSET 8.5 X 11.625 | F198: 15000 | G198: 1630.85 | H198: 35 | I198: 2509 | J198: 1223.14 | M198: 8514J-4 | N198: 197
A199: 309010000 | C199: 739000 | D199: SP8096B-2 | E199: DESIGN SNAPSET 8.5 X 11.625 | F199: 10000 | G199: 1160.9 | H199: 35 | I199: 1786 | J199: 870.68 | M199: 8514J-5 | N199: 198
A200: 309009000 | C200: 739000 | D200: SP8096B-2 | E200: DESIGN SNAPSET 8.5 X 11.625 | F200: 9000 | G200: 1069.25 | H200: 35 | I200: 1645 | J200: 801.94 | M200: 8514JA-2 | N200: 199
... 5725 more rows

Sheet Side 1 (hidden)
E1: One Ink | F1: Two Inks | G1: Three Inks | H1: Four Inks
C2: GENERIC DESIGN PRODUCTS - 1 to 14 Questions in Comments Required
C3: REVERSE NUMBERING INCLUDED ON DESIGN CHEQUES Use Special Instructions | E3: Backprint not counted as an ink on design cheques - LOGO Charges apply
C4: Size | D4: Parts
C5: LASER CHEQUE | E5: One Ink (1/0) | F5: A (2/0) | G5: B (3/0) | H5: C (4/0)
C6: 8 1/2 X 11 | D6: 1-2-3 | E6: 8511L | F6: 8511LA | G6: 8511LB | H6: 8511LC
C7: 8 1/2 X 11 (Security with Gold Hologram) | D7: 1-2-3 | E7: S8511L | F7: S8511LA | G7: S8511LB | H7: S8511LC
C8: 8 1/2 X 11 - HIGH SECURITY (Silver Hologram) | D8: 1-2-3 | E8: H8511L | F8: H8511LA | G8: H8511LB | H8: H8511LC
C9: 8 1/2 X 11 - NEXT GEN (Silver Hologram + FPT, ATCP, THERMO) | D9: 1-2 | E9: DV8511L | F9: DV851LA | G9: DV851LB | H9: N/A
C10: 8 1/2 X 11 (3 to a page) | D10: 1 | E10: 85113L | F10: 85113LA | G10: Online Quote | H10: Online Quote
C11: 8 1/2 X 11 (3 to a page Security) | D11: 1 | E11: S85113L | F11: S8513LA | G11: Online Quote | H11: Online Quote
C12: 8 1/2 X 14 | D12: 1 | E12: 8514L | F12: 8514LA | G12: 8514LB | H12: Online Quote
C13: BUILDING BLOCK CHEQUES (black imprint only on standard base stock | F13: Back Print Language
C14: 8 1/2 x 11 Top | D14: 1-2 | E14: B8511L1 | F14: Bilingual | H14: NOTE: Bilingual Cheques do not have a hologram
C15: 8 1/2 x 11 Middle | D15: 1-2 | E15: B8511L2 | F15: Bilingual
C16: 8 1/2 x 11 Bottom | D16: 1 | E16: B8511L3 | F16: Bilingual
C17: 8 1/2 x 11 3 to a page | D17: 1 | E17: B85113L | F17: Bilingual
C19: 8 1/2 x 11 Top Security | D19: 1-2-3 | E19: SB851L1 | F19: English
C20: 8 1/2 x 11 Middle Security | D20: 1-2-3 | E20: SB851L2 | F20: English | H20: Proof charge to be applied as needed to all Building Block Cheques
C21: 8 1/2 x 11 Bottom Security | D21: 1-2 | E21: SB851L3 | F21: English
C22: 8 1/2 x 11 3 to a page Security | D22: 1 | E22: SB8513L | F22: English
C24: 8 1/2 x 11 Top Security | D24: 1-2-3 | E24: SBF85L1 | F24: French
C25: 8 1/2 x 11 Middle Security | D25: 1-2-3 | E25: SBF85L2 | F25: French
C26: 8 1/2 x 11 Bottom Security | D26: 1-2 | E26: SBF85L3 | F26: French
H27: DFS Only
C28: 8 1/2 x 11 Top High Security | D28: 1-2-3 | E28: HB851L1 | F28: English | H28: WHB85L1
C29: 8 1/2 x 11 Middle High Security | D29: 1-2-3 | E29: HB851L2 | F29: English | H29: WHB85L2
C30: 8 1/2 x 11 Bottom High Security | D30: 1-2 | E30: HB851L3 | F30: English | H30: WHB85L3
C31: 8 1/2 x 11 3 to a page High Security | D31: 1 | E31: HB8513L | F31: English | H31: WHB853L
C33: 8 1/2 x 11 Top High Security | D33: 1-2-3 | E33: HBF85L1 | F33: French
C34: 8 1/2 x 11 Middle High Security | D34: 1-2-3 | E34: HBF85L2 | F34: French
C35: 8 1/2 x 11 Bottom High Security | D35: 1-2 | E35: HBF85L3 | F35: French
C36: CONTINUOUS CHEQUES (size includes tractor feed stubs) | E36: One Ink (1/0) | F36: A (2/0) | G36: B (3/0)
C37: 9 1/2 X 3 1/2 | D37: 1-2 | E37: 9535N | F37: 9535NA | G37: Online Quote | H37: Cheque backprint is not counted as an ink colour for design
C38: 9 1/2 X 7 | D38: 1-2-3 | E38: 957N | F38: 957NA | G38: 957NB
C39: 9 1/2 X 7 (Security - no hologram) | D39: 1-2 | E39: Online Quote | F39: S957NA | G39: Online Quote
C40: 9 1/2 X 11 | D40: 1-2 | E40: 9511N | F40: 9511NA | G40: Online Quote
C41: 8 1/2 X 7, 8 1/2 x 8 1/2, 9 1/2 x 8 1/2 | D41: 1-2-3 | E41: Online Quote | F41: 857NA | G41: Online Quote
C42: MANUAL CHEQUES (2 to a page) - CAN BE USED FOR 1 TO A PAGE CHEQUES TOO! | E42: One Ink (1/0) | F42: A (2/0) | G42: B (3/0)
C43: 11 X 6 1/2 | D43: 1-2 | E43: 1165M | F43: 1165MA | G43: 1165MB | H43: Cheque backprint is not counted as an ink colour for design
C44: 11 X 6 1/2 (Security with Hologram) | D44: 1-2 | E44: S1165M | F44: S1165MA | G44: S1165MB
C45: 11 X 6 1/2 - HIGH SECURITY | D45: 1-2 | E45: H1165M | F45: H1165MA | G45: H1165MB
C46: LASER FORMS | E46: One Ink (1/0) | F46: A (2/0, 1/1) | G46: B (3/0, 2/1) | H46: C (4/0, 3/1, 2/2)
C47: 8 1/2 X 11 | D47: 1-2-3-4 | E47: 8511E | F47: 8511EA | G47: 8511EB | H47: 8511EC
C48: 8 1/2 X 11 (3 to a page receipt - allows static or consecutive #ing) | D48: 1 | E48: 85113E | F48: 85113EA | G48: 85113EB | H48: 85113EC
C49: 8 1/2 X 14 | D49: 1-2-3 | E49: 8514E | F49: 8514EA | G49: 8514EB | H49: 8514EC
C50: 8 1/2 x 11 tag form white | D50: 1 | E50: SP2506A | F50: SP2506A | G50: SP2506B | H50: SP2506C
C51: MANUAL FORMS - SNAPSETS (size not including stub) (4 & 5 part forms book in 25) - first dimension is stub location | E51: One Ink (1/0) | F51: A (2/0, 1/1) | G51: B (3/0, 2/1) | H51: C (4/0, 3/1, 2/2)
A52: =B52&"|"&C52 -> Snapset - Manual Form Without Tag Back|up to 3 4/10 x 5 1/8 | B52: =DropDowns!$B$4 -> Snapset - Manual Form Without Tag Back | C52: up to 3 4/10 x 5 1/8 | D52: 2-3-4-5 | E52: 34105J | F52: 34105JA | G52: 34105JB | H52: 34105JC
A53: =B53&"|"&C53 -> Snapset - Manual Form Without Tag Back|up to 3 4/10 x 8 1/2 | B53: =DropDowns!$B$4 -> Snapset - Manual Form Without Tag Back | C53: up to 3 4/10 x 8 1/2 | D53: 2-3-4-5 | E53: 34108J | F53: 34108JA | G53: 34108JB | H53: 34108JC
A54: Snapset - Manual Form Without Tag Back|up to 4 1/4 x 7 | B54: =DropDowns!$B$4 -> Snapset - Manual Form Without Tag Back | C54: up to 4 1/4 x 7 | D54: 2-3-4-5 | E54: 4257J | F54: 4257JA | G54: 4257JB | H54: 4257JC
A55: Snapset - Manual Form Without Tag Back|up to 4 1/4 x 11 | B55: =DropDowns!$B$4 -> Snapset - Manual Form Without Tag Back | C55: up to 4 1/4 x 11 | D55: 2-3-4-5 | E55: 42511J | F55: 42511JA | G55: 42511JB | H55: 42511JC
A56: Snapset - Manual Form Without Tag Back|up to 5 2/3 x 8 1/2 | B56: =DropDowns!$B$4 -> Snapset - Manual Form Without Tag Back | C56: up to 5 2/3 x 8 1/2 | D56: 2-3-4-5 | E56: 56685J | F56: 56685JA | G56: 56685JB | H56: 56685JC
A57: Snapset - Manual Form Without Tag Back|up to 5 2/3 x 11 | B57: =DropDowns!$B$4 -> Snapset - Manual Form Without Tag Back | C57: up to 5 2/3 x 11 | D57: 2-3-4-5 | E57: 56611J | F57: 56611JA | G57: 56611JB | H57: 56611JC
A58: Snapset - Manual Form Without Tag Back|up to 8 1/2 x 7 | B58: =DropDowns!$B$4 -> Snapset - Manual Form Without Tag Back | C58: up to 8 1/2 x 7 | D58: 2-3-4-5 | E58: 857J | F58: 857JA | G58: 857JB | H58: 857JC
A59: Snapset - Manual Form Without Tag Back|up to 8 1/2 x 8 1/2 | B59: =DropDowns!$B$4 -> Snapset - Manual Form Without Tag Back | C59: up to 8 1/2 x 8 1/2 | D59: 2-3-4-5 | E59: 8585J | F59: 8585JA | G59: 8585JB | H59: 8585JC
A60: Snapset - Manual Form Without Tag Back|up to 8 1/2 x 11 | B60: =DropDowns!$B$4 -> Snapset - Manual Form Without Tag Back | C60: up to 8 1/2 x 11 | D60: 2-3-4-5 | E60: 8511J | F60: 8511JA | G60: 8511JB | H60: 8511JC
A61: Snapset - Manual Form Without Tag Back|up to 8 1/2 14 | B61: =DropDowns!$B$4 -> Snapset - Manual Form Without Tag Back | C61: up to 8 1/2 14 | D61: 2-3-4-5 | E61: 8514J | F61: 8514JA | G61: 8514JB | H61: 8514JC
A62: Snapset - Manual Form Without Tag Back|8 1/2 x 11 double stubbed form | B62: =DropDowns!$B$4 -> Snapset - Manual Form Without Tag Back | C62: 8 1/2 x 11 double stubbed form | D62: 2-3-4-5 | E62: SP8096A | F62: SP8096A | G62: SP8096B | H62: SP8096C
A63: Snapset - Manual Form Without Tag Back|8 1/2 x 11 Trucking form | B63: =DropDowns!$B$4 -> Snapset - Manual Form Without Tag Back | C63: 8 1/2 x 11 Trucking form | D63: 2-3 | E63: SP886TA | F63: SP886TA | G63: =$K$63 -> Call For Pricing 1-800-490-6327 | H63: =$K$63 -> Call For Pricing 1-800-490-6327 | K63: Call For Pricing 1-800-490-6327
A64: Snapset - Manual Form Without Tag Back|9 1/8 x 8 1/2 Receipt Book | B64: =DropDowns!$B$4 -> Snapset - Manual Form Without Tag Back | C64: 9 1/8 x 8 1/2 Receipt Book | D64: 2-3 | E64: SP693 | F64: SP693A | G64: SP693B | H64: SP693C
A65: |REGISTER FORMS | C65: REGISTER FORMS | E65: One Ink (1/0) | F65: A (2/0, 1/1) | G65: B (3/0, 2/1)
A66: Register Form|5 1/2 X 8 1/2 | B66: =DropDowns!B3 -> Register Form | C66: 5 1/2 X 8 1/2 | D66: 2-3-4 | E66: SP8375A | F66: SP8375A | G66: SP8375B
A67: |MANUAL FORMS WITH TAG BACK - SNAPSET (size not including stub) (4 part forms book in 25) - first dimension is stub location | C67: MANUAL FORMS WITH TAG BACK - SNAPSET (size not including stub) (4 part forms book in 25) - first dimension is stub location | E67: One Ink (1/0) | F67: A (2/0, 1/1) | G67: B (3/0, 2/1) | H67: C (4/0, 3/1, 2/2)
A68: Snapset - Manual Form With Tag Back|up to 3 4/10 x 8 1/2 | B68: =DropDowns!$B$5 -> Snapset - Manual Form With Tag Back | C68: up to 3 4/10 x 8 1/2 | D68: 2-3-4 | E68: 34108K | F68: 34108KA | G68: 34108KB | H68: 34108KC
A69: Snapset - Manual Form With Tag Back|up to 4 1/4 x 11 | B69: =DropDowns!$B$5 -> Snapset - Manual Form With Tag Back | C69: up to 4 1/4 x 11 | D69: 2-3-4 | E69: 42511K | F69: 42511KA | G69: 42511KB | H69: 42511KC
A70: Snapset - Manual Form With Tag Back|up to 5 2/3 x 11 | B70: =DropDowns!$B$5 -> Snapset - Manual Form With Tag Back | C70: up to 5 2/3 x 11 | D70: 2-3-4 | E70: 56611K | F70: 56611KA | G70: 56611KB | H70: 56611KC
A71: Snapset - Manual Form With Tag Back|up to 8 1/2 x 8 1/2 | B71: =DropDowns!$B$5 -> Snapset - Manual Form With Tag Back | C71: up to 8 1/2 x 8 1/2 | D71: 2-3-4 | E71: 8585K | F71: 8585KA | G71: 8585KB | H71: 8585KC
A72: Snapset - Manual Form With Tag Back|up to 8 1/2 x 11 | B72: =DropDowns!$B$5 -> Snapset - Manual Form With Tag Back | C72: up to 8 1/2 x 11 | D72: 2-3-4 | E72: 8511K | F72: 8511KA | G72: 8511KB | H72: 8511KC
A73: Snapset - Manual Form With Tag Back|up to 8 1/2 14 | B73: =DropDowns!$B$5 -> Snapset - Manual Form With Tag Back | C73: up to 8 1/2 14 | D73: 2-3-4 | E73: 8514K | F73: 8514KA | G73: 8514KB | H73: 8514KC
A74: Snapset - Manual Form With Tag Back|7 1/2 x 4 1/4 Restaurant Guest Check | B74: =DropDowns!$B$5 -> Snapset - Manual Form With Tag Back | C74: 7 1/2 x 4 1/4 Restaurant Guest Check | D74: 1-2 | E74: 75425K | F74: 75425KA | G74: 75425KB | H74: 75425KC
A75: Snapset - Manual Form With Tag Back|9 1/8 x 4 1/2 Restaurant Guest Check | B75: =DropDowns!$B$5 -> Snapset - Manual Form With Tag Back | C75: 9 1/8 x 4 1/2 Restaurant Guest Check | D75: 1-2 | E75: 91845K | F75: 91845KA | G75: 91845KB | H75: 91845KC
A76: |REPAIR FORMS WITH CLAIM CHECKS (size not including stub) first dimension is stub location | C76: REPAIR FORMS WITH CLAIM CHECKS (size not including stub) first dimension is stub location | E76: One Ink (1/0) | F76: A (2/0, 1/1) | G76: B (3/0, 2/1) | H76: C (4/0, 3/1, 2/2)
A77: Repair Form With Claim Check|4 1/4 x 8 1/2 with 1 claim check | B77: =DropDowns!$B$6 -> Repair Form With Claim Check | C77: 4 1/4 x 8 1/2 with 1 claim check | D77: 2 | E77: SP305A | F77: SP305A | G77: SP305B | H77: =$K$63 -> Call For Pricing 1-800-490-6327
A78: Repair Form With Claim Check|5 2/3 x 11 with 2 claim checks | B78: =DropDowns!$B$6 -> Repair Form With Claim Check | C78: 5 2/3 x 11 with 2 claim checks | D78: 2-3 | E78: SP312A | F78: SP312A | G78: SP312B | H78: =$K$63 -> Call For Pricing 1-800-490-6327
A79: Repair Form With Claim Check|8 1/2 x 8 1/2 with 1 claim check & ID tag | B79: =DropDowns!$B$6 -> Repair Form With Claim Check | C79: 8 1/2 x 8 1/2 with 1 claim check & ID tag | D79: 2-3 | E79: SP2311A | F79: SP2311A | G79: SP2311B | H79: =$K$63 -> Call For Pricing 1-800-490-6327
A80: Repair Form With Claim Check|3 1/8 x 5 1/2 with 1 claim check | B80: =DropDowns!$B$6 -> Repair Form With Claim Check | C80: 3 1/8 x 5 1/2 with 1 claim check | D80: 1 | E80: SP304A | F80: SP304A | G80: SP304B | H80: =$K$63 -> Call For Pricing 1-800-490-6327
C82: Unimprinted Laser Cheques - Blank Stock - Same stock as SS cheques | D82: Colour | E82: TOP | F82: MIDDLE | G82: BOTTOM
C84: English Backprint | D84: CYAN | E84: UCYS985 | F84: UCYS939 | G84: n/a
D85: BLUE | E85: UBUS985 | F85: UBUS939 | G85: UBUS151
D86: GREEN | E86: UGNS985 | F86: UGNS939 | G86: UGNS151
D87: BURGUNDY | E87: UBGS985 | F87: UBGS939 | G87: UBGS151
D88: TAN | E88: UTNS985 | F88: UTNS939 | G88: UTNS151
D89: PURPLE | E89: UPUS985 | F89: UPUS939 | G89: UPUS151
C91: French Backprint | D91: BLUE | E91: UBUQS85 | F91: UBUQS39 | G91: UBUQS51
D92: GREEN | E92: UGNQS85 | F92: UGNQS39 | G92: N/A
D93: BURGUNDY | E93: UBGQS85 | F93: UBGQS39 | G93: N/A
C95: DFS ONLY - non hologram stock | D95: CYAN | E95: UCY9085 | F95: UCY9085 | G95: UCYL151
D96: BLUE | E96: UBU9085 | F96: UBU9039 | G96: UBUL151
D97: GREEN | E97: UGN9085 | F97: UGN9039
D98: BURGUNDY | E98: UBG9085 | F98: UBG9039
D99: TAN | E99: UTN9085 | F99: UTN9039

Sheet Side 2 (hidden)
A1: GENERIC DESIGN PRODUCTS - 1 to 14 Questions in Comments Required
D2: *remember - logo charges apply
A3: Size | B3: Parts
A9: CONTINUOUS FORMS (size includes 1/2" tractor feed stubs on each side) | C9: One Ink (1/0) | D9: A (2/0, 1/1) | E9: B (3/0, 2/1)
A10: 9 1/2 x 3 1/2 | B10: 1-2-3-4 | C10: 9535F | D10: 9535FA | E10: 9535FB
A11: 9 1/2 x 5 1/2 | B11: 1-2-3-4 | C11: 9555F | D11: 9555FA | E11: 9555FB
A12: 9 1/2 x 11 | B12: 1-2-3-4 | C12: 9511F | D12: 9511FA | E12: 9511FB
A13: 9 1/2 x 7 | B13: 1-2-3-4 | C13: 957F | D13: 957FA | E13: 957FB
A14: 9 1/2 x 8 1/2, 8 1/2 x 7, 8 1/2 x 11, 8 1/2 x 8 1/2 | B14: 1-2-3-4 | C14: 9585F | D14: 9585FA | E14: 9585FB
A15: 12 x 8 1/2 | B15: 1-2-3-4 | C15: 1285F | D15: 1285FA | E15: 1285FB
A16: 9 1/2 x 11 (tag back) | B16: 1-2-3-4 | C16: 9511G | D16: 9511GA | E16: 9511GB
A17: SINGLE SHEET: Paper colours available: White, Pink, Canary, Green, Ivory, Blue (key in spec. instr) | C17: One Ink (1/0) | D17: A (2/0, 1/1) | E17: B (3/0, 2/1) | F17: C (4/0, 3/1, 2/2)
A18: (for 2/2 add 1086 charge - refer to specs)
A19: up to 8 1/2 x 11 | B19: 1 | C19: 8511P | D19: 8511PA | E19: 8511PB | F19: 8511PC
A20: up to 8 1/2 x 5 1/2 | B20: 1 | C20: 8555P | D20: 8555PA | E20: 8555PB | F20: 8555PC
A21: up to 5 1/2 x 4 1/4 | B21: 1 | C21: 55425P | D21: 55425PA | E21: 55425PB | F21: 55425PC
A22: up to 11 x 17 | B22: 1 | C22: 1117P | D22: 1117PA | E22: 1117PB | F22: 1117PC
A23: up to 19 x 14 (white only) | B23: 1 | C23: 1914P | D23: 1914PA | E23: Online Quote | F23: Online Quote
A24: TAG SHEET: Tag colours available: White, Blue, Canary, Green, Pink, Ivory (key in spec. instr) | C24: One Ink (1/0) | D24: A (2/0, 1/1) | E24: B (3/0, 2/1)
A25: (for 2/2 add 1086 charge - refer to specs)
A26: up to 8 1/2 x 11 | B26: 1 | C26: 8511T | D26: 8511TA | E26: 8511TB
A27: up to 8 1/2 x 5 1/2 | B27: 1 | C27: 8555T | D27: 8555TA | E27: 8555TB
A28: up to 5 1/2 x 4 1/4 | B28: 1 | C28: 55425T | D28: 55425TA | E28: 55425TB
A29: up to 11 x 17 | B29: 1 | C29: 1117T | D29: 1117TA | E29: 1117TB
A30: MISCELLANEOUS | C30: One Ink (1/0) | D30: A (2/0, 1/1) | E30: B (3/0)
A31: Typeable aluminum label 2 3/4 x 1 1/4 | B31: 1 | C31: CP376 | D31: CP376 | E31: n/a
A32: Garment Tag 1 1/4 x 1 3/4 | B32: 1 | C32: SP4940A | D32: SP4940A | E32: SP4940B
A33: Garment Tag 1 3/4 x 2 7/8 | B33: 1 | C33: SP4941A | D33: SP4941A | E33: SP4941B
A34: Laser Label 6 up 4 x 3 1/3 | B34: 1 | C34: SPL179A | D34: SPL179A | E34: Online Quote
A35: ENVELOPES | C35: A (2/0, 1/1) | D35: Self Sealing (2/0, 1/1)
A36: Return envelope 8 ¾” x 3 ¾” without return addr lines & stamp box | C36: Online quote
A38: #8 Envelope regular - 6 1/2" x 3 5/8" | C38: SP720A
A40: #9 Envelope – regular - 9" x 4" | C40: SP730A
A41: #9 Window envelope | C41: SP731DA
A42: #9 Envelope – confidential | C42: SPC730A
A43: #9 Window – confidential | C43: SPC731A
A44: #10 Envelope – regular - 9 1/2" x 4 1/8" | C44: SP740A | D44: SP762SS
A45: #10 Window Envelope – regular | C45: SP741A | D45: SP763SS
A46: #10 Envelope – confidential | C46: SPC740A | D46: SP712SS
A47: #10 Window Envelope – confidential | C47: SPC741A | D47: SP713SS
A49: 8 3/4” x 3 ¾” Window Envelope – confidential (cheques) | C49: SP776A | D49: SP776SS
A50: 9” x 4 1/8” One Window Envelope | C50: SP6479A
A51: 9” x 4 1/8” One Window Envelope | C51: SP6482A
A52: 8 5/8” x 3 5/8” Window Envelope - confidential | C52: SP779A
A53: 9 x 12” White Mailing Envelope – open end | C53: SP793A
A54: 5 3/4” x 9 1/2” Kraft Mailing Envelope – open end | C54: SP794A | D54: Our envelope press can only print 2 ink colours at a time…….if a 3rd ink is required, please confirm with teamlead or convert to FULL COLOUR. Full Colour envelopes with a window can not be self-seal.
A55: 9” x 12” Kraft Mailing Envelope – open end | C55: SP795A
A56: 6 ½” x 9 ½” White Mailing Envelope – open end | C56: SP643A
A57: 14 1/2" x 11 1/2" White Mailing Envelope - open end | C57: SP788A
A58: 13” x 10” White Mailing Envelope – open end | C58: SP789A
A59: STATIONERY
A60: (for 2/1 or 2/2 add 1086 charge - see specs) | C60: BUSINESS CARDS | D60: LETTERHEAD | E60: ENVELOPES
C61: CC1000 | D61: CC1001 | E61: CC1002 | G61: Note: "A" Products can
A62: Good | B62: white | C62: SP1821A-W | D62: SP1822A-W | E62: SP1823A-W | G62: have 1 colour on the front
G63: and a different colour
C64: CC1010 | D64: CC1011 | E64: CC1012 | G64: on the back.
A65: Better | B65: ivory | C65: SP2821A-I | D65: SP2822A-I | E65: SP2823A-I
B66: grey | D66: SP2822A-G | E66: SP2823A-G
B67: blue | C67: SP2821A-B
C69: CC1020 | D69: CC1021 | E69: CC1022
A70: Best -- Royal Laid | B70: white | C70: SP3821A-W | D70: SP3822A-W | E70: SP3823A-W
B71: ivory | C71: SP3821A-I | D71: SP3822A-I
B72: grey | C72: SP3821A-G
A74: Best Royal Linen | B74: white | C74: SP4821A-Z | D74: SP4822A-Z
A75: Fold Over Business Card | B75: white | C75: SP6821A-1
A77: Please note - for Online Quote requests, minimum quantity is 500

Sheet Paper Options (hidden)
A1: Product Code | B1: Part 1 | C1: Part 2 | D1: Part 3 | E1: Part 4 | F1: Part 5
A2: SP2311A | B2: 1 PART - 21# WHITE | C2: 2 PART - 21# WHITE, 105# MANILA TAG | D2: 3 PART - 21# WHITE, 14.5# CANARY, 105# MANILA TAG | E2: N/A | F2: N/A | G2: **105# WHITE TAG ALSO AVAILABLE AS LAST PART PLEASE SPECIFY IN SPECIAL INST. | H2: OTHER AVAILABLE PAPER COLOURS: TOP (CB) = WHITE
A3: 34108K | B3: 1 PART - 21# WHITE | C3: 2 PART - 21# WHITE, 105# MANILA TAG | D3: 3 PART - 21# WHITE, 14.5# CANARY, 105# MANILA TAG | E3: 4 PART - 21# WHITE, 14.5# CANARY, 14.5# PINK, 105# MANILA TAG | F3: N/A | G3: **105# WHITE TAG ALSO AVAILABLE AS LAST PART PLEASE SPECIFY IN SPECIAL INST.
A4: 56685J | B4: 1 PART - 21# WHITE | C4: 2 PART - 21# WHITE, 15# CANARY | D4: 3 PART - 21# WHITE, 14.5# CANARY, 15# PINK | E4: 4 PART - 21# WHITE, 14.5# CANARY, 14.5# PINK, 15# GOLDENROD | F4: 5 PART - 21# WHITE,14.5# GREEN,14.5# CANARY,14.5# PINK,15# GOLDENROD
A5: 857J | B5: 1 PART - 21# WHITE | C5: 2 PART - 21# WHITE, 15# CANARY | D5: 3 PART - 21# WHITE, 14.5# CANARY, 15# PINK | E5: 4 PART - 21# WHITE, 14.5# CANARY, 14.5# PINK, 15# GOLDENROD | F5: 5 PART - 21# WHITE,14.5# GREEN,14.5# CANARY,14.5# PINK,15# GOLDENROD
A6: 8511J | B6: 1 PART - 21# WHITE | C6: 2 PART - 21# WHITE, 15# CANARY | D6: 3 PART - 21# WHITE, 14.5# CANARY, 15# PINK | E6: 4 PART - 21# WHITE, 14.5# CANARY, 14.5# PINK, 15# GOLDENROD | F6: 5 PART - 21# WHITE,14.5# GREEN,14.5# CANARY,14.5# PINK,15# GOLDENROD | G6: OTHER AVAILABLE PAPER COLOURS: TOP (CB) = WHITE
A7: 8511K | B7: 1 PART - 21# WHITE | C7: 2 PART - 21# WHITE, 105# MANILA TAG | D7: 3 PART - 21# WHITE, 14.5# CANARY, 105# MANILA TAG | E7: 4 PART - 21# WHITE, 14.5# CANARY, 14.5# PINK, 105# MANILA TAG | F7: N/A | G7: **105# WHITE TAG ALSO AVAILABLE AS LAST PART PLEASE SPECIFY IN SPECIAL INST.
A8: 8585J | B8: 1 PART - 21# WHITE | C8: 2 PART - 21# WHITE, 15# CANARY | D8: 3 PART - 21# WHITE, 14.5# CANARY, 15# PINK | E8: 4 PART - 21# WHITE, 14.5# CANARY, 14.5# PINK, 15# GOLDENROD | F8: 5 PART - 21# WHITE,14.5# GREEN,14.5# CANARY,14.5# PINK,15# GOLDENROD | G8: OTHER AVAILABLE PAPER COLOURS: TOP (CB) = WHITE ONLY
A9: 4257J | B9: 1 PART - 21# WHITE | C9: 2 PART - 21# WHITE, 15# CANARY | D9: 3 PART - 21# WHITE, 14.5# CANARY, 15# PINK | E9: 4 PART - 21# WHITE, 14.5# CANARY, 14.5# PINK, 15# GOLDENROD | F9: 5 PART - 21# WHITE,14.5# GREEN,14.5# CANARY,14.5# PINK,15# GOLDENROD
A10: 42511J | B10: 1 PART - 21# WHITE | C10: 2 PART - 21# WHITE, 15# CANARY | D10: 3 PART - 21# WHITE, 14.5# CANARY, 15# PINK | E10: 4 PART - 21# WHITE, 14.5# CANARY, 14.5# PINK, 15# GOLDENROD | F10: 5 PART - 21# WHITE,14.5# GREEN,14.5# CANARY,14.5# PINK,15# GOLDENROD
A11: 42511K | B11: 1 PART - 21# WHITE | C11: 2 PART - 21# WHITE, 105# MANILA TAG | D11: 3 PART - 21# WHITE, 14.5# CANARY, 105# MANILA TAG | E11: 4 PART - 21# WHITE, 14.5# CANARY, 14.5# PINK, 105# MANILA TAG | F11: N/A | G11: **105# WHITE TAG ALSO AVAILABLE AS LAST PART PLEASE SPECIFY IN SPECIAL INST.
A12: 56611J | B12: 1 PART - 21# WHITE | C12: 2 PART - 21# WHITE, 15# CANARY | D12: 3 PART - 21# WHITE, 14.5# CANARY, 15# PINK | E12: 4 PART - 21# WHITE, 14.5# CANARY, 14.5# PINK, 15# GOLDENROD | F12: 5 PART - 21# WHITE,14.5# GREEN,14.5# CANARY,14.5# PINK,15# GOLDENROD | G12: YOU CAN ALSO CHOOSE WHITE FOR MIDDLE OR LAST COPY. | H12: OTHER AVAILABLE PAPER COLOURS: TOP (CB) = WHITE
A13: 8514J | B13: 1 PART - 21# WHITE | C13: 2 PART - 21# WHITE, 15# CANARY | D13: 3 PART - 21# WHITE, 14.5# CANARY, 15# PINK | E13: 4 PART - 21# WHITE, 14.5# CANARY, 14.5# PINK, 15# GOLDENROD | F13: 5 PART - 21# WHITE,14.5# GREEN,14.5# CANARY,14.5# PINK,15# GOLDENROD | G13: OTHER AVAILABLE PAPER COLOURS: TOP (CB) = WHITE
A14: 8514K | B14: 1 PART - 21# WHITE | C14: 2 PART - 21# WHITE, 105# MANILA TAG | D14: 3 PART - 21# WHITE, 14.5# CANARY, 105# MANILA TAG | E14: 4 PART - 21# WHITE, 14.5# CANARY, 14.5# PINK, 105# MANILA TAG | F14: N/A | G14: **105# WHITE TAG ALSO AVAILABLE AS LAST PART PLEASE SPECIFY IN SPECIAL INST.
A15: 34105J | B15: 1 PART - 21# WHITE | C15: 2 PART - 21# WHITE, 15# CANARY | D15: 3 PART - 21# WHITE, 14.5# CANARY, 15# PINK | E15: 4 PART - 21# WHITE, 14.5# CANARY, 14.5# PINK, 15# GOLDENROD | F15: 5 PART - 21# WHITE,14.5# GREEN,14.5# CANARY,14.5# PINK,15# GOLDENROD
A16: 34108J | B16: 1 PART - 21# WHITE | C16: 2 PART - 21# WHITE, 15# CANARY | D16: 3 PART - 21# WHITE, 14.5# CANARY, 15# PINK | E16: 4 PART - 21# WHITE, 14.5# CANARY, 14.5# PINK, 15# GOLDENROD | F16: 5 PART - 21# WHITE,14.5# GREEN,14.5# CANARY,14.5# PINK,15# GOLDENROD
A17: 56611K | B17: 1 PART - 21# WHITE | C17: 2 PART - 21# WHITE, 105# MANILA TAG | D17: 3 PART - 21# WHITE, 14.5# CANARY, 105# MANILA TAG | E17: 4 PART - 21# WHITE, 14.5# CANARY, 14.5# PINK, 105# MANILA TAG | F17: N/A
A18: 75425K | B18: 1 PART - 33# WHITE LEDGER | C18: 2 PART - 21# WHITE CB, 33# WHITE LEDGER | D18: N/A | E18: N/A | F18: N/A | G18: IF 2 PART TOP COPY USUALLY SHORTER SO PLEASE INDICATE HOW LONG IT IS.
A19: 8585K | B19: 1 PART - 21# WHITE | C19: 2 PART - 21# WHITE, 105# MANILA TAG | D19: 3 PART - 21# WHITE, 14.5# CANARY, 105# MANILA TAG | E19: 4 PART - 21# WHITE, 14.5# CANARY, 14.5# PINK, 105# MANILA TAG | F19: N/A
A20: 91845K | B20: 1 PART - 33# WHITE LEDGER | C20: 2 PART - 21# WHITE CB, 33# WHITE LEDGER | D20: N/A | E20: N/A | F20: N/A | G20: IF 2 PART TOP COPY USUALLY SHORTER SO PLEASE INDICATE HOW LONG IT IS.
A21: SP304A | B21: 1 PART - 90# WHITE INDEX | C21: N/A | D21: N/A | E21: N/A | F21: N/A | G21: NUMBERING IN BLACK INK ONLY
A22: SP305A | B22: 1 PART - 21# WHITE | C22: 2 PART - 21# WHITE, 105# MANILA TAG | D22: N/A | E22: N/A | F22: N/A | G22: **105# WHITE TAG ALSO AVAILABLE AS LAST PART PLEASE SPECIFY IN SPECIAL INST.
A23: SP312A | B23: 15# WHITE | C23: 2 PART - 15# WHITE, 105# MANILA TAG | D23: 3 PART - 15# WHITE, 14.5# CANARY ,105# MANILA TAG TAG | E23: N/A | F23: N/A | G23: 105# WHITE TAG ALSO AVAILABLE PUT ON WORK ORDER
A24: SP693 | B24: 1 PART - 21# WHITE | C24: 2 PART - 21# WHITE, 15# CANARY | D24: 3 PART - 21# WHITE, 14.5# CANARY, 15# PINK | E24: N/A | F24: N/A | G24: OTHER AVAILABLE PAPER COLOURS: | H24: TOP (CB) = WHITE
A25: SP8096A | B25: 1 PART - 21# WHITE | C25: 2 PART - 21# WHITE, 15# CANARY | D25: 3 PART - 21# WHITE, 14.5# CANARY, 15# PINK | E25: 4 PART - 21# WHITE, 14.5# CANARY, 14.5# PINK, 15# GOLDENROD | F25: 5 PART - 21# WHITE,14.5# GREEN,14.5# CANARY,14.5# PINK,15# GOLDENROD
A26: SP886TA | B26: 1 PART - 21# WHITE | C26: 2 PART - 21# WHITE, 15# CANARY | D26: 3 PART - 21# WHITE, 14.5#CANARY, 15# PINK | E26: N/A | F26: N/A | G26: ONLY 2 AND 3 PARTS AVAILABLE | H26: YOU CAN ALSO CHOOSE GREEN OR BLUE FOR MIDDLE OR LAST COPY
A27: SP8375A | B27: 1 PART - 16# WHITE | C27: 2 PART - 16# WHITE, 15# CANARY | D27: 3 PART - 16# WHITE, 14.5# CANARY, 15# PINK | E27: 4 PART - 16# WHITE, 14.5# CANARY, 14.5# PINK, 15# GREEN | F27: N/A | G27: BLUE, GREEN AND WHITE PAPER ALSO AVAILABLE FOR MIDDLE OR LAST PART
C35: 105# MANILLA - ALSO CAN USE 105# WHITE
